Workbook

Sheet Filtration lab test data base
C1: Slurry parameters | M1: /!\ Tested /!\ slurry parameters | R1: Clients' target | AD1: Filtration test parameters | AS1: Performances reached | AZ1: Report/Selling data
C2: Market | D2: Submarket | E2: Product | F2: Csolid (w/w %) | G2: Tslurry (°C) | H2: Densityslurry | I2: Densitysolid | J2: Viscosity (cP) | K2: d50 (μm) | L2: pH | M2: Csolid,tested (w/w %) | N2: Tslurry,tested (°C) | O2: Densityslury,tested | P2: Densitysolid,tested | Q2: pHtested | R2: Productiontarget (T/h) | S2: Production priority | T2: Cake moisturetarget (%) | U2: Cake moisture priority | V2: Csolid in filtrate,target (%) | W2: Csolid in filtrate priority | X2: Cake analysistarget | Y2: Cake analysis priority | Z2: Filtrate analysistarget | AA2: Filtrate analysistarget priority | AB2: Global wash ratiotarget (m3/Tdry solid) | AC2: Global wash ratio priority | AD2: Cloth - permeability (L/dm2/min) - weaving | AE2: Thicknesscake (mm) | AF2: Pick-up time (s) | AG2: Washing agent and method | AH2: Twashing (°C) | AI2: Global wash ratio (m3/Tdry solid) | AJ2: Washing agent pH | AK2: Washing agent conductivity (µS/cm) | AL2: Interzone (s) | AM2: tdrying (s) | AN2: Steam hood (Tested/Kept) | AO2: Press (Tested/Kept) | AP2: Flocculancts(F)/Surfactants(S) (Tested/Kept) | AQ2: Cycle time (s) | AR2: Filtrability (kg/h/m2) | AS2: Production (T/h) | AT2: Cake moisture (%) | AU2: Cake moisture with artifice (%) | AV2: Csolid in filtrate (%) | AW2: Impurity | AX2: Cake analysis | AY2: Filtrate analysis | AZ2: TG | BA2: Customer | BB2: Report date | BC2: Kind of filter | BD2: Sold (Yes/No) | BE2: Start-up date | BF2: Filter reference number | BG2: Project number | BH2: Hasler Group Standard / Area | BI2: Comments
E3: Dichromate sodium | F3: / | G3: / | H3: / | I3: / | J3: / | K3: / | L3: / | M3: 20.7 | N3: 80 | O3: 1.4795 | P3: / | Q3: 8.7 | R3: / | S3: / | T3: / | U3: / | V3: / | W3: / | X3: / | Y3: / | Z3: / | AA3: / | AB3: / | AC3: / | AD3: (20μm) | AE3: 6 | AF3: 80 | AG3: / | AH3: / | AI3: / | AJ3: / | AK3: / | AL3: / | AM3: / | AN3: No/No | AO3: No/No | AP3: No/No | AQ3: / | AR3: / | AS3: / | AT3: / | AU3: / | AV3: / | AW3: / | AX3: / | AY3: / | AZ3: 3095 | BA3: Viscnu chemicals | BB3: 08/2009 | BC3: FAB | BD3: YES | BE3: / | BF3: / | BG3: / | BH3: /
C4: MMF | E4: Coal | F4: / | G4: / | H4: / | I4: / | J4: / | K4: / | L4: / | M4: / | N4: / | O4: / | P4: / | Q4: / | R4: / | S4: / | T4: / | U4: / | V4: / | W4: / | X4: / | Y4: / | Z4: / | AA4: / | AB4: / | AC4: / | AD4: Cltoh 7450 | AE4: / | AF4: 50 | AG4: / | AH4: / | AI4: / | AJ4: / | AK4: / | AL4: / | AM4: 30 | AN4: No/No | AO4: No/No | AP4: No/No | AQ4: / | AR4: 576 | AS4: / | AT4: 39.1 | AU4: / | AV4: 0.1 | AW4: / | AX4: / | AY4: / | AZ4: 3357 | BA4: IPAS | BB4: 06/2001 | BC4: FAB | BD4: / | BE4: / | BF4: / | BG4: / | BH4: / | BI4: Lab test were not converted into an offer
C5: MMF | D5: G3 Industrial minerals | E5: Jarosite | F5: / | G5: / | H5: / | I5: / | J5: / | K5: / | L5: / | M5: 330 g/l | N5: 31 | O5: / | P5: / | Q5: / | R5: 25 | S5: 1 | T5: / | U5: / | V5: / | W5: / | X5: / | Y5: / | Z5: / | AA5: / | AB5: / | AC5: / | AD5: 25141AN - 200 - Mono | AE5: / | AF5: / | AG5: / | AH5: / | AI5: / | AJ5: / | AK5: / | AL5: / | AM5: / | AN5: No/No | AO5: No/No | AP5: No/No | AQ5: / | AR5: 570 | AS5: / | AT5: / | AU5: 32-34(pressure) | AV5: / | AW5: / | AX5: / | AY5: / | AZ5: 3412 | BA5: OUTOKUMPU ZINC OY | BB5: 12/2001 | BC5: FAB | BD5: / | BE5: / | BF5: / | BG5: / | BH5: 44
C6: MMF | D6: L3 Zinc and cadmium | E6: Sulphur | F6: / | G6: / | H6: / | I6: / | J6: / | K6: / | L6: / | M6: 145 g/l | N6: 65 | O6: / | P6: / | Q6: / | R6: 13.5 | S6: / | T6: / | U6: / | V6: / | W6: / | X6: Zinc<0,2% | Y6: / | Z6: / | AA6: / | AB6: / | AD6: 25141AN - 200 - Mono | AE6: / | AF6: / | AG6: / | AH6: / | AI6: 1.14 | AJ6: / | AK6: / | AL6: / | AM6: 15 | AN6: No/No | AO6: No/No | AP6: No/No | AQ6: / | AR6: 115 | AT6: 49.5 | AU6: 42 (pressure) | AW6: Zinc | AX6: 0.001 | AY6: / | AZ6: 3412 | BA6: OUTOKUMPU ZINC OY | BB6: 12/2001 | BC6: FAB | BD6: / | BE6: / | BF6: / | BG6: / | BH6: 118 | BI6: Cake moisture was in fact between 31,5 and 49,5. The cake moisture covered a wide range of value because of the variations of the pulp (concentration between 110 and 190 g/l)
C7: MMF | D7: G3 Industrial minerals | E7: Nyobium | F7: / | G7: / | H7: / | I7: / | J7: / | K7: / | L7: / | M7: / | N7: / | O7: / | P7: / | Q7: / | R7: 1 | S7: / | T7: / | U7: / | V7: / | W7: / | X7: P205 removal | Y7: / | Z7: / | AA7: / | AB7: / | AC7: / | AD7: Multi | AE7: 5 | AF7: 30 | AG7: Acidulated water (by chloridric acid 10%) | AH7: / | AI7: 0.4 | AJ7: / | AK7: / | AL7: / | AM7: 15 | AN7: No/No | AO7: No/No | AP7: No/No | AQ7: / | AR7: 335 | AS7: 1 | AT7: / | AU7: / | AV7: / | AW7: P205 | AX7: 0,07 (unit?) | AY7: / | AZ7: 3417 | BA7: La Mine Niobec | BB7: 11/1999 | BC7: FAB | BD7: / | BE7: / | BF7: / | BG7: / | BH7: 5
C8: MMF | D8: U3 Pyrometallurgy - calcinators - minerals kiln feed | E8: Calcine | F8: / | G8: / | H8: / | I8: / | J8: / | K8: / | L8: / | M8: / | N8: 65 | O8: / | P8: / | Q8: / | R8: 3 | S8: 1 | T8: / | U8: / | V8: / | W8: / | X8: / | Y8: / | Z8: / | AA8: / | AB8: / | AC8: / | AD8: Multi - low permeability | AE8: 5 | AF8: / | AG8: Water | AH8: 65 | AI8: / | AJ8: / | AK8: / | AL8: / | AM8: / | AN8: No/No | AO8: No/No | AP8: No/No | AQ8: / | AR8: 113 | AS8: 3 | AT8: 35 | AU8: / | AV8: Clear | AW8: / | AX8: / | AY8: / | AZ8: 3422 | BA8: N Komati AVMIN | BB8: 07/2001 | BC8: FAB | BD8: / | BE8: / | BF8: / | BG8: / | BH8: 35
C9: MMF | D9: F3 Copper | E9: Copper concentrate K.D.P.M | F9: / | G9: / | H9: / | I9: / | J9: / | K9: / | L9: / | M9: / | N9: 20 | O9: 1.55 | P9: / | Q9: / | R9: 50 | S9: 2 | T9: <11% | U9: 1 | V9: / | W9: / | X9: / | Y9: / | Z9: / | AA9: / | AB9: / | AC9: / | AD9: Double layer mono (polypropylen) | AE9: 7 | AF9: / | AG9: / | AH9: 75 | AI9: 0.4 | AJ9: / | AK9: / | AL9: / | AM9: / | AN9: No/No | AO9: Yes/Yes | AP9: (F) - 30g/Tdry solids 0,5g/l/Yes | AQ9: / | AR9: 700 | AS9: 50 | AT9: 16 | AU9: 45(without flocculent) 18 (Hot water washing + surfactant) 14,5 (press without flocculent) 13,8 (press with flocculent) 11,33 (flocculent +surfactant + hot water washing + press) | AV9: / | AW9: / | AX9: / | AY9: / | AZ9: 3422 | BA9: Konkola Copper Mines plc | BB9: 09/2001 | BC9: FR | BD9: YES | BE9: / | BG9: / | BH9: 2*50 | BI9: Filtrates are not important as they go back to thickener; drying time has little influence on final cake moisture.
C10: MMF | D10: F3 Copper | E10: Leach slurry | F10: / | G10: / | H10: / | I10: / | J10: / | K10: / | L10: / | M10: / | N10: / | O10: / | P10: / | Q10: / | R10: 720 | S10: / | T10: / | U10: / | V10: / | W10: / | X10: / | Y10: / | Z10: Cu and Co wash recovery | AA10: / | AB10: / | AC10: / | AD10: / | AE10: / | AF10: / | AG10: Acidified water pH3 (H2SO4) - 1D | AH10: 20 | AI10: 0.45 | AJ10: / | AK10: / | AL10: / | AM10: / | AN10: No/No | AO10: No/No | AP10: (F) "no ionic" - 13g/Tdry solids 0,5g/l/Yes | AQ10: / | AR10: 1500 | AS10: 720 | AT10: 19 | AU10: / | AV10: Clear | AW10: Cu and CO | AX10: / | AY10: >99,5% | AZ10: 3445 | BA10: KOLWEZI Pilot Plant | BB10: 09/2001 | BC10: FAB | BD10: / | BE10: / | BF10: / | BG10: / | BH10: 4*172
C11: MMF | D11: F3 Copper | E11: Copper slurry |Pre - Leach Slurry | F11: / | G11: / | H11: / | I11: / | J11: / | K11: / | L11: / | M11: 68 | N11: 24 | O11: / | P11: / | Q11: / | R11: 320 | S11: / | T11: <20 | U11: / | V11: / | W11: / | X11: / | Y11: / | Z11: / | AA11: / | AB11: / | AC11: / | AD11: Mono (polyester) | AE11: 45 | AF11: / | AG11: / | AH11: / | AI11: / | AJ11: / | AK11: / | AL11: / | AM11: / | AN11: No/No | AO11: No/No | AP11: (F) 14g/Tdry solids/Yes | AQ11: / | AR11: 300 | AS11: 320 | AT11: 20 | AU11: / | AV11: / | AW11: / | AX11: / | AZ11: 3445 | BA11: MINTEK - KOLWEZI | BB11: 02/2005 | BC11: FAB | BD11: / | BE11: / | BF11: / | BG11: / | BH11: 1*108
C12: MMF | D12: F3 Copper | E12: Copper slurry |Post - Leach Slurry | F12: 68 | G12: / | H12: / | I12: / | J12: / | K12: / | L12: / | M12: 61 | N12: 24 | O12: / | P12: / | Q12: / | R12: 320 | S12: / | T12: / | U12: / | V12: / | W12: / | X12: / | Y12: / | Z12: Cu and CO>98% | AA12: / | AB12: / | AC12: / | AD12: Mono (polyester) | AE12: 28 | AF12: / | AG12: Acidified water pH3 (H2SO4) - 1D+1CC | AH12: / | AI12: 0.33 | AJ12: / | AK12: / | AL12: / | AM12: / | AN12: No/No | AO12: No/No | AP12: (F) 22g/Tdry solids/Yes | AQ12: / | AR12: 1950 | AS12: 320 | AT12: / | AU12: / | AV12: / | AW12: Cu and CO | AX12: / | AY12: >98% | AZ12: 3445 | BA12: MINTEK - KOLWEZI | BB12: 02/2005 | BC12: FAB | BD12: / | BE12: / | BF12: / | BG12: / | BH12: 2*91 | BI12: Washing with a counter current instead of a direct saves water and makes the global wash ratio drop from 0,45 to 0,33m3/h with the same Cu/Co recovery performances. The filtrability also decreases with a counter current going from 2700 kg/h/m2 to 1950 kg/h/m2 resulting in a sizing of 2*91 instead of 1*128.
C13: MMF | D13: L3 Zinc and cadmium | E13: Zinc | F13: / | G13: / | H13: / | I13: / | J13: / | K13: / | L13: / | M13: / | N13: / | O13: / | P13: / | Q13: / | R13: 100 | S13: / | T13: / | U13: / | V13: / | W13: / | X13: / | Y13: / | Z13: / | AA13: / | AB13: / | AC13: / | AD13: 2666PP - 300 - Mono/mono (polypropylene) | AE13: / | AF13: / | AG13: / | AH13: / | AI13: / | AJ13: / | AK13: / | AL13: / | AM13: / | AN13: No/No | AO13: No/No | AP13: (F) "no ionic and anionic" 30g/Tdry solids/Yes | AQ13: / | AR13: 1300 | AS13: 100 | AT13: 20 | AU13: / | AV13: / | AW13: / | AX13: / | AY13: / | AZ13: 3478 | BA13: Gamsberg | BB13: 06/2001 | BC13: FAB | BD13: / | BE13: / | BF13: / | BG13: / | BH13: 84 | BI13: Filtration without a thickened slurry would lead to a sizing that is too important
C14: MMF | D14: N3 Nickel, Cobalt and Manganese | E14: Nickel suspension | F14: / | G14: / | H14: / | I14: / | J14: / | K14: / | L14: / | M14: / | N14: / | O14: / | P14: / | Q14: / | R14: / | S14: / | T14: minimum | U14: / | V14: / | W14: / | X14: "Good wash efficiency" | Y14: / | Z14: / | AA14: / | AB14: / | AC14: / | AD14: Mono (polypropylene) | AE14: 20 | AF14: / | AG14: "Solution" | AH14: 60 | AI14: 1.4 | AJ14: / | AK14: / | AL14: / | AM14: / | AN14: No/No | AO14: No/No | AP14: No/No | AQ14: / | AR14: 2200 | AS14: / | AT14: 4 | AU14: / | AV14: Clear | AW14: S - SO4 | AX14: 0,110% - 0,329% | AY14: / | AZ14: 3492 | BA14: IMPALA | BB14: 10/2000 | BC14: FAB | BD14: / | BE14: / | BF14: / | BG14: / | BH14: /
C15: MMF | D15: N3 Nickel, Cobalt and Manganese | E15: Cobalt suspension | F15: / | G15: / | H15: / | I15: / | J15: / | K15: / | L15: / | M15: / | N15: / | O15: / | P15: / | Q15: / | R15: / | S15: / | T15: minimum | U15: / | V15: / | W15: / | X15: "Good wash efficiency" | Y15: / | Z15: / | AA15: / | AB15: / | AC15: / | AD15: Mono (polypropylene) | AE15: 20 | AF15: / | AG15: "Solution" | AH15: 60 | AI15: 1 | AJ15: / | AK15: / | AL15: / | AM15: / | AN15: No/No | AO15: No/No | AP15: No/No | AQ15: / | AR15: 3000 | AS15: / | AT15: 7 | AU15: / | AV15: Clear | AW15: S -SO4 | AX15: 0,250% - 0,733% | AY15: / | AZ15: 3492 | BA15: IMPALA | BB15: 10/2001 | BC15: FAB | BD15: / | BE15: / | BF15: / | BG15: / | BH15: /
C16: MMF | D16: G3 Industrial minerals | E16: Jarosite | F16: / | G16: / | H16: / | I16: / | J16: / | K16: / | L16: / | M16: / | N16: / | O16: / | P16: / | Q16: / | R16: / | S16: / | T16: / | U16: / | V16: / | W16: / | X16: Zinc<1% | Y16: 1 | Z16: / | AA16: / | AB16: / | AC16: / | AD16: Quality 5050 - 150 - Mono/mono (polypropylen) | AE16: 6 | AF16: / | AG16: Water | AH16: 30 | AI16: 1.2 | AJ16: / | AK16: / | AL16: / | AM16: / | AN16: No/No | AO16: No/No | AP16: No/No | AQ16: / | AR16: 200 | AS16: / | AT16: 40 | AU16: / | AV16: / | AW16: Zinc | AX16: <1% | AY16: / | AZ16: 3497 | BA16: Cajamarquilla | BB16: 11/2000 | BC16: FAB | BD16: / | BE16: / | BF16: / | BG16: / | BH16: /
C17: MMF | D17: T3 Other metals | E17: Pb/Ag residu | F17: / | G17: / | H17: / | I17: / | J17: / | K17: / | L17: / | M17: / | N17: / | O17: / | P17: / | Q17: / | R17: / | S17: / | T17: / | U17: / | V17: / | W17: / | X17: Zinc<1% | Y17: 1 | Z17: / | AA17: / | AB17: / | AC17: / | AD17: Quality 5050 - 150 - Mono/mono (polypropylen) | AE17: 6 | AF17: / | AG17: Water | AH17: 30 | AI17: 2.2 | AJ17: / | AK17: / | AL17: / | AM17: / | AN17: No/No | AO17: No/No | AP17: No/No | AQ17: / | AR17: 50 | AS17: / | AT17: 60 | AU17: / | AV17: / | AW17: Zinc | AX17: <1% | AY17: / | AZ17: 3497 | BA17: Cajamarquilla | BB17: 11/2000 | BC17: FAB | BD17: / | BE17: / | BF17: / | BG17: / | BH17: /
C18: CCH | D18: G4 Specialty polymers and resins | E18: Furfural resin | F18: / | G18: / | H18: / | I18: / | J18: / | K18: / | L18: / | O18: 1.2 | AZ18: 3528 | BA18: TFC Furfural | BB18: 07/2001 | BC18: FAB & FR
C19: CCH | D19: G4 Specialty polymers and resins | E19: Furfural resin | F19: / | G19: / | H19: / | I19: / | J19: / | K19: / | L19: / | M19: / | N19: / | O19: 1.2 | P19: / | Q19: / | R19: / | S19: / | T19: / | U19: / | V19: / | W19: / | X19: / | Y19: / | Z19: / | AA19: / | AB19: / | AC19: / | AD19: 95125 AM | AE19: 30 | AF19: 20 | AG19: 1D | AH19: / | AI19: 2.5 | AJ19: / | AK19: / | AL19: / | AM19: / | AN19: No/No | AO19: No/No | AP19: No/No | AQ19: / | AR19: / | AS19: / | AT19: / | AU19: / | AV19: / | AW19: / | AX19: / | AY19: / | AZ19: 3528 | BA19: TFC Furfural | BB19: 06/2001 | BC19: FAB / FR | BD19: / | BE19: / | BG19: / | BH19: /
E20: Dye | Rouge 4B | F20: / | G20: / | H20: / | I20: / | J20: / | K20: / | L20: / | M20: / | N20: 40 | O20: / | P20: / | Q20: / | R20: / | S20: / | T20: / | U20: / | V20: / | W20: / | X20: / | Y20: / | Z20: / | AA20: / | AB20: / | AC20: / | AD20: 95125 AM | AE20: 13 | AF20: / | AG20: / | AH20: 40 | AI20: / | AJ20: / | AK20: / | AL20: / | AM20: / | AN20: No/No | AO20: No/No | AP20: No/No | AQ20: / | AR20: 260 | AS20: / | AT20: 71 | AU20: / | AV20: 0.155 | AW20: / | AX20: / | AY20: / | AZ20: 3529 | BA20: Steiner | BB20: 06/2001 | BC20: FR | BD20: / | BE20: / | BG20: / | BH20: /
E21: Dye | Base de brun | F21: / | G21: / | H21: / | I21: / | J21: / | K21: / | L21: / | M21: / | N21: 20 | O21: / | P21: / | Q21: / | R21: / | S21: / | T21: / | U21: / | V21: / | W21: / | X21: / | Y21: / | Z21: / | AA21: / | AB21: / | AC21: / | AD21: 95125 AM | AE21: 9 | AF21: / | AG21: / | AH21: 20 | AI21: / | AJ21: / | AK21: / | AL21: / | AM21: / | AN21: No/No | AO21: No/No | AP21: No/No | AQ21: / | AR21: 85 | AS21: / | AT21: 65 | AU21: / | AV21: 0.155 | AW21: / | AX21: / | AY21: / | AZ21: 3529 | BA21: Steiner | BB21: 06/2001 | BC21: FR | BD21: / | BE21: / | BG21: / | BH21: /
E22: Dye | Base de chryoidine | F22: / | G22: / | H22: / | I22: / | J22: / | K22: / | L22: / | M22: / | N22: 20 | O22: / | P22: / | Q22: / | R22: / | S22: / | T22: / | U22: / | V22: / | W22: / | X22: / | Y22: / | Z22: / | AA22: / | AB22: / | AC22: / | AD22: 95125 AM | AE22: 8 | AF22: / | AG22: / | AH22: 20 | AI22: / | AJ22: / | AK22: / | AL22: / | AM22: / | AN22: No/No | AO22: No/No | AP22: No/No | AQ22: / | AR22: 28 | AS22: / | AT22: 76 | AU22: / | AV22: 0.155 | AW22: / | AX22: / | AY22: / | AZ22: 3529 | BA22: Steiner | BB22: 06/2001 | BC22: FR | BD22: / | BE22: / | BG22: / | BH22: /
E23: EAF Dust | Slurry B | F23: / | G23: / | H23: / | I23: / | J23: / | K23: / | L23: / | M23: / | N23: / | O23: / | P23: / | Q23: / | R23: 11.2 | S23: / | T23: / | U23: / | V23: / | W23: / | X23: chlorides<0,2% | Y23: / | Z23: / | AA23: / | AB23: / | AC23: / | AD23: Double layer mono/multi (polypropylen) | AE23: 6 | AF23: / | AG23: 1D | AH23: / | AI23: 0.6 | AJ23: / | AK23: / | AL23: / | AM23: 30 | AN23: No/No | AO23: No/No | AP23: No/No | AQ23: / | AR23: 205 | AS23: 11.2 | AT23: 23 | AU23: / | AV23: 5 | AW23: Chloride | AX23: <0,2% | AY23: / | AZ23: 3531 | BA23: Paul Wurth | BB23: 09/2001 | BC23: FAB | BD23: / | BE23: / | BF23: / | BG23: / | BH23: 60
E24: EAF Dust |Slurry C | F24: / | G24: / | H24: / | I24: / | J24: / | K24: / | L24: / | M24: / | N24: / | O24: / | P24: / | Q24: / | R24: 8 | S24: / | T24: / | U24: / | V24: / | W24: / | X24: chlorides<0,2% | Y24: / | Z24: / | AA24: / | AB24: maximum of 0,45 | AC24: / | AD24: Double layer mono/multi (polypropylen) | AE24: 6 | AF24: / | AG24: 1D | AH24: / | AI24: 0.6 | AJ24: / | AK24: / | AL24: / | AM24: 30 | AN24: No/No | AO24: No/No | AP24: No/No | AQ24: / | AR24: 205 | AS24: 8 | AT24: 26 | AU24: / | AV24: 5 | AW24: Chloride | AX24: >0,2% | AY24: / | AZ24: 3531 | BA24: Paul Wurth | BB24: 09/2001 | BC24: FAB | BD24: / | BE24: / | BF24: / | BG24: / | BH24: 60
C25: MMF | D25: D3 Uranium | E25: Uranium leach residue | Blend 82/18 (%) | F25: / | G25: / | H25: / | I25: / | J25: / | K25: / | L25: / | M25: / | N25: 25 | O25: / | P25: / | Q25: / | R25: 2000 | S25: / | T25: / | U25: / | V25: / | W25: / | X25: / | Y25: / | Z25: U308 | AA25: 1 | AB25: / | AC25: / | AD25: 900 (polyester) | AE25: 35 | AF25: / | AG25: Barren and tap water | AH25: / | AI25: 0,4 - 0,07 | AJ25: / | AK25: / | AL25: / | AM25: 18 | AN25: No/No | AO25: No/No | AP25: (F) RMG 129 LWM - 20g/Tdry solids 0,5g/l/Yes | AQ25: / | AR25: 3200 | AS25: 2000 | AT25: 14 | AU25: / | AV25: / | AW25: U308 | AX25: 0.001 | AY25: / | AZ25: 3533 | BA25: Rössing | BB25: 05/2002 | BC25: FAB | BD25: / | BE25: / | BF25: / | BG25: / | BH25: 6*151 | BI25: The slurry is a blend of underflow cyclone (82%) and slime (18%). The slime has a solid concentration around 40% (d=1,4) and the underflow cyclone around 75% (d=1,9)
C26: MMF | D26: D3 Uranium | E26: Uranium leach residue | Blend 80/20 (%) | F26: / | G26: / | H26: / | I26: / | J26: / | K26: / | L26: / | M26: / | N26: 25 | O26: / | P26: / | Q26: / | R26: 2000 | S26: / | T26: / | U26: / | V26: / | W26: / | X26: / | Y26: / | Z26: U308 | AA26: 1 | AB26: / | AC26: / | AD26: 900 (polyester) | AE26: 28 | AF26: / | AG26: Barren and tap water | AH26: / | AI26: 0,4 - 0,07 | AJ26: / | AK26: / | AL26: / | AM26: 18 | AN26: No/No | AO26: No/No | AP26: (F) RMG 129 LWM - 20g/Tdry solids 0,5g/l/Yes | AQ26: / | AR26: 3000 | AS26: 2000 | AT26: 16 | AU26: / | AV26: / | AW26: U308 | AX26: 0.001 | AY26: / | AZ26: 3533 | BA26: Rössing | BB26: 05/2002 | BC26: FAB | BD26: / | BE26: / | BF26: / | BG26: / | BH26: 6*151 | BI26: The slurry is a blend of underflow cyclone (80%) and slime (20%). The slime has a solid concentration around 40% (d=1,4) and the underflow cyclone around 75% (d=1,9)
C27: MMF | D27: D3 Uranium | E27: Uranium leach residue | Blend 77/23 (%) | F27: / | G27: / | H27: / | I27: / | J27: / | K27: / | L27: / | M27: / | N27: 25 | O27: / | P27: / | Q27: / | R27: 2000 | S27: / | T27: / | U27: / | V27: / | W27: / | X27: / | Y27: / | Z27: U308 | AA27: 1 | AB27: / | AC27: / | AD27: 900 (polyester) | AE27: 27 | AF27: / | AG27: Barren and tap water | AH27: / | AI27: 0,4 - 0,07 | AJ27: / | AK27: / | AL27: / | AM27: 18 | AN27: No/No | AO27: No/No | AP27: (F) RMG 129 LWM - 24g/Tdry solids 0,5g/l/Yes | AQ27: / | AR27: 2200 | AS27: 2000 | AT27: 15 | AU27: / | AV27: / | AW27: U308 | AX27: 0.001 | AY27: / | AZ27: 3533 | BA27: Rössing | BB27: 05/2002 | BC27: FAB | BD27: / | BE27: / | BF27: / | BG27: / | BH27: 6*151 | BI27: The slurry is a blend of underflow cyclone (77%) and slime (23%). The slime has a solid concentration around 40% (d=1,4) and the underflow cyclone around 75% (d=1,9)
C28: MMF | D28: D3 Uranium | E28: Uranium leach residue | F28: / | G28: / | H28: / | I28: / | J28: / | K28: / | L28: / | M28: / | N28: 25 | O28: / | P28: / | Q28: / | R28: 2000 | S28: / | T28: / | U28: / | V28: / | W28: / | X28: / | Y28: / | Z28: U308 | AA28: 1 | AB28: / | AC28: / | AD28: 900 (polyester) | AE28: 23 | AF28: / | AG28: Barren and tap water | AH28: / | AI28: 0,4 - 0,07 | AJ28: / | AK28: / | AL28: / | AM28: 18 | AN28: No/No | AO28: No/No | AP28: (F) RMG 129 LWM - 20g/Tdry solids 0,5g/l/Yes | AQ28: / | AR28: 1500 | AS28: 2000 | AT28: 13 | AU28: / | AV28: / | AW28: U308 | AX28: 0.0033 | AY28: / | AZ28: 3533 | BA28: Rössing | BB28: 05/2002 | BC28: FAB | BD28: / | BE28: / | BF28: / | BG28: / | BH28: 6*151
C29: MMF | D29: A1 Phosphoric acid | E29: H3PO4 | F29: / | G29: / | H29: / | I29: / | J29: / | K29: / | L29: / | M29: 26 | N29: 58 | O29: 1.25 | T29: 33 | X29: P205 < 3,5% - K2O < 0,5% | AE29: 17 | AF29: 8 | AG29: "Dirty" water + Tapwater" | AH29: 58 | AI29: 0.29 | AJ29: / | AK29: / | AN29: No/No | AO29: No/No | AP29: No/No | AQ29: / | AS29: 106.25 | AT29: <26 | AV29: / | AW29: P205 - K2O | AX29: 3,13 - 0,66 | AZ29: 3954 | BA29: ROTEM | BB29: 11/2009 | BC29: FAB | BD29: Yes | BE29: 1991 | BF29: / | BG29: / | BH29: 40
C30: CCH | D30: H4 Soda Ash | E30: Soda Ash | F30: / | G30: / | H30: / | I30: / | J30: / | K30: / | L30: / | M30: 21 | N30: 30 | O30: 1.31 | P30: / | Q30: / | R30: / | S30: / | T30: / | U30: / | V30: / | W30: / | X30: / | Y30: / | Z30: / | AA30: / | AB30: / | AC30: / | AD30: RPADL50 | AE30: 25 | AF30: 7.5 | AG30: "Counte current" | AH30: / | AI30: <0,7 | AJ30: / | AK30: / | AL30: / | AM30: / | AN30: No/No | AO30: No/No | AP30: No/No | AQ30: / | AR30: / | AS30: 2*50 | AT30: 16.5 | AU30: / | AV30: / | AW30: NaCl | AX30: 0.0007 | AY30: / | AZ30: 4086 | BA30: Ciech Matwy | BB30: 04/2013 | BC30: FAB | BD30: Yes | BE30: 2014 | BF30: / | BG30: 1686 - 01 | BH30: 2*73,5
C31: CCH | D31: H4 Soda Ash | E31: Soda Ash | F31: / | G31: / | H31: / | I31: / | J31: / | K31: / | L31: / | M31: 21 | N31: 30 | O31: 1.3 | P31: / | Q31: / | R31: / | S31: / | T31: / | U31: / | V31: / | W31: / | X31: / | Y31: / | Z31: / | AA31: / | AB31: / | AC31: / | AD31: RPADL50 | AE31: 25 | AF31: 7.5 | AG31: "Counte current" | AH31: / | AI31: <0,7 | AJ31: / | AK31: / | AL31: / | AM31: / | AN31: No/No | AO31: No/No | AP31: No/No | AQ31: / | AR31: / | AS31: 2*37,5 | AT31: 16 | AU31: / | AV31: / | AW31: NaCl | AX31: 0.0006 | AY31: / | AZ31: 4086 | BA31: Ciech Janikowo | BB31: 04/2013 | BC31: FAB | BD31: Yes | BE31: 2014 | BF31: / | BG31: 1686 - 02 | BH31: 2*54
C32: CCH | D32: H4 Soda Ash | E32: Soda Ash | F32: / | G32: / | H32: / | I32: / | J32: / | K32: / | L32: / | M32: 14.5 | N32: 39 | O32: 1.242 | X32: chlorides<0,15% | Y32: 1 | AD32: RPA DL 50 | AE32: 40 | AF32: 12 | AG32: Process water - "Counter Current" | AH32: 40 | AI32: 0.85 | AJ32: / | AK32: / | AM32: 90 | AN32: No/No | AO32: No/No | AP32: No/No | AQ32: / | AR32: 1050 | AS32: 108 | AT32: 16 | AU32: / | AV32: / | AW32: Chloride | AX32: <0,15% | AZ32: 4112 | BA32: LONGSHAN | BB32: 03/2014 | BC32: FAB | BD32: Yes | BE32: 2015 | BG32: 2238 | BH32: 108 m2 Lab test result but 81 m2 actually sold
M33: 8 | N33: 90 | O33: 1.7 | T33: <30 | V33: <0,1% | X33: P2O5 < 2 | AD33: 07-8430-W120 - 1680 - | AE33: 5 | AG33: "No washing required" | AH33: "No washing required" | AI33: "No washing required" | AJ33: "No washing required" | AK33: "No washing required" | AL33: "No washing required" | AM33: "No washing required" | AN33: No/No | AO33: No/No | AP33: No/No | AQ33: / | AR33: 300 | AT33: < 30 | AV33: 0,5 | AZ33: 4155 | BA33: LIFOSA | BB33: 10/2015 | BC33: FAB | BD33: Yes | BE33: 2016 | BG33: CC3615 | BH33: 20
C34: MMF | D34: J3 Metals recycling | E34: Aluminium slags | F34: 15 | G34: 20 | H34: 1.22 | I34: / | J34: / | K34: / | L34: / | M34: 20 | N34: / | O34: / | P34: / | Q34: / | R34: 3.9 | S34: / | T34: <25 | U34: / | V34: minimum | W34: / | X34: chlorides<0,15% | Y34: / | Z34: / | AA34: / | AB34: <1,33 | AC34: / | AD34: RPA K85 | AE34: 6 | AF34: / | AG34: Process water - 3D | AH34: 20 | AI34: 1.85 | AJ34: / | AK34: / | AL34: / | AM34: 34 | AN34: No/No | AO34: No/No | AP34: (F) 50g/T dry solids / Yes | AQ34: / | AR34: 175 | AS34: 3.9 | AT34: / | AU34: 34 (flocculant) | AV34: <0,2 | AW34: Chloride | AX34: <1,5% | AY34: / | AZ34: 4156 | BA34: RESAL | BB34: 12/2015 | BC34: FAB | BD34: Yes | BE34: 2016 | BF34: / | BG34: CC3682 | BH34: 25
C35: MMF | D35: J3 Metals recycling | E35: Aluminium slags | F35: 45 | G35: 29 | H35: 1.4 | I35: / | J35: / | K35: / | L35: 11.8 | M35: / | N35: / | O35: / | P35: / | Q35: / | R35: / | S35: / | T35: / | U35: / | V35: / | W35: / | X35: / | Y35: / | Z35: / | AA35: / | AB35: / | AC35: / | AD35: / | AE35: 13 | AF35: 75 | AG35: / | AH35: / | AI35: 14 m3/h | AJ35: / | AK35: / | AL35: / | AM35: / | AN35: No/No | AO35: No/No | AP35: (F) 400g/Tdry solids "concentration of 3%"/No | AQ35: / | AR35: / | AS35: / | AT35: / | AU35: / | AV35: / | AW35: / | AX35: / | AY35: / | AZ35: 4178 | BA35: RESAL - Spain | BB35: 04/2018 | BC35: FAB | BD35: Yes | BE35: 2016 | BF35: / | BG35: RC3682 | BH35: 25B20 | BI35: Audit process
C36: MMF | D36: A1 Phosphoric acid | E36: H3PO4 | K36: 125 - 200 | M36: 60 | N36: 40 | O36: 1.711 | T36: <15 | V36: <0,1% | AD36: 783 - Monofilament | AE36: 50 | AJ36: / | AK36: / | AM36: 45 | AN36: No/No | AO36: No/No | AP36: No/No | AQ36: / | AR36: 5170 | AS36: 124.1 | AT36: 15 | AV36: 0,13 | AZ36: 4219 | BA36: LEBANON CHEMICALS | BB36: 10/2017 | BC36: FAB | BD36: Yes | BE36: 2003 | BG36: 216 | BH36: 24
E37: / | AZ37: 4301 | BA37: SIMPLOT Pocatello - Don Plant | BB37: 06/2022 | BC37: ATF
C38: CCH | D38: P4 Other chemicals | E38: Product Y | F38: / | G38: / | H38: / | I38: / | J38: / | K38: / | L38: / | M38: 7.25 | N38: 82 | O38: 1 | P38: / | Q38: 8 | R38: / | S38: / | T38: / | U38: / | V38: / | W38: / | X38: / | Y38: / | Z38: / | AA38: / | AB38: / | AC38: / | AD38: MICHELIN KARLSRUHE - 283 - Mono | AE38: 22.5 | AF38: 8.5 | AG38: No washing | AH38: No washing | AI38: No washing | AJ38: No washing | AK38: No washing | AL38: No washing | AM38: 30 | AN38: Yes/No | AO38: Yes/Yes | AP38: (S)/No | AQ38: 50 | AR38: 1000 | AS38: / | AT38: 30 | AU38: 23 (surfactant or pressure) 27 (hot air) | AV38: / | AW38: / | AX38: / | AY38: / | AZ38: 4305 | BA38: MICHELIN KARLSRUHE | BB38: 04/2019 | BC38: FR | BD38: / | BE38: / | BG38: / | BH38: 3 | BI38: Moisture varies heavly between 25 and 32% because of the variations of the entering slurry. Injection of hot air does not have any impact on cake moisture. Pressure and surfactant have a good impact on cake moisture.
C39: MMF | D39: N3 Nickel, Cobalt and Manganese | E39: Gypsum | F39: 19 | G39: 67.5 | H39: 1.185 | I39: / | J39: / | K39: / | L39: 6 | M39: 19.8 | N39: 67.5 | O39: 1.17 | P39: / | Q39: 5.98 | R39: 55 | S39: / | T39: 45 | U39: / | V39: "back to decanter" | W39: / | X39: / | Y39: / | Z39: Recovery = 95,5 | AA39: / | AB39: / | AC39: / | AD39: C. CRAMER & CO. - 360 - Mono/mono | AE39: 25 | AF39: 7 | AG39: Water - 2CC+1D | AH39: 50 | AI39: 1 | AJ39: 7 | AK39: / | AL39: / | AM39: 12 | AN39: No/No | AO39: No/No | AP39: (F)AN 910 SH - 65g/Tdry solids 0,5g/L/Yes | AQ39: 68 | AR39: 648 | AS39: 78 | AT39: 45.7 | AU39: 46,9 (flocculant) | AV39: 0.05 | AW39: / | AX39: / | AY39: Recovery > 99% | AZ39: 4307 | BA39: VALE NOUVELLE CALEDONIE | BB39: 06/2019 | BC39: FAB | BD39: / | BE39: / | BF39: / | BG39: / | BH39: 4*120 (120B40) | BI39: Concentration in solids varies heavly between the days of tests (from 23,7 to 18). Concentration of Ni in solids around 0,6%; Concentration of Ni in aqueous phase around 2400 mg/L. Other flocculant from SNF were tested but AN 910 SH was the best. Flocculants were used by VALE but was prouved to be non-necessary.
C40: MMF | D40: N3 Nickel, Cobalt and Manganese | E40: Gypsum | F40: 19 | G40: 67.5 | H40: 1.185 | I40: / | J40: / | K40: / | L40: 6 | M40: 19.8 | N40: 67.5 | O40: 1.17 | P40: / | Q40: 5.98 | R40: 55 | S40: / | T40: 45 | U40: / | V40: "back to decanter" | W40: / | X40: / | Y40: / | Z40: Recovery = 95,5 | AA40: / | AB40: / | AC40: / | AD40: C. CRAMER & CO. - 360 - Mono/mono | AE40: 25 | AF40: 7 | AG40: Water - 2CC+1D | AH40: 50 | AI40: 1 | AJ40: 7 | AK40: / | AL40: / | AM40: 12 | AN40: No/No | AO40: No/No | AP40: (F)AN 910 SH - 65g/Tdry solids 0,5g/L/No | AQ40: 68 | AR40: 608 | AS40: 73 | AT40: 45.7 | AU40: 46,9 (flocculant) | AV40: 0.3 | AW40: / | AX40: / | AY40: Recovery > 99% | AZ40: 4307 | BA40: VALE NOUVELLE CALEDONIE | BB40: 06/2019 | BC40: FAB | BD40: / | BE40: / | BF40: / | BG40: / | BH40: 4*120 (120B40) | BI40: Concentration in solids varies heavly between the days of tests (from 23,7 to 18). Concentration of Ni in solids around 0,6%; Concentration of Ni in aqueous phase around 2400 mg/L. Other flocculant from SNF were tested but AN 910 SH was the best. Flocculants were used by VALE but was prouved to be non-necessary.
C41: MMF | D41: K3 Waste/dust tailing valorization | E41: PX301 - Gypsum | F41: / | G41: / | H41: / | I41: / | J41: / | K41: / | L41: / | M41: 18.5 | N41: / | O41: 1.15 | P41: / | Q41: / | R41: / | S41: / | T41: / | U41: / | V41: / | W41: / | X41: / | Y41: / | Z41: / | AA41: / | AB41: / | AC41: / | AD41: 120 (30µm) - Mono/mono Std | AE41: 25 | AF41: 5.5 | AG41: Distilled water - 1CC+1D | AH41: 20 | AI41: 0.33 | AJ41: / | AK41: / | AL41: / | AM41: 60 | AN41: No/No | AO41: Yes/No | AP41: (S)/No | AQ41: 76 | AR41: 568 | AS41: 8,1 | AT41: <35 | AU41: 25 (pressure) 28(surfactant) 18(pressure+surfactant) | AV41: 0.05 | AW41: Zinc | AX41: 0.002 | AY41: / | AZ41: 4309 | BA41: American Zinc Products LLC - Mooresboro Plant | BB41: 04/2019 | BC41: FAB | BD41: / | BE41: / | BF41: / | BG41: / | BH41: 14.3
C42: MMF | D42: K3 Waste/dust tailing valorization | E42: PX301 - Gypsum | F42: / | G42: / | H42: / | I42: / | J42: / | K42: / | L42: / | M42: 18.5 | N42: / | O42: 1.15 | P42: / | Q42: / | R42: / | S42: / | T42: / | U42: / | V42: / | W42: / | X42: / | Y42: / | Z42: / | AA42: / | AB42: / | AC42: / | AD42: 120 (50µm) - Mono/mono Std | AE42: 25 | AF42: / | AG42: Distilled water - 1CC+1D | AH42: 20 | AI42: 0.31 | AJ42: / | AK42: / | AL42: / | AM42: 60 | AN42: No/No | AO42: Yes/No | AP42: (S)/No | AQ42: 76 | AR42: 606 | AS42: 8,7 | AT42: 30 | AU42: 19 (pressure+surfactant) | AV42: 0.1 | AW42: Zinc | AX42: 0,225% | AY42: / | AZ42: 4309 | BA42: American Zinc Products LLC - Mooresboro Plant | BB42: 04/2019 | BC42: FAB | BD42: / | BE42: / | BF42: / | BG42: / | BH42: 14.3
C43: MMF | D43: K3 Waste/dust tailing valorization | E43: PX301 - Gypsum | F43: / | G43: / | H43: / | I43: / | J43: / | K43: / | L43: / | M43: 18.5 | N43: 37.5 | O43: 1.15 | P43: / | Q43: / | R43: / | S43: / | T43: / | U43: / | V43: / | W43: / | X43: / | Y43: / | Z43: / | AA43: / | AB43: / | AC43: / | AD43: 120 (30µm) - Double Layer | AE43: 25 | AF43: / | AG43: Distilled water - 1CC+1D | AH43: 20 | AI43: 0.33 | AJ43: / | AK43: / | AL43: / | AM43: 120 | AN43: No/No | AO43: No/No | AP43: No/No | AQ43: 136 | AR43: 318 | AS43: 4,5 | AT43: 30 | AU43: / | AV43: 0.05 | AW43: Zinc | AX43: 0.0009 | AY43: / | AZ43: 4309 | BA43: American Zinc Products LLC - Mooresboro Plant | BB43: 04/2019 | BC43: FAB | BD43: / | BE43: / | BF43: / | BG43: / | BH43: 14.3
C44: CCH | D44: P4 Other chemicals | E44: Styrene | F44: / | G44: / | H44: / | I44: / | J44: / | K44: / | L44: / | M44: / | N44: / | O44: / | P44: / | Q44: / | R44: / | S44: / | T44: / | U44: / | V44: / | W44: / | X44: / | Y44: / | Z44: / | AA44: / | AB44: / | AC44: / | AD44: / | AE44: / | AF44: / | AG44: / | AH44: / | AI44: / | AJ44: / | AK44: / | AL44: / | AM44: / | AN44: / | AO44: / | AP44: / | AQ44: / | AR44: / | AS44: / | AT44: / | AU44: / | AV44: / | AW44: / | AX44: / | AY44: / | AZ44: 4315 | BA44: Mixt Composites Recyclables | BB44: 06/2019 | BC44: Not adapted to filtration | BD44: / | BE44: / | BG44: / | BI44: None of the cloth tested enabled filtration, test with a precoat wasn't conclusive.
C45: MMF | D45: D3 Uranium | E45: Yellow cake diluted (Uranium) | F45: / | G45: / | H45: / | I45: / | J45: / | K45: 8.002 | L45: / | M45: 13 | N45: 20 | O45: 1.14 | P45: / | Q45: 3.5 | R45: / | S45: / | T45: minimum | U45: / | V45: / | W45: / | X45: / | Y45: / | Z45: Recovery > 95% | AA45: / | AB45: minimum | AC45: / | AD45: 12 - Double Layer Mono/multi | AE45: 5 | AF45: 220 | AG45: Tests dropped | AH45: Tests dropped | AI45: Tests dropped | AJ45: Tests dropped | AK45: Tests dropped | AL45: Tests dropped | AM45: Tests dropped | AN45: Tests dropped | AO45: Tests dropped | AP45: (F)/No | AQ45: Tests dropped | AR45: Tests dropped | AS45: / | AT45: Tests dropped | AU45: Tests dropped | AV45: 0.28 | AW45: / | AX45: / | AY45: Tests dropped | AZ45: 4316 | BA45: Nex Gen - Wood | BB45: 07/2019 | BC45: Not adapted to FAB | BD45: / | BE45: / | BG45: / | BI45: Yellow cake diluted due to high viscosity, 26% solids content in the slurry before dilution; "d50 too low, the product doesn't correspond to standard Yallow cake and cannot be considered as representative."; solids are too thin and go through cloths; filtration time too high; (F) injections: 1st- 70% ; 2nd: 30%/ Flocculant tested: AN 905 SH; AN 910 SH, AN 923 SH, AN 945 SH, AN 956 SH, AN 977 SH, FA 920 SH, AH 912 SH, FO 4190, FO 4440, FO 4650 / Tested flocculants do not have any impact on filtration time. Tests were droped after discussion
C46: MMF | D46: D3 Uranium | E46: Gypsum LUGP (Uranium) | F46: / | G46: / | H46: / | I46: / | J46: / | K46: 39.6 | L46: / | M46: 24.3 | N46: 20 | O46: 1.16 | P46: / | Q46: 3 | R46: / | S46: / | T46: minimum | U46: / | V46: 0.5 | W46: / | X46: pH=6,5 | Y46: / | Z46: Recovery > 99,75% | AA46: / | AB46: minimum | AC46: / | AD46: 120 - Double Layer Mono/mono | AE46: 37.5 | AF46: 11 | AG46: Tap Water - 2D | AH46: / | AI46: 1.25 | AJ46: 8 | AK46: / | AL46: / | AM46: 60 | AN46: No/No | AO46: Yes/? | AP46: No/No | AQ46: / | AR46: 670 | AS46: 7 | AT46: 30 | AU46: 22,5 (pressure) | AV46: 0.026 | AW46: / | AX46: pH = 6,5 | AY46: Recovery = 99,86% | AZ46: 4316 | BA46: Nex Gen - Wood | BB46: 07/2019 | BC46: FAB | BD46: / | BE46: / | BF46: / | BG46: / | BH46: 10.5 | BI46: decreases and the content of solids in the cake increases with the use of pressure
C47: MMF | D47: D3 Uranium | E47: Leach residue + Gypsum + Precipitates HPG (Uranium) | F47: / | G47: / | H47: / | I47: / | J47: / | K47: 14.24 | L47: / | M47: 25 | N47: 20 | O47: 1.06 | P47: / | Q47: 7 | R47: / | S47: / | T47: minimum | U47: / | V47: 0.5 | W47: / | X47: / | Y47: / | Z47: / | AA47: / | AB47: / | AC47: / | AD47: 840 - Double Layer Mono/mono | AE47: 11 | AF47: 90 | AG47: No washing | AH47: No washing | AI47: No washing | AJ47: No washing | AK47: No washing | AL47: No washing | AM47: 30 | AN47: No/No | AO47: Yes/No | AP47: (F)FA920SH - 275g/Tdry solids 0,5g/L/Yes | AQ47: / | AR47: 230 | AS47: / | AT47: 39 | AU47: 44 (flocculant and pressure) | AV47: 0.293 | AW47: / | AX47: / | AY47: / | AZ47: 4316 | BA47: Nex Gen - Wood | BB47: 07/2019 | BC47: FAB | BD47: / | BE47: / | BF47: / | BG47: / | BI47: (F) injections: 1st- 70% ; 2nd: 30%; all flocculants tested: AN 905 SH, AN 923 SH, FA 920 SH
C48: MMF | D48: D3 Uranium | E48: Leach Residue + Tailings HP (Uranium) | F48: / | G48: / | H48: / | I48: / | J48: / | K48: 22 | L48: / | M48: 27.5 | N48: 20 | O48: 1.1 | P48: / | Q48: 9 | R48: / | S48: / | T48: minimum | U48: / | V48: / | W48: / | X48: / | Y48: / | Z48: / | AA48: / | AB48: / | AC48: / | AD48: 260 - Double Layer Mono/mono | AE48: 8 | AF48: 100 | AG48: No washing | AH48: No washing | AI48: No washing | AJ48: No washing | AK48: No washing | AL48: No washing | AM48: 30 | AN48: No/No | AO48: Yes/No | AP48: (F) FA920SH - 325g/Tdry solids 0,5g/L/Yes | AQ48: / | AR48: 400 | AS48: 39 | AT48: 44.5 | AU48: tdrying = 60s: 39,5(pressure), 43(surfactant) | AV48: 0.0417 | AW48: / | AX48: / | AY48: / | AZ48: 4316 | BA48: Nex Gen - Wood | BB48: 07/2019 | BC48: FAB | BD48: / | BE48: / | BF48: / | BG48: / | BI48: (F) injections: 1st- 70% ; 2nd: 30%; all flocculants tested: AN 905 SH, AN 923 SH, FA 920 SH
C49: MMF | D49: D3 Uranium | E49: Neutralized Leach Residue HGNLR (Uranium) | F49: / | G49: / | H49: / | I49: / | J49: / | K49: 21.61 | L49: / | M49: 49 | N49: 20 | O49: 1.45 | P49: / | Q49: 8.5 | R49: / | S49: / | T49: minimum | U49: / | V49: / | W49: / | X49: / | Y49: / | Z49: / | AA49: / | AB49: / | AC49: / | AD49: 240 - Double Layer Mono/mono | AE49: 8 | AF49: 100 | AG49: No washing | AH49: No washing | AI49: No washing | AJ49: No washing | AK49: No washing | AL49: No washing | AM49: 30 | AN49: Yes (100°C)/No | AO49: Yes/? | AP49: (S) and(F)FA920SH - 175g/Tdry solids 0,5g/L/Yes | AQ49: / | AR49: 830 | AS49: 51 | AT49: 30 | AU49: tdrying = 60s: 25(pressure), 27,5(surfactant), 30(hot air) | AV49: 0.065 | AW49: / | AX49: / | AY49: / | AZ49: 4316 | BA49: Nex Gen - Wood | BB49: 07/2019 | BC49: FAB | BD49: / | BE49: / | BF49: / | BG49: / | BH49: 63 | BI49: (F) injections: 1st- 70% ; 2nd: 30%; all flocculants tested: AN 905 SH, AN 923 SH, FA 920 SH; Surfactant and pressure effects on moisture do not add up (surfactant + pressure = 25% moisture)
C50: MMF | D50: D3 Uranium | E50: UNLR - Leach Residue (Uranium) | F50: / | G50: / | H50: / | I50: / | J50: / | K50: 12.97 | L50: / | M50: 45 | N50: 50 | O50: 1.438 | P50: / | Q50: 0 | R50: / | S50: / | T50: minimum | U50: / | V50: / | W50: / | X50: / | Y50: / | Z50: Recovery > 99,5 % | AA50: / | AB50: minimum | AC50: / | AD50: 120 - Double Layer Mono/mono | AE50: 8 | AF50: 100 | AG50: "Solution" - 1CC+1D | AH50: / | AI50: 2 | AJ50: 1.5 | AK50: / | AL50: / | AM50: 30 | AN50: No/No | AO50: Yes/Yes | AP50: (F)FA920SH - 325g/Tdry solids 0.5g/L/No | AQ50: / | AR50: 120 | AS50: 51 | AT50: 35 | AU50: 25 (tdrying =60s+pressure) | AV50: =2.62*10^-3*100 -> 0.262 | AW50: / | AX50: / | AY50: Recovery = 99,5% | AZ50: 4316 | BA50: Nex Gen - Wood | BB50: 07/2019 | BC50: FAB | BD50: / | BE50: / | BF50: / | BG50: / | BH50: 3*147 | BI50: (F) injections: 1st- 70% ; 2nd: 30% / All floccluants tested AN 905 SH;AN 910 SH;AN 923 SH;AN 945 SH;AN 956 SH;AN 977 SH;FA 920 SH;AH 912 SH;FO 4190;FO 4440;FO 4650;Magnafloc 351; We can observe that the use of pressure has a positive impact on the moisture of the cake. objectiv of recovery reached with a W/R between 1.5 and 2.5
C51: CCH | D51: J4 Pharmaceuticals / Perfume intermediate / Cosmetics | E51: Adjuvant | F51: / | G51: / | H51: / | I51: / | J51: / | K51: 20.5 | L51: / | M51: 3 | N51: 65 | O51: 1 | P51: / | Q51: 11.8 | R51: / | S51: / | T51: / | U51: / | V51: / | W51: / | X51: / | Y51: / | Z51: / | AA51: / | AB51: / | AC51: / | AD51: 00930W - 200 - Multi | AE51: / | AF51: / | AG51: / | AH51: / | AI51: / | AJ51: / | AK51: / | AL51: / | AM51: / | AN51: / | AO51: / | AP51: / | AQ51: / | AR51: / | AS51: / | AT51: / | AU51: / | AV51: 0.014 | AW51: / | AX51: / | AY51: / | AZ51: 4317 | BA51: SPI PHARMA | BB51: 04/2019 | BC51: FR | BD51: / | BE51: / | BG51: / | BI51: Slurry had different particle sized between the days of test (d50=27 1st day and d50=14 2nd day). The objectiv of the test was only to determine a new optimal cloth
C52: MMF | D52: J3 Metals recycling | E52: Aluminium slags | F52: 65 | G52: 60 | H52: / | I52: / | J52: 1.4 | K52: 300 | L52: 11.3 | M52: 34 | N52: 65 | O52: 1.4 | P52: / | Q52: 11.3 | R52: / | S52: / | T52: / | U52: / | V52: / | W52: / | X52: chlorides<3% | Y52: 1 | Z52: / | AA52: / | AB52: / | AC52: / | AD52: 23-1001-K056 - 252 | AE52: 15 | AF52: 20 | AG52: Water - 1D | AH52: 20 | AI52: 0.35 | AJ52: / | AK52: / | AL52: / | AM52: 25 | AN52: No/No | AO52: No/No | AP52: No/No | AQ52: / | AR52: / | AS52: / | AT52: 32.5 | AU52: / | AV52: 0.17 | AW52: Chloride | AX52: <3% | AY52: / | AZ52: 4326 | BA52: BEFESA - Valladolid | BB52: 07/2019 | BC52: FAB | BD52: Yes | BE52: 2007 | BF52: 510338 | BG52: / | BH52: 45 | BI52: The data of this report is about the pannevis filter (obtained during an audit). Solids content in filtrates varies from 1,4 to 2 g/L in laboratory scale and from 0,88 to 0,94 in industrial scale; optimum cake thickness varied between the 2 days of tests because of the variation of the presence of fine particles in the slurry.
C53: CCH | D53: H4 Soda Ash | E53: Soda Ash | F53: / | G53: / | H53: / | I53: / | J53: / | K53: / | L53: / | M53: 19 | N53: 32 | O53: 1.2 | P53: / | Q53: 8 | R53: / | S53: / | T53: / | U53: / | V53: / | W53: / | X53: / | Y53: / | Z53: / | AA53: / | AB53: / | AC53: / | AD53: 240 - Double Layer Weave | AE53: 28 | AF53: 4 | AG53: Condensate and soft water - 1CC+2D (last washing splitted) | AH53: 33 | AI53: 1 | AJ53: / | AK53: / | AL53: / | AM53: 40 | AN53: Yes/No | AO53: Yes/No | AP53: (S) Flodri DA470/No | AQ53: / | AR53: 700 | AS53: 20,8 | AT53: 23.4 | AU53: 15(pressure+surfactant) 18(surfactant) 21(pressure) 23 (hot air) | AV53: 0.03 | AW53: Chloride | AX53: 0.0007 | AY53: / | AZ53: 4328 | BA53: SODA SISECAM LUKAVAC | BB53: 11/2019 | BC53: FAB | BD53: / | BE53: / | BF53: / | BG53: / | BH53: 30 | BI53: Results of a lab test done in order to size a new unit. Surfactant used is no-ionic, organic, ethoxylate (C11-C16); the use of dry air doesn't affect positively the cake moisture; surfactant lower the moisture however increasing the volume of surfactant doesn't improve it (1,0l/T => 17,8% against 5,0l/T =>20,6)
C54: CCH | D54: K4 Sugars, starches, proteins, bioproducts, alcohol, edible oil and derivates | E54: Wood Biomass | F54: / | G54: / | H54: / | I54: / | J54: 5 | K54: / | L54: / | M54: 10.75 | N54: 70 | O54: 1.45 | P54: / | Q54: 3 | R54: / | S54: / | T54: minimum | U54: / | V54: 2 | W54: / | X54: / | Y54: / | Z54: Recovery > 95,5% | AA54: / | AB54: / | AC54: / | AD54: 1290 - Mono | AE54: 17 | AF54: 30 | AG54: Tap water - 2CC+1D | AH54: 60 | AI54: 14 | AJ54: / | AK54: / | AL54: / | AM54: 15 | AN54: Yes/No | AO54: Yes/No | AP54: No/No | AQ54: / | AR54: 43 | AS54: / | AT54: 66 | AU54: 66 (pressure) 66,5 (hot air) | AV54: 1.28 | AW54: / | AX54: / | AY54: Recovery = 99,5% | AZ54: 4334 | BA54: Arbiom | BB54: 10/2019 | BC54: FAB | BD54: / | BE54: / | BF54: / | BG54: / | BH54: 0.5 | BI54: d50 100-5000; sizing of a pilot; small influence of drying time on cake moisture
C55: MMF | D55: H3 Aluminium and bayer alumina | E55: Alumine | F55: / | G55: / | H55: / | I55: / | J55: / | K55: 50 | L55: / | M55: 3.9 | N55: 60 | O55: 1.054 | P55: / | Q55: 9.7 | R55: / | S55: / | T55: <85 | U55: / | V55: 0.015 | W55: / | X55: / | Y55: / | Z55: / | AA55: / | AB55: / | AC55: / | AD55: SEFAR 05-11-360K | AE55: 11 | AF55: 40 | AG55: Demineralized water - 1D | AH55: 60 | AI55: 18 | AJ55: / | AK55: / | AL55: / | AM55: 30 | AN55: No/No | AO55: No/No | AP55: No/No | AQ55: / | AR55: 93 | AS55: 1,439 | AT55: 71 | AU55: / | AV55: 0.007 | AW55: Sodium - Sulfates | AX55: 0,5750% - 0,0450% | AY55: / | AZ55: 4339 | BA55: AXENS | BB55: 10/2019 | BC55: FAB | BD55: / | BE55: / | BF55: / | BG55: / | BH55: 16 | BI55: "Taille filtre offre budgétaire n°719311"
C56: MMF | D56: H3 Aluminium and bayer alumina | E56: Alumine | F56: / | G56: / | H56: / | I56: / | J56: / | K56: 10 | L56: / | M56: 3.5 | N56: 60 | O56: 1.066 | P56: / | Q56: 9.8 | R56: / | S56: / | T56: <85 | U56: / | V56: 0.015 | W56: / | X56: sodium<0,04% - SO4<0,3% | Y56: / | Z56: / | AA56: / | AB56: / | AC56: / | AD56: SEFAR 05-11-360K | AE56: 9 | AF56: 42 | AG56: Demineralized water - 1D | AH56: 60 | AI56: 30 | AJ56: / | AK56: / | AL56: / | AM56: 30 | AN56: No/No | AO56: No/No | AP56: No/No | AQ56: / | AR56: 29 | AS56: 1,306 | AT56: 84 | AU56: / | AV56: 0.007 | AW56: Sodium - Sulfates | AX56: 0,4800% - 0,1% | AY56: / | AZ56: 4339 | BA56: AXENS | BB56: 10/2019 | BC56: FAB | BD56: / | BE56: / | BF56: / | BG56: / | BH56: 45 | BI56: q
C57: CCH | D57: I4 Specialty acids / vitamins / specialty acids | E57: Lactic acid + Gypsum | F57: / | G57: / | H57: / | I57: / | J57: / | K57: / | L57: / | M57: 12.5 | N57: 80 | O57: 1.159 | P57: / | Q57: 1.8 | R57: 2 | S57: / | T57: minimum | U57: / | V57: minimum | W57: / | X57: "remove lactic acid" | Y57: / | Z57: / | AA57: / | AB57: / | AC57: / | AD57: 240 (50µm) | AE57: 17.5 | AF57: 7.5 | AG57: RO water - 1CC+1D | AH57: 20 | AI57: 1.3 | AJ57: / | AK57: / | AL57: / | AM57: 60 | AN57: Yes (110°C)/No | AO57: Yes/No | AP57: (S)/No | AQ57: / | AR57: 438 | AS57: 2,0 | AT57: <30 | AU57: 23(pressure);39(hot air);30(surfactant) | AV57: 1.23 | AW57: Lactic acid | AX57: 0.001 | AY57: / | AZ57: 4343 | BA57: Glanbia | BB57: 10/2019 | BC57: FAB | BD57: / | BE57: / | BF57: / | BG57: / | BH57: 5 | BI57: Volume of surfactant tested: 0,1; 0,25; 0,5
C58: CCH | D58: G4 Specialty polymers and resins | E58: Acrylic Polymer | F58: / | G58: / | H58: / | I58: / | J58: / | K58: / | L58: / | M58: 10.5 | N58: 80 | O58: 1.004 | P58: / | Q58: 4.3 | R58: / | S58: / | T58: <38 | U58: / | V58: minimum | W58: / | X58: / | Y58: / | Z58: / | AA58: / | AB58: / | AC58: / | AD58: 25 - Mono | AE58: 16 | AF58: 11 | AG58: Tap water - 1D | AH58: 80 | AI58: No results given | AJ58: / | AK58: / | AL58: / | AM58: 60 | AN58: No/No | AO58: No/No | AP58: No/No | AQ58: / | AR58: 260 | AS58: / | AT58: 55 | AU58: / | AV58: "very clear" | AW58: / | AX58: / | AY58: / | AZ58: 4348 | BA58: AKSA AKRILIK KIMYA SAN | BB58: 10/2019 | BC58: FR | BD58: / | BE58: / | BG58: / | BI58: Filtrability between 230 - 290 according to the wash ratio (which could not be determined because results of analysis were not given)
C59: MMF | D59: J3 Metals recycling | E59: Aluminium slags | F59: / | G59: / | H59: / | I59: / | J59: / | K59: / | L59: / | M59: 23 | N59: 75 | O59: 1.34 | P59: / | Q59: 10 | R59: 10 (wet production) | S59: / | T59: <35 | U59: / | V59: / | W59: / | X59: chlorides<0,1% | Y59: / | Z59: / | AA59: / | AB59: / | AC59: / | AD59: 330 | AE59: 12.5 | AF59: 35 | AG59: Condensate water - 2D | AH59: 75 | AI59: 4.75 | AJ59: / | AK59: 320 | AL59: / | AM59: 30 | AN59: No/No | AO59: Yes/Yes | AP59: No/No | AQ59: / | AR59: 210 | AS59: 10 (wet production) | AT59: 42 | AU59: <37(pressure) | AV59: 0.335 | AW59: Chloride | AX59: 0.0002 | AY59: / | AZ59: 4353 | BA59: Raffmetal | BB59: 02/2020 | BC59: FAB | BD59: / | BE59: / | BF59: / | BG59: / | BH59: 30B20
C60: MMF | D60: L3 Zinc and cadmium | E60: Sulphur Flotation concentrate | F60: / | G60: / | H60: / | I60: / | J60: / | K60: 45 | L60: / | M60: 36 | N60: 20 | O60: 1.61 | P60: / | Q60: 1 | R60: 6.06 | S60: / | T60: <13 | U60: / | V60: 0.8 | W60: / | X60: Wextract/Zn<0,47% | Y60: / | Z60: / | AA60: / | AB60: / | AC60: / | AD60: 156 - Single Layer Mono | AE60: 20 | AF60: 10 | AG60: Process water - 1D | AH60: 20 | AI60: 0.5 | AJ60: / | AK60: / | AL60: / | AM60: 30 | AN60: Yes/No | AO60: Yes/Yes | AP60: (S)/No | AQ60: / | AR60: 1395 | AS60: 6.06 | AT60: 17 | AU60: 13(pressure);11(surfactant);20(steam) | AV60: 0.89 | AW60: WExtract/Zn | AX60: 0.0005 | AY60: / | AZ60: 4354 | BA60: Teck | BB60: 02/2020 | BC60: FAB | BD60: / | BE60: / | BF60: / | BG60: / | BH60: 5 | BI60: 36% solid content in slurry 25-27 jan and 45% solid content is slurry in "degraded mode" 23-24 janv; The objectiv regarding the solid content in filtrate is to reach the same performances than the cloth that was currently used; Many temperatures were tested (8°,30°,50°,70°,20°) and no impact of the slurry temperature on the filtration time could be determined;
C61: CCH | D61: E4 Technical silica | E61: Gel | F61: 7.5 | G61: / | H61: / | I61: / | J61: / | K61: / | L61: / | M61: 4.8 | N61: 20 | O61: 1.1 | P61: / | Q61: 10.5 | R61: 1.6 | S61: / | T61: <90 | U61: / | V61: 0.05 | W61: / | X61: Sodium<1,21% - S<0,11% | Y61: / | Z61: / | AA61: / | AB61: / | AC61: / | AD61: 05-8000-C030 - 120 - Double Layer Mono/mono | AE61: 7 | AF61: 75 | AG61: Demineralized water - 1D | AH61: 50 | AI61: 0.5 | AJ61: / | AK61: / | AL61: / | AM61: 30 | AN61: Yes/No | AO61: No/No | AP61: (S)/No | AQ61: / | AR61: 150 | AS61: 1.6 | AT61: 89 | AU61: 90(sprayers);90(surfactant);tdrying=15s 91(hot air) | AV61: 0.029 | AW61: Sodium - S | AX61: 0,45% - 0,05% | AY61: / | AZ61: 4361 | BA61: Solvay | BB61: 02/2020 | BC61: FAB | BD61: / | BE61: / | BF61: / | BG61: / | BH61: 12B15 | BI61: The slurry consist of "very fine particles of sodium aluminium silicate suspended in an aqueous solution of sodium sulfate (Na2SO4)"; flowrate of the slurry: 1600kg/h; sprayers were used on the drying zone to prevent the formation of cracks on the cake
C62: MMF | D62: J3 Metals recycling | E62: Aluminium slags | F62: / | G62: / | H62: / | I62: / | J62: / | K62: 250 | L62: / | M62: 35 | N62: 55 | O62: 1.7 | P62: / | Q62: / | R62: 13 | S62: / | T62: <35 | U62: / | V62: 0.3 | W62: / | X62: chlorides<0,5% | Y62: / | Z62: / | AA62: / | AB62: minimum | AC62: / | AD62: 05-8000-C85 - 360 - DLW | AE62: 8 | AF62: 40 | AG62: Process water - 1CC/2+1D/2 | AH62: 40 | AI62: 3 | AJ62: / | AK62: / | AL62: 20 | AM62: 15 | AN62: No/No | AO62: Yes/No | AP62: Yes/No | AQ62: / | AR62: 241 | AS62: 13 | AT62: 35 | AU62: 30(surfactant);tdrying=30s: 27,5(pressure) | AV62: 0.6 | AW62: Chloride | AX62: <0,5% | AY62: / | AZ62: 4363 | BA62: REFIAL | BB62: 08/2020 | BC62: FAB | BD62: / | BE62: / | BF62: / | BG62: / | BH62: 54B30 | BI62: The slurry consist of "Brine (NaCl+KCl), Dissolved Ammonia - 5-15 g/L Alumnium oxides"; solids concentration varied from 31-37 but could go up to 40 (and up to 50% during lab tests); With the cloudy port solution, the solids content decreased to 0,38g/L;
C63: MMF | D63: J3 Metals recycling | E63: Aluminium slags | F63: 35 | G63: 55 | H63: 1.22 | I63: / | J63: 1 | K63: Avg (760) | L63: 11 | M63: 14 | N63: / | O63: / | P63: / | Q63: / | R63: / | S63: / | T63: / | U63: / | V63: / | W63: / | X63: chlorides<0,25% | Y63: 1 | Z63: / | AA63: / | AB63: / | AC63: / | AD63: 05-8000-C50 HC - 300 - Double Layer | AE63: 5 | AF63: 32 | AG63: 2D | AH63: 60 | AI63: 2.4 | AJ63: / | AK63: / | AL63: / | AM63: 20 | AN63: No/No | AO63: No/No | AP63: No/No | AQ63: 86 | AR63: 174 | AS63: 7 | AT63: 39 | AU63: / | AV63: 0.788 | AW63: Chloride | AX63: <0,20% | AY63: / | AZ63: 4364 | BA63: INTALS | BB63: 02/2020 | BC63: FAB | BD63: / | BE63: / | BF63: / | BG63: / | BH63: 40 | BI63: The objectiv of the audit was to identify vacuum problems and determine the maximum production capacity of the 2 filters (of 50 and 40 sqm). For 40sqm, the maximum production was 7 Tdry solids/h and for 50sqm bewteen 8 and 9 Tdry solids/h.
C64: MMF | D64: J3 Metals recycling | E64: Aluminium slags | F64: 35 | G64: 55 | H64: 1.22 | I64: / | J64: 1 | K64: / | L64: 11 | M64: 14 | N64: / | O64: / | P64: / | Q64: / | R64: 7 | S64: 2 | T64: / | U64: / | V64: / | W64: / | X64: chlorides<0,25% | Y64: 1 | Z64: / | AA64: / | AB64: / | AC64: / | AD64: C50 HC - 300 - Double Layer | AE64: 5 | AF64: 32 | AG64: Process and clean water - 2D | AH64: 60 | AI64: 2.4 | AJ64: / | AK64: / | AL64: / | AM64: 20 | AN64: No/No | AO64: No/No | AP64: No/No | AQ64: 86 | AR64: 174 | AS64: 7 | AT64: 39 | AU64: / | AV64: 0,788 | AW64: Chloride | AX64: <0,20% | AY64: / | AZ64: 4364 | BA64: INTALS | BB64: 02/2020 | BC64: FAB | BD64: Yes | BE64: 2001 | BF64: 509540 | BG64: / | BH64: 40
C65: MMF | D65: J3 Metals recycling | E65: Aluminium slags | F65: 35 | G65: 55 | H65: 1.22 | I65: / | J65: 1 | K65: / | L65: 11 | M65: 14 | N65: / | O65: / | P65: / | Q65: / | R65: 8.5 | S65: 2 | T65: / | U65: / | V65: / | W65: / | X65: chlorides<0,25% | Y65: 1 | Z65: / | AA65: / | AB65: / | AC65: / | AD65: C50 HC - 300 - Double Layer | AE65: 5 | AF65: 32 | AG65: Process and clean water - 2D | AH65: 60 | AI65: 2.4 | AJ65: / | AK65: / | AL65: / | AM65: 20 | AN65: No/No | AO65: No/No | AP65: No/No | AQ65: 86 | AR65: 174 | AS65: 8.5 | AT65: 39 | AU65: / | AV65: 0,788 | AW65: Chloride | AX65: <0,20% | AY65: / | AZ65: 4364 | BA65: INTALS | BB65: 02/2020 | BC65: FAB | BD65: Yes | BE65: 2001 | BF65: / | BG65: 13946 | BH65: 50
C66: CCH | D66: G4 Specialty polymers and resins | E66: PVDF (Grade Solef 5130) | F66: / | G66: / | H66: / | I66: / | J66: / | K66: / | L66: / | M66: 15 | N66: 55 | O66: 1.16 | P66: / | Q66: 5 | R66: 1.2 | S66: / | T66: <27 | U66: / | V66: 0.03 | W66: / | X66: / | Y66: / | Z66: / | AA66: / | AB66: 20 | AC66: / | AD66: SEFAR 23-1020-K052 - 292 - Mono Layer | AE66: 33 | AF66: 5.8 | AG66: Demineralized water - 3D | AH66: 55 | AI66: 20 | AJ66: / | AK66: / | AL66: / | AM66: 60 | AN66: No/No | AO66: Yes/No | AP66: No/No | AQ66: / | AR66: 434 | AS66: 1.2 | AT66: 26.8 | AU66: Tdrying=30s: 25(pressure) | AV66: 0 | AW66: / | AX66: / | AY66: / | AZ66: 4369 | BA66: Solvay | BB66: 07/2020 | BC66: FAB | BD66: / | BE66: / | BF66: / | BG66: / | BH66: 3B5 | BI66: Solides in filtrate not detectable with a precision of 0,01g
C67: CCH | D67: G4 Specialty polymers and resins | E67: PVDF (Grade Solef 75130) | F67: / | G67: / | H67: / | I67: / | J67: / | K67: / | L67: / | M67: 12.5 | N67: 55 | O67: 1.1 | P67: / | Q67: 5 | R67: 1.2 | S67: / | T67: <21 | U67: / | V67: 0.015 | W67: / | X67: / | Y67: / | Z67: / | AA67: / | AB67: 20 | AC67: / | AD67: SEFAR 23-1020-K052 - 292 - Mono Layer | AE67: 33 | AF67: 6 | AG67: Demineralized water - 3D | AH67: 55 | AI67: 20 | AJ67: / | AK67: / | AL67: / | AM67: 60 | AN67: No/No | AO67: No/No | AP67: No/No | AQ67: / | AR67: 636 | AS67: 1.2 | AT67: 19.5 | AU67: / | AV67: 0 | AW67: / | AX67: / | AY67: / | AZ67: 4369 | BA67: Solvay | BB67: 07/2020 | BC67: FAB | BD67: / | BE67: / | BF67: / | BG67: / | BH67: 3B5 | BI67: Solides in filtrate not detectable with a precision of 0,01g
C68: CCH | D68: I4 Specialty acids / vitamins / specialty acids | E68: Salicylic acid | F68: / | G68: / | H68: / | I68: / | J68: / | K68: / | L68: / | M68: 17.5 | N68: 40 | O68: 1.1 | P68: / | Q68: 3 | R68: / | T68: minimum | U68: / | V68: minimum | W68: / | X68: sulfates<0,02% | Y68: / | Z68: / | AA68: / | AB68: / | AC68: / | AD68: SEFAR 05-1001-K079 - 375 - Mono | AE68: 30 | AF68: 1.5 | AG68: Demineralized water - 3D | AH68: 38 | AI68: 2.65 | AJ68: / | AK68: / | AL68: / | AM68: 60 | AN68: No/No | AO68: Yes/No | AP68: No/No | AQ68: / | AR68: 1150 | AS68: 2 | AT68: 17 | AU68: 11(pressure) | AV68: 0.124 | AW68: Sulfates | AX68: 0.00015 | AY68: / | AZ68: 4375 | BA68: SEQENS | BB68: 09/2020 | BC68: FAB | BD68: / | BE68: / | BF68: / | BG68: / | BH68: 3B5
C69: CCH | D69: G4 Specialty polymers and resins | E69: PVDF (Grade Solef 21510) | F69: / | G69: / | H69: / | I69: / | J69: / | K69: / | L69: / | M69: 22 | N69: 55 | O69: 1.1 | P69: / | Q69: 5 | R69: 1.2 | S69: / | T69: <26 | U69: / | V69: 0.03 | W69: / | X69: / | Y69: / | Z69: / | AA69: / | AB69: 20 | AC69: / | AD69: SEFAR 23-1020-K052 - 292 - Mono Layer | AE69: 33 | AF69: 3.8 | AG69: Demineralized water - 3D | AH69: 55 | AI69: 20 | AJ69: / | AK69: / | AL69: / | AM69: 90 | AN69: No/No | AO69: Yes/No | AP69: No/No | AQ69: / | AR69: 410 | AS69: 1.2 | AT69: 23.9 | AU69: Tdrying=30s: 25,1(pressure) | AV69: 0 | AW69: / | AX69: / | AY69: / | AZ69: 4379 | BA69: Solvay | BB69: 10/2020 | BC69: FAB | BD69: / | BE69: / | BF69: / | BG69: / | BH69: 3B5 | BI69: To solvay's demand, the slurry was concentrated to 35% content in solids and it was found that the slurry's concentration in solids has a negligible impact on filtration time and thus on the sizing. Solides in filtrate not detectable with a precision of 0,01g; A drying time of 30s was enough to reach the performances (with a cake moisture of 25%) but the filter which is planned to be common to grades 5130 and 75130 enabled a drying time of 90s.
C70: MMF | D70: H3 Aluminium and bayer alumina | E70: Alumina | F70: / | G70: / | H70: / | I70: / | J70: / | K70: / | L70: / | M70: 49.5 | N70: 70 | O70: 1.563 | P70: / | Q70: / | R70: / | S70: / | T70: minimum | U70: / | V70: 0.5 | W70: / | X70: / | Y70: / | Z70: Na2O<1,0 | AA70: / | AB70: / | AC70: / | AD70: 23-1001-K052 - 252 | AE70: 33 | AF70: 11 | AG70: No washing | AH70: No washing | AI70: No washing | AJ70: No washing | AK70: No washing | AL70: No washing | AM70: 45 | AN70: No/No | AO70: No/No | AP70: No/No | AQ70: / | AR70: / | AS70: 1 | AT70: 5 | AU70: / | AV70: 0.5 | AW70: Na2O<0,1 | AX70: <1,0% | AY70: / | AZ70: 4380 | BA70: ALTEO | BB70: 09/2020 | BC70: ATF | BD70: / | BE70: / | BG70: / | BH70: 2B05
C71: MMF | D71: H3 Aluminium and bayer alumina | E71: Alumina | F71: / | G71: / | H71: / | I71: / | J71: / | K71: / | L71: / | M71: 32 | N71: 75 | O71: 1.57 | P71: / | Q71: / | R71: / | S71: / | T71: minimum | U71: / | V71: 0.5 | W71: / | X71: / | Y71: / | Z71: Na2O<1,0 | AA71: / | AB71: 1 | AC71: / | AD71: 23-1001-K052 - 252 | AE71: 25 | AF71: 12.5 | AG71: Process water - 1CC+1D | AH71: 80 | AI71: 0.7 | AJ71: / | AK71: / | AL71: / | AM71: 45 | AN71: No/No | AO71: No/No | AP71: No/No | AQ71: / | AR71: 1400 | AS71: 1 | AT71: 5 | AU71: / | AV71: 0.5 | AW71: Na2O<0,1 | AX71: <1,0% | AY71: / | AZ71: 4380 | BA71: ALTEO | BB71: 09/2021 | BC71: ATF | BD71: / | BE71: / | BG71: / | BH71: 2B05
C72: MMF | D72: H3 Aluminium and bayer alumina | E72: Alumina | F72: / | G72: / | H72: / | I72: / | J72: / | K72: / | L72: / | M72: 22.5 | N72: 75 | O72: 1.46 | P72: / | Q72: / | R72: / | S72: / | T72: minimum | U72: / | V72: 0.5 | W72: / | X72: / | Y72: / | Z72: Na2O<1,0 | AA72: / | AB72: 1 | AC72: / | AD72: 23-1001-K052 - 252 | AE72: 20 | AF72: 19 | AG72: Process water - 1CC+1D | AH72: 80 | AI72: 0.7 | AJ72: / | AK72: / | AL72: / | AM72: 45 | AN72: No/No | AO72: No/No | AP72: No/No | AQ72: / | AR72: 1150 | AS72: 1 | AT72: 5 | AU72: / | AV72: 0.5 | AW72: Na2O<0,1 | AX72: <1,0% | AY72: / | AZ72: 4380 | BA72: ALTEO | BB72: 09/2022 | BC72: ATF | BD72: / | BE72: / | BG72: / | BH72: 2B05
C73: MMF | D73: H3 Aluminium and bayer alumina | E73: Alumina | F73: / | G73: / | H73: / | I73: / | J73: / | K73: / | L73: / | M73: 13 | N73: 75 | O73: 1.4 | P73: / | Q73: / | R73: / | S73: / | T73: minimum | U73: / | V73: 0.5 | W73: / | X73: / | Y73: / | Z73: Na2O<1,0 | AA73: / | AB73: 1 | AC73: / | AD73: 23-1001-K052 - 252 | AE73: 15 | AF73: 19 | AG73: Process water - 1CC+1D | AH73: 80 | AI73: 0.7 | AJ73: / | AK73: / | AL73: / | AM73: 45 | AN73: No/No | AO73: No/No | AP73: No/No | AQ73: / | AR73: 1000 | AS73: 1 | AT73: 5 | AU73: / | AV73: 0.5 | AW73: Na2O<0,1 | AX73: <1,0% | AY73: / | AZ73: 4380 | BA73: ALTEO | BB73: 09/2023 | BC73: ATF | BD73: / | BE73: / | BG73: / | BH73: 2B05
C74: CCH | D74: I4 Specialty acids / vitamins / specialty acids | E74: Crude terephtalic acid | F74: / | G74: / | H74: / | I74: / | J74: / | K74: / | L74: / | M74: 9 | N74: 60 | O74: 1.084 | P74: / | Q74: 2 | R74: 6 | S74: / | T74: <70 | U74: / | V74: / | W74: / | X74: sodium<0,0025 | Y74: / | Z74: Recovery: CTA>98%; MEG>99,9 (in mother liquor) | AA74: / | AB74: / | AC74: / | AD74: 30 - Double Layer | AE74: 30 | AF74: 36 | AG74: Demineralized water - 2CC+2D | AH74: 60 | AI74: 9.1 | AJ74: / | AK74: 23 | AL74: / | AM74: 15 | AN74: / | AO74: Yes/No | AP74: / | AQ74: / | AR74: 81 | AS74: 6 | AT74: 68.5 | AU74: 58,5 (pressure) | AV74: 0.144 | AW74: Sodium | AX74: 0,0023% | AY74: Recovery: CTA=98,9 | AZ74: 4382 | BA74: CARBIOS | BB74: 10/2020 | BC74: FAB | BD74: / | BE74: / | BF74: / | BG74: / | BH74: 100 | BI74: CTA=terephtalic acid MEG=ethylene glycol; Cake moisture doesn't change much with drying time. CTA and PTA are going to be filtered using the same filter. No information on MEG recovery.
C75: CCH | D75: I4 Specialty acids / vitamins / specialty acids | E75: Pure terephtalic acid | F75: / | G75: / | H75: / | I75: / | J75: / | K75: / | L75: / | M75: 7 | N75: 60 | O75: 1 | P75: / | Q75: / | R75: / | S75: / | T75: <15 | U75: / | V75: / | W75: / | X75: / | Y75: / | Z75: conductivity < 100 µS/cm | AA75: / | AB75: / | AC75: / | AD75: 30 - Double Layer | AE75: 15 | AF75: 15 | AG75: Demineralized water - 1D | AH75: 20 | AI75: 1 | AJ75: / | AK75: 23 | AL75: / | AM75: 30 | AN75: / | AO75: Yes/No | AP75: / | AQ75: / | AR75: 550 | AS75: / | AT75: <25 | AU75: <20 (pressure) | AV75: No results given | AW75: Sodium | AX75: No results given | AY75: conductivity < 100 µS/cm | AZ75: 4382 | BA75: CARBIOS | BB75: 10/2020 | BC75: FAB | BD75: / | BE75: / | BF75: / | BG75: / | BH75: 100 | BI75: CTA=terephtalic acid MEG=ethylene glycol; Cake moisture doesn't change much with drying time. CTA and PTA are going to be filtered using the same filter. No information on MEG recovery.
C76: MMF | D76: E3 Rare Earth | E76: Rares Earths | F76: / | G76: / | H76: / | I76: / | J76: / | K76: / | L76: / | M76: 25 | N76: 20 | O76: 1.182 | P76: / | Q76: / | R76: 78 | S76: / | T76: <20 | U76: / | V76: minimum | W76: / | X76: / | Y76: / | Z76: / | AA76: / | AB76: / | AC76: / | AD76: C20 - 60 | AE76: 9 | AF76: 15 | AG76: No washing | AH76: No washing | AI76: No washing | AJ76: No washing | AK76: No washing | AL76: No washing | AM76: 45 | AN76: No/No | AO76: Yes/Yes | AP76: (F) Kemira Superfloc N300 - 65g/Tdry solids/Yes | AQ76: / | AR76: 700 | AS76: 240 | AT76: <30 | AU76: <20 (pressure).<27(surfactant) | AV76: 0.05 | AW76: / | AX76: / | AY76: / | AZ76: 4384 | BA76: DEWATERING SOLUTIONS | BB76: 09/2020 | BC76: / | BD76: / | BE76: / | BG76: / | BH76: 3*120 | BI76: These results correspond to the results obtained in order to size a first filtration unit which was meant only to dewater the mineral suspension. Other tests were made in order to size a second filtration unit in which a washing to remove a maximum amount of ammonia was planned. however results of the tests were not given. Flocculants were used at a dilution rate of 0,5 g/L. Other flocculant tested was Kemira Superfloc A100
C77: CCH | D77: P4 Other chemicals | E77: Alginate acids | F77: / | G77: / | H77: / | I77: / | J77: / | K77: / | L77: / | M77: / | N77: 20 | O77: 1 | P77: / | Q77: 2.5 | R77: / | S77: / | T77: minimum | U77: / | V77: minimum | W77: / | X77: / | Y77: / | Z77: / | AA77: / | AB77: / | AC77: / | AD77: / | AE77: / | AF77: / | AG77: / | AH77: No washing | AI77: No washing | AJ77: No washing | AK77: No washing | AL77: No washing | AM77: / | AN77: / | AO77: / | AP77: / | AQ77: / | AR77: / | AS77: / | AT77: / | AU77: / | AV77: / | AW77: / | AX77: / | AY77: / | AZ77: 4414 | BA77: BBEPP | BB77: 04/2021 | BC77: Not adapted to filtration | BD77: / | BE77: / | BG77: /
C78: CCH | D78: P4 Other chemicals | E78: Alginate extract - concentrated slurry | F78: 2 | G78: / | H78: / | I78: / | J78: / | K78: / | L78: / | M78: 2.5 | N78: 20 | O78: 1 | P78: / | Q78: 8 | R78: / | S78: / | T78: minimum | U78: / | V78: minimum | W78: / | X78: / | Y78: / | Z78: conductivity < 300 µS/cm | AA78: / | AB78: / | AC78: / | AD78: 1290 - Mono | AE78: 7 | AF78: 45 | AG78: RO water - 2D | AH78: 21 | AI78: 107.5 | AJ78: / | AK78: 23 | AL78: / | AM78: 30 | AN78: No/No | AO78: Yes/No | AP78: No/No | AQ78: / | AR78: 6 | AS78: / | AT78: 94 | AU78: / | AV78: 0.02 | AW78: / | AX78: / | AY78: conductivity = 300 µS/cm | AZ78: 4414 | BA78: BBEPP | BB78: 04/2021 | BC78: FAB | BD78: / | BE78: / | BF78: / | BG78: / | BI78: The use of pressure does not seem to have a big impact on the cake moisture.
C79: CCH | D79: P4 Other chemicals | E79: Alginate extract - light slurry | F79: 2 | G79: / | H79: / | I79: / | J79: / | K79: / | L79: / | M79: 0.65 | N79: 20 | O79: 1 | P79: / | Q79: 8 | R79: / | S79: / | T79: minimum | U79: / | V79: minimum | W79: / | X79: / | Y79: / | Z79: conductivity < 300 µS/cm | AA79: / | AB79: / | AC79: / | AD79: 1290 - Mono | AE79: 4 | AF79: 45 | AG79: RO water - 2D | AH79: 21 | AI79: 107.5 | AJ79: / | AK79: 23 | AL79: / | AM79: 30 | AN79: No/No | AO79: Yes/No | AP79: No/No | AQ79: / | AR79: 6 | AS79: / | AT79: 94 | AU79: / | AV79: 0.02 | AW79: / | AX79: / | AY79: conductivity = 300 µS/cm | AZ79: 4414 | BA79: BBEPP | BB79: 04/2021 | BC79: FAB | BD79: / | BE79: / | BF79: / | BG79: /
C80: CCH | D80: P4 Other chemicals | E80: Alliara 10 - Seaweed + sulfuric acid | F80: 4 | G80: / | H80: / | I80: / | J80: / | K80: / | L80: / | M80: 2.5 | N80: 20 | O80: 1 | P80: / | Q80: 6 | R80: / | S80: / | T80: minimum | U80: / | V80: minimum | W80: / | X80: / | Y80: / | Z80: conductivity < 200 µS/cm | AA80: / | AB80: / | AC80: / | AD80: 1290 - Mono | AE80: 14 | AF80: 4.2 | AG80: RO water - 3D | AH80: 21 | AI80: 62.5 | AJ80: 6 | AK80: 23 | AL80: / | AM80: 30 | AN80: No/No | AO80: Yes/No | AP80: No/No | AQ80: / | AR80: 60 | AS80: / | AT80: 90 | AU80: 86,5 (tdrying= 60s) | AV80: 0.036 | AW80: / | AX80: / | AY80: conductivity = 200 µS/cm | AZ80: 4414 | BA80: BBEPP | BB80: 04/2021 | BC80: FAB | BD80: / | BE80: / | BF80: / | BG80: /
C81: CCH | D81: P4 Other chemicals | E81: Alliaria 10 - Hydrated Seaweed | F81: 4 | G81: / | H81: / | I81: / | J81: / | K81: / | L81: / | M81: 2.5 | N81: 20 | O81: 1 | P81: / | Q81: 6 | R81: / | S81: / | T81: minimum | U81: / | V81: minimum | W81: / | X81: / | Y81: / | Z81: conductivity < 300 µS/cm | AA81: / | AB81: / | AC81: / | AD81: 1290 - Mono | AE81: 20 | AF81: 4 | AG81: RO water - 4D | AH81: 21 | AI81: 55 | AJ81: / | AK81: 23 | AL81: / | AM81: 30 | AN81: No/No | AO81: Yes/No | AP81: No/No | AQ81: / | AR81: 52.5 | AS81: / | AT81: 92 | AU81: 92 | AV81: =0.48/1000*100 -> 0.048 | AW81: / | AX81: / | AY81: conductivity = 300 µS/cm | AZ81: 4414 | BA81: BBEPP | BB81: 04/2021 | BC81: FAB | BD81: / | BE81: / | BF81: / | BG81: /
C82: CCH | D82: P4 Other chemicals | E82: Alliaria 10 - Seaweed + citric acid | F82: / | G82: / | H82: / | I82: / | J82: / | K82: / | L82: / | M82: 1.5 | N82: 20 | O82: 1 | P82: / | Q82: 3.5 | R82: / | S82: / | T82: minimum | U82: / | V82: minimum | W82: / | X82: / | Y82: / | Z82: / | AA82: / | AB82: / | AC82: / | AD82: 1290 - Mono | AE82: 13 | AF82: 4 | AG82: No washing | AH82: No washing | AI82: No washing | AJ82: No washing | AK82: No washing | AL82: No washing | AM82: 30 | AN82: No/No | AO82: Yes/No | AP82: No/No | AQ82: / | AR82: 100 | AS82: / | AT82: 90 | AU82: 85 (tdrying = 60s) | AV82: 0.028 | AW82: / | AX82: / | AY82: / | AZ82: 4414 | BA82: BBEPP | BB82: 04/2021 | BC82: FAB | BD82: / | BE82: / | BF82: / | BG82: / | BI82: The use of pressure does not seem to have a big impact on the cake moisture.
C83: CCH | D83: K4 Sugars, starches, proteins, bioproducts, alcohol, edible oil and derivates | E83: Enzymatic Hydrolysis of Pretreated Wood | F83: 15 | G83: 47.5 | H83: 1.01 | I83: / | J83: / | K83: / | L83: 5 | M83: / | N83: / | O83: / | P83: / | Q83: / | R83: / | S83: / | T83: <70 | U83: / | V83: 1 | W83: / | X83: / | Y83: / | Z83: / | AA83: / | AB83: / | AC83: / | AD83: 1290 - Mono | AE83: 25 | AF83: 16 | AG83: Water - 2CC+1D | AH83: / | AI83: / | AJ83: / | AK83: / | AL83: / | AM83: / | AN83: No/No | AO83: No/No | AP83: No/No | AQ83: / | AR83: / | AS83: / | AT83: / | AU83: / | AV83: / | AW83: / | AX83: / | AY83: / | AZ83: 4417 | BA83: Arbiom / BBEPP | BB83: 05/2021 | BC83: FAB | BD83: / | BE83: / | BF83: / | BG83: /
C84: CCH | D84: P4 Other chemicals | E84: Alginate acids | F84: / | G84: / | H84: / | I84: / | J84: / | K84: / | L84: / | M84: / | N84: 20 | O84: 1 | P84: / | Q84: 1.9 | R84: / | S84: / | T84: minimum | U84: / | V84: minimum | W84: / | X84: / | Y84: / | Z84: / | AA84: / | AB84: / | AC84: / | AD84: 1290 - Single Layer Mono | AE84: 5 | AF84: 300 | AG84: No washing | AH84: No washing | AI84: No washing | AJ84: No washing | AK84: No washing | AL84: No washing | AM84: No drying | AN84: / | AO84: / | AP84: / | AQ84: / | AR84: / | AS84: / | AT84: 99.1 | AU84: / | AV84: / | AW84: / | AX84: / | AY84: / | AZ84: 4422 | BA84: BBEPP | BB84: 07/2021 | BC84: Not adapted to FAB | BD84: / | BE84: / | BG84: /
C85: CCH | D85: P4 Other chemicals | E85: Alginate extract | F85: / | G85: / | H85: / | I85: / | J85: / | K85: / | L85: / | M85: 1 | N85: 20 | O85: 1 | P85: / | Q85: 8 | R85: / | S85: / | T85: minimum | U85: / | V85: minimum | W85: / | X85: / | Y85: / | Z85: / | AA85: / | AB85: / | AC85: / | AD85: 1290 - Single Layer Mono | AE85: 10 | AF85: 5 | AG85: No washing | AH85: No washing | AI85: No washing | AJ85: No washing | AK85: No washing | AL85: No washing | AM85: 30 | AN85: No/No | AO85: No/No | AP85: No/No | AQ85: / | AR85: 48 | AS85: / | AT85: 93.3 | AU85: / | AV85: 0.027 | AW85: / | AX85: / | AY85: / | AZ85: 4422 | BA85: BBEPP | BB85: 07/2021 | BC85: FAB | BD85: / | BE85: / | BF85: / | BG85: /
C86: CCH | D86: P4 Other chemicals | E86: Hydrated seaweed | F86: / | G86: / | H86: / | I86: / | J86: / | K86: / | L86: / | M86: 4.6 | N86: 20 | O86: 1 | P86: / | Q86: 6.5 | R86: / | S86: / | T86: minimum | U86: / | V86: minimum | W86: / | X86: / | Y86: / | Z86: conductivity < 200 µS/cm | AA86: / | AB86: / | AC86: / | AD86: 1290 - Single Layer Mono | AE86: 55 | AF86: 1 | AG86: RO water - 7D | AH86: 20 | AI86: 168 | AJ86: / | AK86: 23 | AL86: / | AM86: 30 | AN86: No/No | AO86: Yes/No | AP86: No/No | AQ86: / | AR86: 140 | AS86: / | AT86: 89 | AU86: / | AV86: 4 | AW86: / | AX86: / | AY86: conductivity < 200 µS/cm | AZ86: 4422 | BA86: BBEPP | BB86: 07/2021 | BC86: FAB | BD86: / | BE86: / | BF86: / | BG86: / | BI86: Pressure does not seem to have any impact on the cake moisture.
C87: CCH | D87: P4 Other chemicals | E87: Seaweed + citric acid | F87: / | G87: / | H87: / | I87: / | J87: / | K87: / | L87: / | M87: 2.15 | N87: 20 | O87: 1 | P87: / | Q87: 2.7 | R87: / | S87: / | T87: minimum | U87: / | V87: minimum | W87: / | X87: / | Y87: / | Z87: / | AA87: / | AB87: / | AC87: / | AD87: 1290 - Single Layer Mono | AE87: 15 | AF87: 4 | AG87: No washing | AH87: No washing | AI87: No washing | AJ87: No washing | AK87: No washing | AL87: No washing | AM87: 30 | AN87: No/No | AO87: No/No | AP87: No/No | AQ87: / | AR87: 70 | AS87: / | AT87: 91.5 | AU87: / | AV87: 0.0463 | AW87: / | AX87: / | AY87: / | AZ87: 4422 | BA87: BBEPP | BB87: 07/2021 | BC87: FAB | BD87: / | BE87: / | BF87: / | BG87: /
C88: CCH | D88: P4 Other chemicals | E88: Seaweed + sulfuric acid | F88: / | G88: / | H88: / | I88: / | J88: / | K88: / | L88: / | M88: 2.2 | N88: 20 | O88: 1 | P88: / | Q88: 2 | R88: / | S88: / | T88: minimum | U88: / | V88: minimum | W88: / | X88: / | Y88: / | Z88: conductivity < 100 µS/cm | AA88: / | AB88: / | AC88: / | AD88: 1290 - Single Layer Mono | AE88: 33 | AF88: 5 | AG88: RO water - 3D | AH88: 20 | AI88: 205 | AJ88: / | AK88: 23 | AL88: / | AM88: 30 | AN88: No/No | AO88: No/No | AP88: No/No | AQ88: / | AR88: 18 | AS88: / | AT88: 91.2 | AU88: / | AV88: 0.019 | AW88: / | AX88: / | AY88: conductivity < 100 µS/cm | AZ88: 4422 | BA88: BBEPP | BB88: 07/2021 | BC88: FAB | BD88: / | BE88: / | BF88: / | BG88: /
C89: ? | D89: ? | E89: Gypsum balls - fresh CRG tamisée (p>53μm) | F89: / | G89: / | H89: / | I89: / | J89: / | K89: 500 | L89: / | M89: 23 | N89: 20 | O89: 1.27 | P89: / | Q89: 12 | R89: 1.7 | S89: / | T89: <10 | U89: / | V89: clear | W89: / | X89: chlorides<0,1% | Y89: / | Z89: / | AA89: / | AB89: / | AC89: / | AD89: 29660K - 250 - Mono | AE89: / | AF89: / | AG89: Demineralized water | AH89: / | AI89: / | AJ89: / | AK89: / | AL89: / | AM89: / | AN89: No/No | AO89: No/No | AP89: (S) Soap/? | AQ89: / | AR89: / | AS89: / | AT89: 13 | AU89: 9 | AV89: Clear (1,25% MES) | AW89: Chloride | AX89: >0,5 | AY89: / | AZ89: 4427 | BA89: SOLVAY | BB89: 12/2021 | BC89: FAB | BD89: / | BE89: / | BF89: / | BG89: / | BI89: Clogging phenomenon observed with fresh CRG and old CRG. Not observed for subdued slurry with cloth 29660K; Concentration in solids not constant during the tests (it varies between 20% and 31%), washing 1D and 2D were tried and were not enough to meet the performances desired in chloride content in the cake.
C90: CCH | D90: A2 Cement | E90: ByPass Dust | F90: / | G90: / | H90: / | I90: / | J90: / | K90: / | L90: / | M90: 30 | N90: 20 | O90: 1.147 | P90: / | Q90: 12 | S90: / | T90: minimum | U90: / | V90: / | W90: / | X90: minimum chlorides | Y90: / | Z90: / | AA90: / | AB90: / | AC90: / | AD90: 120 - Double Layer Mono/Mono | AE90: 25 | AF90: 60 | AG90: Raw water | AH90: / | AI90: 1.5 | AJ90: / | AK90: / | AL90: / | AM90: 30 | AN90: Yes/No | AO90: Yes/No | AP90: No/No | AQ90: / | AR90: 296 | AS90: 3 | AT90: 40 | AU90: 40 (tdrying=15s) | AV90: =0.1 -> 0.1 | AW90: Chloride | AX90: No result given | AY90: / | AZ90: 4432 | BA90: KREISEL | BB90: 11/2021 | BC90: FAB | BD90: / | BE90: / | BF90: / | BG90: / | BH90: 15 | BI90: The use of hot air, vapour, vibration, more air flow and hot washing water does not give a significant improvement in cake moisture; analysis of the efficiency of washing staps not given; moisture remain around 40% no matter the concentration in solids in the slurry; the increasing of WR has no influence on cake moisture
C91: CCH | D91: A2 Cement | E91: ByPass Dust | F91: / | G91: / | H91: / | I91: / | J91: / | K91: / | L91: / | M91: 10 | N91: 20 | O91: 1.084 | P91: / | Q91: 12 | R91: / | S91: / | T91: minimum | U91: / | V91: / | W91: / | X91: minimum chlorides | Y91: / | Z91: / | AA91: / | AB91: / | AC91: / | AD91: 120 - Double Layer Mono/Mono | AE91: 8 | AF91: 31 | AG91: Raw water | AH91: / | AI91: 1.5 | AJ91: / | AK91: / | AL91: / | AM91: 30 | AN91: Yes/No | AO91: Yes/No | AP91: No/No | AQ91: / | AR91: 300 | AS91: 3 | AT91: 40 | AU91: 40 (tdrying=15s) | AV91: =1.03/10 -> 0.103 | AW91: Chloride | AX91: No result given | AY91: / | AZ91: 4432 | BA91: KREISEL | BB91: 11/2021 | BC91: FAB | BD91: / | BE91: / | BF91: / | BG91: / | BH91: 15
C92: MMF | D92: C1 Potassium fertilizers | E92: Pota Ash | F92: / | G92: / | H92: / | I92: / | J92: / | K92: / | L92: / | M92: 28 | N92: 21.5 | O92: 1.21 | P92: / | Q92: 7.15 | R92: 55 | S92: 2 | T92: <12 | U92: 1 | V92: / | W92: / | X92: / | Y92: / | Z92: / | AA92: / | AB92: / | AC92: / | AD92: K120 - 498 - Mono | AE92: 8 | AF92: 60 | AG92: No washing | AH92: No washing | AI92: No washing | AJ92: No washing | AK92: No washing | AL92: No washing | AM92: 60 | AN92: No/No | AO92: No/No | AP92: No/No | AQ92: / | AR92: 110 | AS92: 55 | AT92: 9 | AU92: / | AV92: 0.17 | AW92: / | AX92: / | AY92: / | AZ92: 4437 | BA92: NUTRIEN | BB92: 04/2022 | BC92: FR | BD92: / | BE92: / | BG92: / | BH92: 24/40 | BI92: The drying time has an influence on the moisture.
C93: MMF | D93: V3 Building materials, Plaster | E93: Plaster / Sulfate Hemihydrate | F93: / | G93: / | H93: / | I93: / | J93: / | K93: / | L93: / | M93: 44 | N93: 87.5 | O93: 1.38 | P93: / | Q93: 7.07 | R93: 4.93 | S93: 2 | T93: <10 | U93: 1 | V93: / | W93: / | X93: / | Y93: / | Z93: / | AA93: / | AB93: / | AC93: / | AD93: 05-8000-C 030 - 120 - Mono/mono | AE93: 35 | AF93: 10 | AG93: No washing | AH93: No washing | AI93: No washing | AJ93: No washing | AK93: No washing | AL93: No washing | AM93: 60 | AN93: No/No | AO93: No/No | AP93: No/No | AQ93: / | AR93: 1000 | AS93: 4,93 | AT93: 15 | AU93: / | AV93: 1.43 | AW93: / | AX93: / | AY93: / | AZ93: 4439 | BA93: Saint-Gobain | BB93: 02/2022 | BC93: FAB | BD93: / | BE93: / | BF93: / | BG93: / | BH93: 6B10
C94: MMF | D94: MMF - B1 Phosphated fertilizers | E94: Phosphate | F94: / | G94: / | H94: / | I94: / | J94: / | K94: / | L94: / | M94: 55 | N94: 24 | O94: 1.76 | P94: / | Q94: / | R94: 300 | S94: 1 | T94: / | U94: / | V94: / | W94: / | X94: / | Y94: / | Z94: / | AA94: / | AB94: / | AC94: / | AD94: 07-1030-W00 - 2167 - Mono | AE94: 35 | AF94: / | AG94: Desalinated water - 2CC+1D | AH94: 20 | AI94: 0.35 | AJ94: / | AK94: / | AL94: / | AM94: / | AN94: No/No | AO94: No/No | AP94: (S) MT 470 – 20 g/Tdry solids /Yes | AQ94: / | AR94: 2500? | AS94: 300 | AT94: / | AU94: 16 (surfactant) | AV94: / | AW94: Chloride | AX94: <0,07 % | AY94: / | AZ94: 4441 | BA94: Miski Mayo - Peru | BB94: 02/2022 | BC94: FAB | BD94: / | BE94: / | BF94: / | BG94: / | BH94: 120B40
C95: CCH | D95: O4 Enzymes and yeasts | E95: Betainex (K2SO4) | F95: / | G95: / | H95: / | I95: / | J95: / | K95: / | L95: / | M95: 20 | N95: 37.5 | O95: 1.05 | P95: / | Q95: / | R95: / | S95: / | T95: <8 | U95: 1 | V95: / | W95: / | X95: / | Y95: / | Z95: / | AA95: / | AB95: / | AC95: / | AD95: 1101 - Mono | AE95: 20 | AF95: 25 | AG95: Raw water | AH95: 20 | AI95: / | AJ95: / | AK95: / | AL95: / | AM95: / | AN95: No/No | AO95: No/No | AP95: No/No | AQ95: / | AR95: =3*1000/6 -> 500 | AS95: 3 | AT95: 7 | AU95: / | AV95: / | AW95: / | AX95: / | AY95: / | AZ95: 4444 | BA95: Biospringer | BB95: 12/2022 | BC95: FR? | BD95: / | BE95: / | BG95: / | BI95: Filtration impossible defore decantation
C96: CCH | D96: O4 Enzymes and yeasts | E96: Vinasse Safralic (K2SO4) | F96: / | G96: / | H96: / | I96: / | J96: / | K96: / | L96: / | M96: 15 | N96: 37.5 | O96: 1.025 | P96: / | Q96: / | R96: / | S96: / | T96: <8 | U96: 1 | V96: / | W96: / | X96: / | Y96: / | Z96: / | AA96: / | AB96: / | AC96: / | AD96: 1101 - Mono | AE96: 20 | AF96: 25 | AG96: Washing wort | AH96: 20 | AI96: / | AJ96: / | AK96: / | AL96: / | AM96: / | AN96: No/No | AO96: No/No | AP96: No/No | AQ96: / | AR96: =0.5*1000/6 -> 83.33333333 | AS96: 0,5 | AT96: 7 | AU96: / | AV96: / | AW96: / | AX96: / | AY96: / | AZ96: 4444 | BA96: Biospringer | BB96: 12/2022 | BC96: FR? | BD96: / | BE96: / | BG96: / | BI96: Filtration impossible defore decantation
C97: CCH | D97: P4 Other chemicals | E97: CIBA slugs/ loaded with soda | F97: / | G97: / | H97: / | I97: / | J97: / | K97: / | L97: / | M97: 35 | N97: 21.4 | O97: 1.34 | P97: / | Q97: 9.25 | R97: / | S97: / | T97: / | U97: / | V97: / | W97: / | X97: chlorides<0,5% | Y97: 1 | Z97: / | AA97: / | AB97: / | AC97: / | AD97: 120 - Multifilament | AE97: 15 | AF97: 50 | AG97: Water - 1D | AH97: 20 | AI97: 1 | AJ97: 7.5 | AK97: / | AL97: / | AM97: 15 | AN97: No/No | AO97: No/No | AP97: No/No | AQ97: / | AR97: 400 | AS97: 10 | AT97: 26 | AU97: / | AV97: 0.105 | AW97: Chloride | AX97: <0,4 % | AY97: pH = 9,25 | AZ97: 4447 | BA97: KEMONE | BB97: 05/2022 | BC97: FAB | BD97: / | BE97: / | BF97: / | BG97: / | BH97: 25
C98: MMF | D98: J3 Metals recycling | E98: Aluminium slags | F98: / | G98: / | H98: / | I98: / | J98: / | K98: / | L98: / | M98: 30 | N98: 51 | O98: 1.25 | P98: / | Q98: 10.62 | R98: / | S98: / | T98: <31,5 | U98: / | V98: minimum | W98: / | X98: chlorides<0,5% | Y98: / | Z98: / | AA98: / | AB98: / | AC98: / | AD98: Hasler85 - 660 - DLW | AE98: 5 | AF98: 19 | AG98: Water - 2CC+2D | AH98: 12,5 | AI98: 0.9 | AJ98: / | AK98: / | AL98: / | AM98: 15 | AN98: No/No | AO98: Yes/No | AP98: (S)/No | AQ98: / | AR98: 320 | AS98: 12.7 | AT98: 41 | AU98: / | AV98: / | AW98: Chloride | AX98: 0.003 | AY98: / | AZ98: 4449 | BA98: R.V.A | BB98: 05/2022 | BC98: FAB | BD98: / | BE98: / | BF98: / | BG98: / | BH98: 42B30 | BI98: Drying time has no influence on cake moisture; pressure and surfactant have little influence on cake moisture
C99: Environment | D99: A5 FGD | E99: CaCO3 | F99: / | G99: / | H99: / | I99: / | J99: / | K99: 24.6 | L99: / | M99: 20 | N99: 60 | O99: 1.21 | P99: / | Q99: / | R99: 56.99 | S99: / | T99: <15 | U99: 1 | V99: 0.5 | W99: / | X99: / | Y99: / | Z99: / | AA99: / | AB99: / | AC99: / | AD99: Hasler1 - Mono/mono | AE99: 10 | AF99: 18 | AG99: No washing | AH99: No washing | AI99: No washing | AJ99: No washing | AK99: No washing | AL99: No washing | AM99: / | AN99: No/No | AO99: Yes/No | AP99: (S)(F)/No | AQ99: / | AR99: / | AS99: / | AT99: 40 | AU99: 16,86 (surfactant and particles>40μm) | AV99: 0.12 | AW99: / | AX99: / | AY99: / | AZ99: 4458 | BA99: SKE&S | BB99: 07/2022 | BC99: FAB | BD99: / | BE99: / | BF99: / | BG99: / | BH99: Target performances not reached | BI99: Dewatering time does not influence the residual moisture in the cake; fine particles are a problem to lower the residual moisture of the cake
C100: MMF | D100: J3 Metals recycling | E100: Aluminium slags | F100: / | G100: / | H100: / | I100: / | J100: / | K100: avg(500) | L100: / | M100: / | N100: 15 | O100: 1.09 | P100: / | Q100: 9.2 | R100: 4.42 | S100: / | T100: <30 | U100: / | V100: 0.1 | W100: / | X100: chlorides<1% | Y100: / | Z100: / | AA100: / | AB100: <1,55 | AC100: / | AD100: Hasler6 - Mono/mono | AE100: 24 | AF100: 24 | AG100: Water | AH100: 15 | AI100: 3.61 | AJ100: / | AK100: / | AL100: / | AM100: 30 | AN100: No/No | AO100: No/No | AP100: (F) NALCO 90g/Tdry solid /Yes | AQ100: / | AR100: / | AS100: / | AT100: 27 | AU100: / | AV100: 0.077 | AW100: Chloride | AX100: 0.0068 | AY100: / | AZ100: 4459 | BA100: ALTEK | BB100: 12/2022 | BC100: FAB | BD100: / | BE100: / | BF100: / | BG100: / | BI100: Without flocculant filtration becomes difficult and cake formation time is multiplied by 5, dewatering time has a minimal influence on the residual moisture of the cake
C101: MMF | D101: A1 Phosphoric acid | E101: Phosphoric acid | M101: 32 | N101: 72 | O101: 1.52 | P101: / | Q101: / | AE101: 40 | AZ101: 4462 | BA101: SIMPLOT - Rock Springs Plant | BB101: 06/2022 | BC101: ATF | BD101: / | BE101: / | BG101: /
C102: Environment | D102: A5 FGD | E102: CaCO3 | F102: / | G102: / | H102: / | I102: / | J102: / | K102: size>100 | L102: / | M102: 50 | N102: 60 | O102: / | P102: / | Q102: / | R102: 56.99 | S102: / | T102: <15 | U102: 1 | V102: 3 | W102: / | X102: / | Y102: / | Z102: / | AA102: / | AB102: / | AC102: / | AD102: High permeability | AE102: 11 | AF102: 0.5 | AG102: No washing | AH102: No washing | AI102: No washing | AJ102: No washing | AK102: No washing | AL102: No washing | AM102: 60 | AN102: No/No | AO102: No/No | AP102: No/No | AQ102: / | AR102: 663 | AS102: 56,99 | AT102: 16.7 | AU102: / | AV102: 0.46 | AW102: / | AX102: / | AY102: / | AZ102: 4465 | BA102: SKE&S | BB102: 11/2022 | BC102: FAB | BD102: / | BE102: / | BF102: / | BG102: / | BH102: 90B30 | BI102: The filtration time vs. cake thickness is linear. Dehydration time has an impact on the residual moisture of the cake.
C103: Environment | D103: A5 FGD | E103: CaCO3 | F103: / | G103: / | H103: / | I103: / | J103: / | K103: size around 64 | L103: / | M103: 50 | N103: 60 | O103: / | P103: / | Q103: / | R103: 56.99 | S103: / | T103: <15 | U103: 1 | V103: 3 | W103: / | X103: / | Y103: / | Z103: / | AA103: / | AB103: / | AC103: / | AD103: Middle Permeability | AE103: 11 | AF103: 3 | AG103: No washing | AH103: No washing | AI103: No washing | AJ103: No washing | AK103: No washing | AL103: No washing | AM103: 60 | AN103: No/No | AO103: No/No | AP103: No/No | AQ103: / | AR103: 995.52 | AS103: 56,99 | AT103: 9 | AU103: / | AV103: 0.6 | AW103: / | AX103: / | AY103: / | AZ103: 4465 | BA103: SKE&S | BB103: 11/2022 | BC103: FAB | BD103: / | BE103: / | BF103: / | BG103: / | BH103: 58.5B30 | BI103: The filtration time vs. cake thickness is linear. Dehydration time has an impact on the residual moisture of the cake.
C104: CCH | D104: H4 Soda Ash | E104: Soda Ash | F104: / | G104: / | H104: / | I104: / | J104: / | K104: / | L104: / | M104: 21.5 | N104: 28 | O104: 1.215 | P104: / | Q104: / | R104: 113 | S104: / | T104: <15 | U104: / | V104: / | W104: / | X104: chlorides<0,1% | Y104: / | Z104: / | AA104: / | AB104: 0.7 | AC104: / | AD104: 05-8000-C 085 - 360 - DLW | AE104: 20 | AF104: 9.5 | AG104: Water - 1CC+1D | AH104: 20 | AI104: 0.7 | AJ104: / | AK104: / | AL104: / | AM104: 32 | AN104: No/No | AO104: Yes/Yes | AP104: No/No | AQ104: / | AR104: 1050 | AS104: 113 | AT104: 22,75 (t drying = 32s) | AU104: 19,75 (press) | AV104: / | AW104: Chloride | AX104: <0,1% | AY104: / | AZ104: 4466 | BA104: GHCL - India | BB104: 09/2022 | BC104: FAB | BD104: / | BE104: / | BF104: / | BG104: / | BH104: 108B40
C105: MMF | D105: J3 Metals recycling | E105: Aluminium slags | F105: / | G105: / | H105: / | I105: / | J105: / | K105: / | L105: / | M105: 54.5 | N105: / | O105: / | P105: / | Q105: / | R105: / | S105: / | T105: / | U105: / | V105: / | W105: / | X105: / | Y105: / | Z105: / | AA105: / | AB105: / | AC105: / | AD105: Mo | AE105: / | AF105: / | AG105: Water - 2D | AH105: / | AI105: 0.73 | AJ105: / | AK105: / | AL105: / | AM105: / | AN105: / | AO105: / | AP105: / | AQ105: / | AR105: 270 | AS105: 12 | AT105: 22 | AU105: / | AV105: / | AW105: / | AX105: / | AY105: / | AZ105: / | BA105: BEFESA | BB105: / | BC105: / | BD105: / | BE105: / | BG105: / | BH105: 45 | BI105: data from "documentations process" folder
C106: MMF | D106: J3 Metals recycling | E106: Aluminium slags | F106: / | G106: / | H106: / | I106: / | J106: / | K106: / | L106: / | M106: 17.8 | N106: / | O106: / | P106: / | Q106: / | R106: / | S106: / | T106: / | U106: / | V106: / | W106: / | X106: / | Y106: / | Z106: / | AA106: / | AB106: / | AC106: / | AD106: SEFAR - Mo/Mo (30µm) | AE106: / | AF106: 90 | AG106: Water - 3D | AH106: / | AI106: 1.27 | AJ106: / | AK106: / | AL106: / | AM106: 15 | AN106: / | AO106: / | AP106: / | AQ106: 150 | AR106: 160 | AS106: 6.3 | AT106: 15.9 | AU106: / | AV106: / | AW106: / | AX106: / | AY106: / | AZ106: / | BA106: VEDANI | BB106: / | BC106: / | BD106: / | BE106: / | BG106: / | BH106: 40 | BI106: data from "documentations process" folder
C107: MMF | D107: G3 Industrial minerals | E107: BZS | F107: / | G107: / | H107: / | I107: / | J107: / | K107: / | L107: / | M107: 21 | N107: / | O107: / | P107: / | Q107: / | R107: / | S107: / | T107: / | U107: / | V107: / | W107: / | X107: / | Y107: / | Z107: / | AA107: / | AB107: / | AC107: / | AD107: / | AE107: / | AF107: 35 | AG107: Water - 1D | AH107: / | AI107: 1.67 | AJ107: / | AK107: / | AL107: 5 | AM107: 40 | AN107: / | AO107: / | AP107: / | AQ107: 95 | AR107: 250 | AS107: 6 | AT107: 16.7 | AU107: / | AV107: / | AW107: / | AX107: / | AY107: / | AZ107: / | BA107: HZL | BB107: / | BC107: / | BD107: / | BE107: / | BG107: / | BH107: 24 | BI107: data from "documentations process" folder
C108: MMF | D108: N3 Nickel, Cobalt and Manganese | E108: Carbonate nickel | F108: / | G108: / | H108: / | I108: / | J108: / | K108: / | L108: / | M108: 45 | N108: 15 | O108: / | P108: / | Q108: / | R108: / | S108: / | T108: / | U108: / | V108: / | W108: / | X108: / | Y108: / | Z108: / | AA108: / | AB108: / | AC108: / | AD108: 07-8435-SK10 - Mo/Mu (10µm) | AE108: / | AF108: / | AG108: Water - 2D | AH108: / | AI108: 39 | AJ108: / | AK108: / | AL108: / | AM108: / | AN108: / | AO108: / | AP108: / | AQ108: / | AR108: 40 | AS108: 0.315 | AT108: 55 | AU108: / | AV108: / | AW108: / | AX108: / | AY108: / | AZ108: / | BA108: ERAMET | BB108: / | BC108: / | BD108: / | BE108: / | BG108: / | BH108: 8.13 | BI108: Type of process: HCl; data from "documentations process" folder
C109: MMF | D109: F3 Copper | E109: Copper oxide | F109: / | G109: / | H109: / | I109: / | J109: / | K109: / | L109: / | M109: 10.1 | N109: / | O109: / | P109: / | Q109: / | R109: / | S109: / | T109: / | U109: / | V109: / | W109: / | X109: / | Y109: / | Z109: / | AA109: / | AB109: / | AC109: / | AD109: Mo/Mo | AE109: / | AF109: / | AG109: Water - 2D | AH109: / | AI109: 8.24 | AJ109: / | AK109: / | AL109: / | AM109: / | AN109: / | AO109: / | AP109: / | AQ109: / | AR109: 170 | AS109: 0.51 | AT109: / | AU109: / | AV109: / | AW109: / | AX109: / | AY109: / | AZ109: / | BA109: ERACHEM | BB109: / | BC109: / | BD109: / | BE109: / | BG109: / | BH109: 3 | BI109: data from "documentations process" folder
C110: MMF | D110: N3 Nickel, Cobalt and Manganese | E110: Ferro nickel concentrate | F110: / | G110: / | H110: / | I110: / | J110: / | K110: / | L110: / | M110: 28.3 | N110: / | O110: / | P110: / | Q110: / | R110: / | S110: / | T110: / | U110: / | V110: / | W110: / | X110: / | Y110: / | Z110: / | AA110: / | AB110: / | AC110: / | AD110: / | AE110: / | AF110: 20 | AG110: No washing | AH110: No washing | AI110: No washing | AJ110: No washing | AK110: No washing | AL110: No washing | AM110: 40 | AN110: / | AO110: / | AP110: / | AQ110: 60 | AR110: 680 | AS110: 1.7 | AT110: 58.8 | AU110: / | AV110: / | AW110: / | AX110: / | AY110: / | AZ110: / | BA110: CERRO MATOSO | BB110: / | BC110: / | BD110: / | BE110: / | BG110: / | BH110: 2.5 | BI110: data from "documentations process" folder
C111: MMF | D111: N3 Nickel, Cobalt and Manganese | E111: Goro nickel | F111: / | G111: / | H111: / | I111: / | J111: / | K111: / | L111: / | M111: 30.3 | N111: 68.2 | O111: / | P111: / | Q111: / | R111: / | S111: / | T111: / | U111: / | V111: / | W111: / | X111: / | Y111: / | Z111: / | AA111: / | AB111: / | AC111: / | AD111: / | AE111: / | AF111: 15 | AG111: Water - 2CC + 1D | AH111: / | AI111: 0.93 | AJ111: / | AK111: / | AL111: / | AM111: 25 | AN111: / | AO111: / | AP111: / | AQ111: 90 | AR111: 490 | AS111: 59 | AT111: 36 | AU111: / | AV111: / | AW111: / | AX111: / | AY111: / | AZ111: / | BA111: VALE INCO | BB111: / | BC111: / | BD111: / | BE111: / | BG111: / | BH111: 120 | BI111: Type of process: Lixiviation; data from "documentations process" folder
C112: MMF | D112: G3 Industrial minerals | E112: Jarosite | F112: / | G112: / | H112: / | I112: / | J112: / | K112: / | L112: / | M112: 32 | N112: 80 | O112: / | P112: / | Q112: / | R112: / | S112: / | T112: / | U112: / | V112: / | W112: / | X112: / | Y112: / | Z112: / | AA112: / | AB112: / | AC112: / | AD112: / | AE112: / | AF112: 45 | AG112: Water - 2D | AH112: / | AI112: 2 | AJ112: / | AK112: / | AL112: 5 | AM112: 35 | AN112: / | AO112: / | AP112: / | AQ112: 145 | AR112: 110 | AS112: 9.6 | AT112: 45 | AU112: / | AV112: / | AW112: / | AX112: / | AY112: / | AZ112: / | BA112: HZL | BB112: / | BC112: / | BD112: / | BE112: / | BG112: / | BH112: 84 | BI112: data from "documentations process" folder
C113: MMF | D113: G3 Industrial minerals | E113: Jarosite | F113: / | G113: / | H113: / | I113: / | J113: / | K113: / | L113: / | M113: 25 | N113: 80 | O113: / | P113: / | Q113: / | R113: / | S113: / | T113: / | U113: / | V113: / | W113: / | X113: / | Y113: / | Z113: / | AA113: / | AB113: / | AC113: / | AD113: / | AE113: / | AF113: 30 | AG113: Water - 2D | AH113: / | AI113: 2.5 | AJ113: / | AK113: / | AL113: 5 | AM113: 30 | AN113: / | AO113: / | AP113: / | AQ113: 145 | AR113: 150 | AS113: 9.6 | AT113: 37.5 | AU113: / | AV113: / | AW113: / | AX113: / | AY113: / | AZ113: / | BA113: BINANI | BB113: / | BC113: / | BD113: / | BE113: / | BG113: / | BH113: 63 | BI113: data from "documentations process" folder
C114: MMF | D114: G3 Industrial minerals | E114: Jarosite | F114: / | G114: / | H114: / | I114: / | J114: / | K114: / | L114: / | M114: 25 | N114: / | O114: / | P114: / | Q114: / | R114: / | S114: / | T114: / | U114: / | V114: / | W114: / | X114: / | Y114: / | Z114: / | AA114: / | AB114: / | AC114: / | AD114: / | AE114: / | AF114: 46 | AG114: Water - 2D | AH114: / | AI114: 2.5 | AJ114: / | AK114: / | AL114: / | AM114: 12 | AN114: / | AO114: / | AP114: / | AQ114: 148 | AR114: 130 | AS114: 6 | AT114: 37.5 | AU114: / | AV114: / | AW114: / | AX114: / | AY114: / | AZ114: / | BA114: HZL | BB114: / | BC114: / | BD114: / | BE114: / | BG114: / | BH114: 45 | BI114: data from "documentations process" folder
C115: MMF | D115: G3 Industrial minerals | E115: Jarosite | F115: / | G115: / | H115: / | I115: / | J115: / | K115: / | L115: / | M115: 20 | N115: / | O115: / | P115: / | Q115: / | R115: / | S115: / | T115: / | U115: / | V115: / | W115: / | X115: / | Y115: / | Z115: / | AA115: / | AB115: / | AC115: / | AD115: Mo | AE115: / | AF115: 35 | AG115: Water - 2D | AH115: / | AI115: 2.12 | AJ115: / | AK115: / | AL115: / | AM115: 17 | AN115: / | AO115: / | AP115: / | AQ115: 98 | AR115: 100 | AS115: 4.89 | AT115: 55 | AU115: / | AV115: / | AW115: / | AX115: / | AY115: / | AZ115: / | BA115: BOLIDEN | BB115: / | BC115: / | BD115: / | BE115: / | BG115: / | BH115: 51 | BI115: data from "documentations process" folder
C116: MMF | D116: G3 Industrial minerals | E116: Jarosite | F116: / | G116: / | H116: / | I116: / | J116: / | K116: / | L116: / | M116: 12.2 | N116: / | O116: / | P116: / | Q116: / | R116: / | S116: / | T116: / | U116: / | V116: / | W116: / | X116: / | Y116: / | Z116: / | AA116: / | AB116: / | AC116: / | AD116: / | AE116: / | AF116: 20 | AG116: Water - 1D | AH116: / | AI116: 1.09 | AJ116: / | AK116: / | AL116: 8 | AM116: 30 | AN116: / | AO116: / | AP116: / | AQ116: 88 | AR116: 100 | AS116: 2.3 | AT116: 43.5 | AU116: / | AV116: / | AW116: / | AX116: / | AY116: / | AZ116: / | BA116: PORTOVESME | BB116: / | BC116: / | BD116: / | BE116: / | BG116: / | BH116: 24 | BI116: data from "documentations process" folder
C117: MMF | D117: G3 Industrial minerals | E117: Leach residue | F117: / | G117: / | H117: / | I117: / | J117: / | K117: / | L117: / | M117: / | N117: / | O117: / | P117: / | Q117: / | R117: / | S117: / | T117: / | U117: / | V117: / | W117: / | X117: / | Y117: / | Z117: / | AA117: / | AB117: / | AC117: / | AD117: Mo | AE117: / | AF117: / | AG117: Water - 2D | AH117: / | AI117: / | AJ117: / | AK117: / | AL117: / | AM117: / | AN117: / | AO117: / | AP117: / | AQ117: / | AR117: 250 | AS117: / | AT117: / | AU117: / | AV117: / | AW117: / | AX117: / | AY117: / | AZ117: / | BA117: NAMZINC | BB117: / | BC117: / | BD117: / | BE117: / | BG117: / | BH117: 147 | BI117: data from "documentations process" folder
C118: MMF | D118: N3 Nickel, Cobalt and Manganese | E118: Nickel ore | F118: / | G118: / | H118: / | I118: / | J118: / | K118: / | L118: / | M118: 54.8 | N118: / | O118: / | P118: / | Q118: / | R118: / | S118: / | T118: / | U118: / | V118: / | W118: / | X118: / | Y118: / | Z118: / | AA118: / | AB118: / | AC118: / | AD118: SEFAR - Mo (85µm) | AE118: / | AF118: 12 | AG118: No washing | AH118: No washing | AI118: No washing | AJ118: No washing | AK118: No washing | AL118: No washing | AM118: 60 | AN118: / | AO118: / | AP118: / | AQ118: 72 | AR118: 1460 | AS118: 23 | AT118: 22 | AU118: / | AV118: / | AW118: / | AX118: / | AY118: / | AZ118: / | BA118: ERAMET | BB118: / | BC118: / | BD118: / | BE118: / | BG118: / | BH118: 15.75 | BI118: data from "documentations process" folder
C119: MMF | D119: G3 Industrial minerals | E119: Sodium dichromate | F119: / | G119: / | H119: / | I119: / | J119: / | K119: / | L119: / | M119: 43.1 | N119: 80 | O119: / | P119: / | Q119: 8.5 | R119: / | S119: / | T119: / | U119: / | V119: / | W119: / | X119: / | Y119: / | Z119: / | AA119: / | AB119: / | AC119: / | AD119: / | AE119: / | AF119: 35 | AG119: Water - 2D | AH119: / | AI119: 0.84 | AJ119: / | AK119: / | AL119: 5 | AM119: 50 | AN119: / | AO119: / | AP119: / | AQ119: 130 | AR119: 510 | AS119: 25 | AT119: 26 | AU119: / | AV119: / | AW119: / | AX119: / | AY119: / | AZ119: / | BA119: VISHNU CHEMICALS | BB119: / | BC119: / | BD119: / | BE119: / | BG119: / | BH119: 49.5 | BI119: data from "documentations process" folder
C120: MMF | D120: D3 Uranium | E120: Uranium peroxide | F120: / | G120: / | H120: / | I120: / | J120: / | K120: / | L120: / | M120: 40.2 | N120: / | O120: / | P120: / | Q120: / | R120: / | S120: / | T120: / | U120: / | V120: / | W120: / | X120: / | Y120: / | Z120: / | AA120: / | AB120: / | AC120: / | AD120: SEFAR - Mo/Mo (20µm) | AE120: / | AF120: / | AG120: Water - 1CC+1D | AH120: / | AI120: / | AJ120: / | AK120: / | AL120: / | AM120: / | AN120: / | AO120: / | AP120: / | AQ120: / | AR120: 70 | AS120: 0.41 | AT120: / | AU120: / | AV120: / | AW120: / | AX120: / | AY120: / | AZ120: / | BA120: COGEMA/AREVA | BB120: / | BC120: / | BD120: / | BE120: / | BG120: / | BH120: 6 | BI120: Type of process: Amine Extraction; data from "documentations process" folder
C121: MMF | D121: L3 Zinc and cadmium | E121: Zinc residue | F121: / | G121: / | H121: / | I121: / | J121: / | K121: / | L121: / | M121: 19.3 | N121: / | O121: / | P121: / | Q121: / | R121: / | S121: / | T121: / | U121: / | V121: / | W121: / | X121: / | Y121: / | Z121: / | AA121: / | AB121: / | AC121: / | AD121: / | AE121: / | AF121: 22 | AG121: Water | AH121: / | AI121: 3 | AJ121: / | AK121: / | AL121: 15 | AM121: 25 | AN121: / | AO121: / | AP121: / | AQ121: 137 | AR121: 90 | AS121: 2.8 | AT121: 35.7 | AU121: / | AV121: / | AW121: / | AX121: / | AY121: / | AZ121: / | BA121: ESPANOLA DEL ZINC | BB121: / | BC121: / | BD121: / | BE121: / | BG121: / | BH121: 31.5 | BI121: data from "documentations process" folder
C122: MMF | D122: J3 Metals recycling | E122: Aluminium slags | F122: 36 | G122: 70 | H122: 1.8 | I122: / | J122: / | K122: avg(150) | L122: / | M122: 29 | N122: 70 | O122: 1.45 | P122: / | Q122: / | R122: / | S122: / | T122: <35 | U122: / | V122: 0.2 | W122: / | X122: chlorides<0,5% | Y122: / | Z122: / | AA122: / | AB122: / | AC122: / | AD122: C 030 - 120 - Mono/mono | AE122: 5 | AF122: 40 | AG122: Water - 3D | AH122: / | AI122: 1.5 | AJ122: / | AK122: / | AL122: / | AM122: 30 | AN122: No/No | AO122: No/No | AP122: (F)SNF: AN934SH - 2mL 0.1%/No | AQ122: / | AR122: 135 | AS122: 6 | AT122: 43 | AU122: / | AV122: 0,27 | AW122: Chloride | AX122: 0,45 % | AY122: / | AZ122: / | BA122: Alumetal | BB122: 03/2023 | BC122: FAB | BD122: / | BE122: / | BF122: / | BG122: / | BH122: 45B30 | BI122: Drying time has no influence on moisture; quicker pick-up time with flocculant but results were not repeatable
C123: CCH | D123: H4 Soda Ash | E123: Soda Ash | F123: / | G123: / | H123: / | I123: / | J123: / | K123: / | L123: / | M123: 21.4 | N123: 32 | O123: / | P123: / | Q123: / | R123: / | S123: / | T123: / | U123: / | V123: / | W123: / | X123: / | Y123: / | Z123: / | AA123: / | AB123: / | AC123: / | AD123: SEFAR - Mo/Mo Dlw | AE123: 28 | AF123: 10 | AG123: 2D+1CC | AH123: / | AI123: 0.44 | AJ123: / | AK123: / | AL123: 10 | AM123: 50 | AN123: / | AO123: / | AP123: / | AQ123: 105 | AR123: 1200 | AS123: 48 | AT123: 16 | AU123: / | AV123: / | AW123: Chloride | AX123: 0.0015 | AY123: / | AZ123: / | BA123: Sterlitamak | BB123: / | BC123: FAB | BD123: Yes | BE123: / | BF123: 512293-01 | BG123: / | BH123: 40 | BI123: data from "documentations process" folder
C124: CCH | D124: H4 Soda Ash | E124: Soda Ash | F124: / | G124: / | H124: / | I124: / | J124: / | K124: / | L124: / | M124: 21.36 | N124: 32 | O124: / | P124: / | Q124: / | R124: / | S124: / | T124: / | U124: / | V124: / | W124: / | X124: / | Y124: / | Z124: / | AA124: / | AB124: / | AC124: / | AD124: SEFAR - Mo/Mo Dlw | AE124: 29 | AF124: 10 | AG124: 2D+1CC | AH124: / | AI124: 0.4 | AJ124: / | AK124: / | AL124: 10 | AM124: 50 | AN124: / | AO124: / | AP124: / | AQ124: 105 | AR124: 1100 | AS124: 75.2 | AT124: 16 | AU124: / | AV124: / | AW124: Chloride | AX124: 0.0015 | AY124: / | AZ124: / | BA124: Sterlitamak | BB124: / | BC124: FAB | BD124: Yes | BE124: / | BF124: 512293-02 | BG124: / | BH124: 66 | BI124: data from "documentations process" folder
C125: CCH | D125: H4 Soda Ash | E125: Soda Ash | F125: / | G125: / | H125: / | I125: / | J125: / | K125: / | L125: / | M125: 21.8 | N125: 35 | O125: / | P125: / | Q125: / | R125: / | S125: / | T125: / | U125: / | V125: / | W125: / | X125: / | Y125: / | Z125: / | AA125: / | AB125: / | AC125: / | AD125: 214-3 CRAMER - - Mo/Mo Dlw | AE125: 30 | AF125: / | AG125: 2D+2CC | AH125: / | AI125: 0.41 | AJ125: / | AK125: / | AL125: / | AM125: / | AN125: / | AO125: / | AP125: / | AQ125: / | AR125: 1200 | AS125: 60 | AT125: 16 | AU125: / | AV125: / | AW125: Chloride | AX125: 0.0015 | AY125: / | AZ125: / | BA125: Sodawerk | BB125: / | BC125: FAB | BD125: Yes | BE125: / | BF125: 514170 | BG125: / | BH125: 50 | BI125: data from "documentations process" folder
C126: CCH | D126: H4 Soda Ash | E126: Soda Ash | F126: / | G126: / | H126: / | I126: / | J126: / | K126: / | L126: / | M126: 28.5 | N126: 30 | O126: / | P126: / | Q126: / | R126: / | S126: / | T126: / | U126: / | V126: / | W126: / | X126: / | Y126: / | Z126: / | AA126: / | AB126: / | AC126: / | AD126: SEFAR - - Mo | AE126: / | AF126: / | AG126: 1D+1CC | AH126: / | AI126: 0.38 | AJ126: / | AK126: / | AL126: / | AM126: / | AN126: / | AO126: / | AP126: / | AQ126: / | AR126: 900 | AS126: 76.5 | AT126: 16.8 | AU126: / | AV126: / | AW126: Chloride | AX126: 0.0015 | AY126: / | AZ126: / | BA126: Torrelavega | BB126: / | BC126: FAB | BD126: Yes | BE126: / | BF126: / | BG126: 1837 - 01 | BH126: 81 | BI126: data from "documentations process" folder
C127: CCH | D127: H4 Soda Ash | E127: Soda Ash | F127: / | G127: / | H127: / | I127: / | J127: / | K127: / | L127: / | M127: 25.5 | N127: 30 | O127: / | P127: / | Q127: / | R127: / | S127: / | T127: / | U127: / | V127: / | W127: / | X127: / | Y127: / | Z127: / | AA127: / | AB127: / | AC127: / | AD127: SCANDIAFELT - Mo | AE127: / | AF127: / | AG127: 1D+1CC | AH127: / | AI127: 0.38 | AJ127: / | AK127: / | AL127: / | AM127: / | AN127: / | AO127: / | AP127: / | AQ127: / | AR127: 1100 | AS127: 66 | AT127: 16 | AU127: / | AV127: / | AW127: Chloride | AX127: 0.0013 | AY127: / | AZ127: / | BA127: Rosignano | BB127: / | BC127: FAB | BD127: Yes | BE127: / | BF127: / | BG127: 9111 | BH127: 60 | BI127: data from "documentations process" folder
C128: CCH | D128: H4 Soda Ash | E128: Soda Ash | F128: / | G128: / | H128: / | I128: / | J128: / | K128: / | L128: / | M128: 20.4 | N128: 31 | O128: / | P128: / | Q128: / | R128: / | S128: / | T128: / | U128: / | V128: / | W128: / | X128: / | Y128: / | Z128: / | AA128: / | AB128: / | AC128: / | AD128: Mo/Dlw | AE128: / | AF128: / | AG128: 2D+1CC | AH128: / | AI128: 0.44 | AJ128: / | AK128: / | AL128: / | AM128: / | AN128: / | AO128: / | AP128: / | AQ128: / | AR128: 1100 | AS128: 80 | AT128: 16.5 | AU128: / | AV128: / | AW128: Chloride | AX128: / | AY128: / | AZ128: / | BA128: Ciech Matwy | BB128: / | BC128: FAB | BD128: Yes | BE128: 2014 | BF128: / | BG128: 1686 - 01 | BH128: 73.5 | BI128: "contract values" from soda ash excel reference list
C129: CCH | D129: H4 Soda Ash | E129: Soda Ash | F129: / | G129: / | H129: / | I129: / | J129: / | K129: / | L129: / | M129: 21.8 | N129: 40 | O129: / | P129: / | Q129: / | R129: / | S129: / | T129: / | U129: / | V129: / | W129: / | X129: / | Y129: / | Z129: / | AA129: / | AB129: / | AC129: / | AD129: / | AE129: / | AF129: 17.5 | AG129: 2D+1CC | AH129: / | AI129: 0.44 | AJ129: / | AK129: / | AL129: / | AM129: 50.6 | AN129: / | AO129: / | AP129: / | AQ129: 89.24 | AR129: 1100 | AS129: 60 | AT129: 16 | AU129: / | AV129: / | AW129: Chloride | AX129: 0.0015 | AY129: / | AZ129: / | BA129: Ciech Janikowo | BB129: / | BC129: FAB | BD129: Yes | BE129: / | BF129: / | BG129: 1686 - 02 | BH129: 54 | BI129: "contract values" from soda ash excel reference list; data from "documentations process" folder
C130: CCH | D130: H4 Soda Ash | E130: Soda Ash | F130: / | G130: / | H130: / | I130: / | J130: / | K130: / | L130: / | M130: 19 | N130: 32 | O130: / | P130: / | Q130: / | R130: / | S130: / | T130: / | U130: / | V130: / | W130: / | X130: / | Y130: / | Z130: / | AA130: / | AB130: / | AC130: / | AD130: 214-3 CRAMER - - Mo/Mo Dlw | AE130: / | AF130: 15 | AG130: 2D+1CC | AH130: / | AI130: 0.45 | AJ130: / | AK130: / | AL130: 5 | AM130: 60 | AN130: / | AO130: / | AP130: / | AQ130: 90 | AR130: 1100 | AS130: 120 | AT130: 16 | AU130: / | AV130: / | AW130: Chloride | AX130: 0.0015 | AY130: / | AZ130: / | BA130: Nanfang | BB130: / | BC130: FAB | BD130: Yes | BE130: / | BF130: 515281 | BG130: / | BH130: 108 | BI130: data from "documentations process" folder
C131: CCH | D131: H4 Soda Ash | E131: Soda Ash | F131: / | G131: / | H131: / | I131: / | J131: / | K131: / | L131: / | M131: 20 | N131: 31 | O131: / | P131: / | Q131: / | R131: / | S131: / | T131: / | U131: / | V131: / | W131: / | X131: / | Y131: / | Z131: / | AA131: / | AB131: / | AC131: / | AD131: SEFAR - - Mo/Mo Dlw | AE131: / | AF131: 13 | AG131: 2D+1CC | AH131: / | AI131: 0.43 | AJ131: / | AK131: / | AL131: 7 | AM131: 60 | AN131: / | AO131: / | AP131: / | AQ131: 90 | AR131: 1100 | AS131: 61.22 | AT131: 16 | AU131: / | AV131: / | AW131: Chloride | AX131: 0.0015 | AY131: / | AZ131: / | BA131: Jingshen | BB131: / | BC131: FAB | BD131: Yes | BE131: / | BF131: 515177 / 1 | BG131: / | BH131: 54 | BI131: data from "documentations process" folder
C132: CCH | D132: H4 Soda Ash | E132: Soda Ash | F132: / | G132: / | H132: / | I132: / | J132: / | K132: / | L132: / | M132: 14 | N132: 38 | O132: / | P132: / | Q132: / | R132: / | S132: / | T132: / | U132: / | V132: / | W132: / | X132: / | Y132: / | Z132: / | AA132: / | AB132: / | AC132: / | AD132: SEFAR - - Dlw | AE132: / | AF132: 21 | AG132: 2D+1CC | AH132: / | AI132: 0.39 | AJ132: / | AK132: / | AL132: 6 | AM132: 63 | AN132: / | AO132: / | AP132: / | AQ132: 94 | AR132: 900 | AS132: 71.42 | AT132: 16 | AU132: / | AV132: / | AW132: Chloride | AX132: 0.0015 | AY132: / | AZ132: / | BA132: Kunshan | BB132: / | BC132: FAB | BD132: Yes | BE132: / | BF132: / | BG132: 1440 / 01 | BH132: 81 | BI132: data from "documentations process" folder
C133: ENV | D133: A5 FGD (Flue-gas-desulfurization) | E133: FGD (Gypsum) | F133: / | G133: / | H133: / | I133: / | J133: / | K133: / | L133: / | M133: 45 | N133: / | O133: / | P133: / | Q133: / | R133: / | S133: / | T133: / | U133: / | V133: / | W133: / | X133: / | Y133: / | Z133: / | AA133: / | AB133: / | AC133: / | AD133: SEFAR - Mo | AE133: / | AF133: 20 | AG133: - D | AH133: / | AI133: 0.6 | AJ133: / | AK133: / | AL133: 2 | AM133: 58 | AN133: / | AO133: / | AP133: / | AQ133: 90 | AR133: 860 | AS133: 35 | AT133: 10 | AU133: / | AV133: / | AW133: "Salt" | AX133: 0.0001 | AY133: / | AZ133: / | BA133: KOREA EAST-WEST POWER CO LTD (EWP) | BB133: / | BC133: FAB | BD133: Yes | BE133: 2004 | BF133: / | BG133: 20693 | BH133: 40.5 | BI133: data from "documentations process" folder
C134: ENV | D134: A5 FGD (Flue-gas-desulfurization) | E134: FGD (Gypsum) | F134: / | G134: / | H134: / | I134: / | J134: / | K134: / | L134: / | M134: 50 | N134: / | O134: / | P134: / | Q134: / | R134: / | S134: / | T134: / | U134: / | V134: / | W134: / | X134: / | Y134: / | Z134: / | AA134: / | AB134: / | AC134: / | AD134: SEFAR - Mo | AE134: / | AF134: 20 | AG134: - 2D | AH134: / | AI134: 0.59 | AJ134: / | AK134: / | AL134: 2 | AM134: 50 | AN134: / | AO134: / | AP134: / | AQ134: 92 | AR134: 900 | AS134: 43.2 | AT134: 10 | AU134: / | AV134: / | AW134: "Salt" | AX134: 0.0001 | AY134: / | AZ134: / | BA134: KOREAN WESTERN POWER CO LTD (KOWEPO) | BB134: / | BC134: FAB | BD134: Yes | BE134: 2004 | BF134: / | BG134: 20568 | BH134: 48 | BI134: data from "documentations process" folder
C135: ENV | D135: A5 FGD (Flue-gas-desulfurization) | E135: FGD (Gypsum) | F135: / | G135: / | H135: / | I135: / | J135: / | K135: / | L135: / | M135: 50 | N135: / | O135: / | P135: / | Q135: / | R135: / | S135: / | T135: / | U135: / | V135: / | W135: / | X135: / | Y135: / | Z135: / | AA135: / | AB135: / | AC135: / | AD135: SEFAR - Mo | AE135: 15 (Start up value) | AF135: 20 | AG135: - D | AH135: / | AI135: 0.6 | AJ135: / | AK135: / | AL135: 2 | AM135: 60 | AN135: / | AO135: / | AP135: / | AQ135: 90 | AR135: 880 | AS135: 45 | AT135: 10 | AU135: / | AV135: / | AW135: "Salt" | AX135: 0.0001 | AY135: / | AZ135: / | BA135: KOREAN SOUTH-EAST POWER (KOSEP) | BB135: / | BC135: FAB | BD135: Yes | BE135: 2003 | BF135: / | BG135: 19021 | BH135: 51 | BI135: data from "documentations process" folder
C136: ENV | D136: A5 FGD (Flue-gas-desulfurization) | E136: FGD (Gypsum) | F136: / | G136: / | H136: / | I136: / | J136: / | K136: / | L136: / | M136: 50 | N136: / | O136: / | P136: / | Q136: / | R136: / | S136: / | T136: / | U136: / | V136: / | W136: / | X136: / | Y136: / | Z136: / | AA136: / | AB136: / | AC136: / | AD136: SEFAR - Mo | AE136: 30 (Start up value) | AF136: 20 | AG136: - D | AH136: / | AI136: 0.58 | AJ136: / | AK136: / | AL136: 2 | AM136: 58 | AN136: / | AO136: / | AP136: / | AQ136: 90 | AR136: 890 | AS136: 36 | AT136: 10 | AU136: / | AV136: / | AW136: "Salt" | AX136: 0.0001 | AY136: / | AZ136: / | BA136: KOREAN WESTERN POWER CO LTD (KOWEPO) | BB136: / | BC136: FAB | BD136: Yes | BE136: 2005 | BF136: 505467 - 01 | BG136: / | BH136: 40.5 | BI136: data from "documentations process" folder
C137: ENV | D137: A5 FGD (Flue-gas-desulfurization) | E137: FGD (Gypsum) | F137: / | G137: / | H137: / | I137: / | J137: / | K137: / | L137: / | M137: 50 | N137: / | O137: / | P137: / | Q137: / | R137: / | S137: / | T137: / | U137: / | V137: / | W137: / | X137: / | Y137: / | Z137: / | AA137: / | AB137: / | AC137: / | AD137: SEFAR - Mo | AE137: / | AF137: 20 | AG137: - D | AH137: / | AI137: 0.58 | AJ137: / | AK137: / | AL137: 2 | AM137: 58 | AN137: / | AO137: / | AP137: / | AQ137: 90 | AR137: 890 | AS137: 36 | AT137: 10 | AU137: / | AV137: / | AW137: "Salt" | AX137: 0.0001 | AY137: / | AZ137: / | BA137: KOREA MIDLAND POWER CO (KOMIPO) | BB137: / | BC137: FAB | BD137: Yes | BE137: 2006 | BF137: 507590 - 01 | BG137: / | BH137: 40.5 | BI137: data from "documentations process" folder
C138: ENV | D138: A5 FGD (Flue-gas-desulfurization) | E138: FGD (Gypsum) | F138: / | G138: / | H138: / | I138: / | J138: / | K138: / | L138: / | M138: 48 | N138: / | O138: / | P138: / | Q138: / | R138: / | S138: / | T138: / | U138: / | V138: / | W138: / | X138: / | Y138: / | Z138: / | AA138: / | AB138: / | AC138: / | AD138: SEFAR - Mo | AE138: / | AF138: 20 | AG138: - D | AH138: / | AI138: 0.5 | AJ138: / | AK138: / | AL138: 5 | AM138: 40 | AN138: / | AO138: / | AP138: / | AQ138: 75 | AR138: 910 | AS138: 45 | AT138: 10 | AU138: / | AV138: / | AW138: "Salt" | AX138: 0.0001 | AY138: / | AZ138: / | BA138: BABCOCK & WILCOX | BB138: / | BC138: FAB | BD138: Yes | BE138: 2008 | BF138: 508873 | BG138: / | BH138: 49.5 | BI138: data from "documentations process" folder
C139: ENV | D139: A5 FGD (Flue-gas-desulfurization) | E139: FGD (Gypsum) | F139: / | G139: / | H139: / | I139: / | J139: / | K139: / | L139: / | M139: 51 | N139: / | O139: / | P139: / | Q139: / | R139: / | S139: / | T139: / | U139: / | V139: / | W139: / | X139: / | Y139: / | Z139: / | AA139: / | AB139: / | AC139: / | AD139: SEFAR - Mo | AE139: / | AF139: 15 | AG139: - D | AH139: / | AI139: 0.6 | AJ139: / | AK139: / | AL139: 10 | AM139: 70 | AN139: / | AO139: / | AP139: / | AQ139: 110 | AR139: 970 | AS139: 90 | AT139: 10 | AU139: / | AV139: / | AW139: / | AX139: / | AY139: / | AZ139: / | BA139: GEORGIA POWER, PLANT AMEC BOWDEN | BB139: / | BC139: FAB | BD139: Yes | BE139: 2007 | BF139: 509561 - 1 | BG139: / | BH139: 93 | BI139: data from "documentations process" folder
C140: MMF | D140: G3 Industrial minerals | E140: Jarosite | F140: 30 | G140: 85 | H140: 1.5 | I140: 4.3 | J140: / | K140: 3 | L140: / | M140: / | N140: / | O140: / | P140: / | Q140: / | R140: / | S140: / | T140: / | U140: / | V140: / | W140: / | X140: / | Y140: / | Z140: / | AA140: / | AB140: / | AC140: / | AD140: 26630B PP, Clear Edge (various types) | AE140: 6 | AF140: / | AG140: / - 1D | AH140: 40 | AI140: 1.1 | AJ140: 6.5 | AK140: / | AL140: / | AM140: / | AN140: No/No | AO140: No/No | AP140: No/No | AQ140: / | AR140: 100 | AS140: 5 | AT140: 42.5 | AU140: / | AV140: / | AW140: Zinc | AX140: <0,1% | AY140: / | BA140: BOLIDEN KOKKOLA OY | BD140: / | BE140: / | BG140: / | BI140: No use of flocculant
C141: MMF | D141: C3 Potash Brine, NaCl, Mg Salts | E141: NaCl Sylvinite | F141: / | G141: / | H141: / | I141: / | J141: / | K141: / | L141: / | M141: 35 | N141: 100 | O141: / | P141: / | Q141: / | R141: / | S141: / | T141: / | U141: / | V141: / | W141: / | X141: / | Y141: / | Z141: / | AA141: / | AB141: / | AC141: / | AD141: Mo/Dlw | AE141: / | AF141: / | AG141: / | AH141: / | AI141: 0.3 | AJ141: / | AK141: / | AL141: / | AM141: / | AN141: / | AO141: / | AP141: / | AQ141: / | AR141: 13300 | AS141: 200 | AT141: 20 | AU141: / | AV141: / | AW141: / | AX141: / | AY141: / | AZ141: / | BA141: DEAD SEA WORKS | BB141: / | BC141: FAB | BD141: Yes | BE141: / | BF141: / | BG141: / | BH141: 15 | BI141: Type of process : "Hot leach cristallisation"; data from "documentations process" folder
C142: MMF | D142: C3 Potash Brine, NaCl, Mg Salts | E142: Carnalitte KCl MgCl2 | F142: / | G142: / | H142: / | I142: / | J142: / | K142: / | L142: / | M142: 45 | N142: 28 | O142: / | P142: / | Q142: / | R142: / | S142: / | T142: / | U142: / | V142: / | W142: / | X142: / | Y142: / | Z142: / | AA142: / | AB142: / | AC142: / | AD142: Vendor | AE142: 60 | AF142: / | AG142: No washing | AH142: No washing | AI142: No washing | AJ142: No washing | AK142: No washing | AL142: No washing | AM142: No washing | AN142: / | AO142: / | AP142: / | AQ142: / | AR142: 7200 | AS142: 288 | AT142: 20 | AU142: / | AV142: / | AW142: / | AX142: / | AY142: / | AZ142: / | BA142: DEAD SEA WORKS | BB142: / | BC142: FAB | BD142: Yes | BE142: / | BF142: / | BG142: / | BH142: 50 | BI142: data from "documentations process" folder
C143: MMF | D143: L3 Zinc and cadmium | E143: Zinc residue | AZ143: / | BA143: DEAD SEA WORKS | BB143: / | BC143: FAB | BD143: Yes | BE143: / | BF143: / | BG143: / | BH143: 31.5 | BI143: data from "documentations process" folder

Sheet Reference data base
A1: Outil de filtration de la base de données
B21: Market & product data | E21: Market | F21: MMF | G21: MMF | H21: MMF | I21: MMF | J21: MMF | K21: MMF | L21: MMF | M21: MMF | N21: MMF | O21: MMF | P21: MMF | Q21: MMF | R21: MMF | S21: MMF | T21: MMF | U21: ENV | V21: ENV | W21: ENV | X21: ENV | Y21: ENV | Z21: ENV | AA21: ENV | AB21: ENV | AC21: ENV | AD21: ENV | AE21: ENV | AF21: ENV | AG21: ENV | AH21: ENV | AI21: ENV | AJ21: ENV | AK21: ENV | AL21: ENV | AM21: ENV | AN21: ENV | AO21: ENV | AP21: ENV | AQ21: MMF | AR21: MMF | AS21: MMF | AT21: MMF | AU21: MMF | AV21: MMF | AW21: MMF | AX21: MMF | AY21: MMF | AZ21: MMF | BA21: MMF | BB21: MMF | BC21: MMF | BD21: MMF | BE21: MMF | BF21: MMF | BG21: MMF | BH21: CCH | BI21: CCH | BJ21: CCH | BK21: CCH | BL21: CCH | BM21: CCH | BN21: CCH | BO21: CCH | BP21: CCH | BQ21: CCH | BR21: MMF | BS21: MMF | BT21: MMF | BU21: MMF | BV21: MMF | BW21: MMF | BX21: MMF | BY21: MMF | BZ21: MMF | CA21: MMF | CB21: MMF | CC21: MMF | CD21: MMF | CE21: MMF | CF21: MMF | CG21: MMF | CH21: MMF | CI21: MMF | CJ21: MMF | CK21: MMF | CL21: MMF | CM21: MMF | CN21: MMF | CO21: MMF | CP21: MMF | CQ21: MMF | CR21: MMF | CS21: MMF | CT21: MMF | CU21: MMF | CV21: MMF | CW21: MMF | CX21: MMF | CY21: MMF | CZ21: MMF | DA21: MMF | DB21: MMF | DC21: MMF | DD21: MMF | DE21: MMF | DF21: MMF | DG21: MMF | DH21: MMF | DI21: MMF | DJ21: MMF | DK21: MMF | DL21: MMF | DM21: MMF | DN21: MMF | DO21: MMF | DP21: MMF | DQ21: MMF | DR21: MMF | DS21: MMF | DT21: MMF | DU21: MMF | DV21: MMF | DW21: MMF | DX21: MMF | DY21: MMF | DZ21: MMF | EA21: MMF | EB21: MMF | EC21: MMF | ED21: MMF | EE21: MMF | EF21: MMF | EG21: MMF | EH21: MMF | EI21: MMF | EJ21: MMF | EK21: MMF | EL21: MMF | EM21: MMF | EN21: MMF | EO21: MMF | EP21: MMF | EQ21: MMF | ER21: MMF | ES21: ENV | ET21: ENV | EU21: ENV | EV21: ENV | EW21: ENV | EX21: ENV | EY21: ENV | EZ21: ENV | FA21: ENV | FB21: ENV | FC21: ENV | FD21: ENV | FE21: ENV | FF21: ENV | FG21: ENV | FH21: ENV | FI21: MMF | FJ21: MMF | FK21: MMF | FL21: MMF | FM21: MMF | FN21: MMF | FO21: MMF | FP21: CCH | FQ21: CCH | FR21: CCH | FS21: CCH | FT21: CCH | FU21: CCH | FV21: CCH | FW21: CCH | FX21: MMF | FY21: MMF | FZ21: MMF | GA21: MMF | GB21: MMF | GC21: MMF | GD21: MMF | GE21: CCH | GF21: CCH | GG21: CCH | GH21: CCH | GI21: CCH | GJ21: CCH | GK21: CCH | GL21: CCH | GM21: CCH | GN21: CCH | GO21: CCH | GP21: CCH | GQ21: CCH | GR21: CCH | GS21: CCH | GT21: CCH | GU21: CCH | GV21: CCH | GW21: CCH | GX21: CCH | GY21: CCH | GZ21: CCH | HA21: CCH | HB21: CCH | HC21: CCH | HD21: MMF | HE21: MMF | HF21: MMF | HG21: MMF | HH21: MMF | HI21: MMF | HJ21: MMF | HK21: MMF | HL21: MMF | HM21: MMF | HN21: MMF | HO21: MMF | HP21: MMF | HQ21: MMF | HR21: MMF | HS21: MMF | HT21: MMF | HU21: MMF | HV21: MMF | HW21: MMF | HX21: MMF | HY21: MMF | HZ21: MMF | IA21: MMF | IB21: MMF | IC21: MMF | ID21: MMF | IE21: MMF | IF21: MMF | IG21: MMF | IH21: MMF | II21: MMF | IJ21: MMF | IK21: MMF | IL21: MMF | IM21: MMF | IN21: MMF | IO21: MMF | IP21: MMF | IQ21: MMF | IR21: MMF | IS21: MMF | IT21: MMF | IU21: MMF | IV21: MMF | IW21: MMF | IX21: MMF | IY21: MMF | IZ21: MMF | JA21: MMF | JB21: MMF | AAB21: MMF
E22: Submarket | F22: N3 Nickel, Cobalt and Manganese | G22: N3 Nickel, Cobalt and Manganese | H22: N3 Nickel, Cobalt and Manganese | I22: N3 Nickel, Cobalt and Manganese | J22: N3 Nickel, Cobalt and Manganese | K22: L3 Zinc and cadmium | L22: L3 Zinc and cadmium | M22: L3 Zinc and cadmium | N22: L3 Zinc and cadmium | O22: L3 Zinc and cadmium | P22: J3 Metals recycling | Q22: J3 Metals recycling | R22: D3 Uranium | S22: F3 Copper (hydrometallurgy) | T22: T3 Other metals | U22: A5 FGD (Flue-gas-desulfurization) | V22: A5 FGD (Flue-gas-desulfurization) | W22: A5 FGD (Flue-gas-desulfurization) | X22: A5 FGD (Flue-gas-desulfurization) | Y22: A5 FGD (Flue-gas-desulfurization) | Z22: A5 FGD (Flue-gas-desulfurization) | AA22: A5 FGD (Flue-gas-desulfurization) | AB22: A5 FGD (Flue-gas-desulfurization) | AC22: A5 FGD (Flue-gas-desulfurization) | AD22: A5 FGD (Flue-gas-desulfurization) | AE22: A5 FGD (Flue-gas-desulfurization) | AF22: A5 FGD (Flue-gas-desulfurization) | AG22: A5 FGD (Flue-gas-desulfurization) | AH22: A5 FGD (Flue-gas-desulfurization) | AI22: A5 FGD (Flue-gas-desulfurization) | AJ22: A5 FGD (Flue-gas-desulfurization) | AK22: A5 FGD (Flue-gas-desulfurization) | AL22: A5 FGD (Flue-gas-desulfurization) | AM22: A5 FGD (Flue-gas-desulfurization) | AN22: A5 FGD (Flue-gas-desulfurization) | AO22: A5 FGD (Flue-gas-desulfurization) | AP22: A5 FGD (Flue-gas-desulfurization) | AQ22: C3 Potash Brine, NaCl, Mg Salts | AR22: C3 Potash Brine, NaCl, Mg Salts | AS22: C3 Potash Brine, NaCl, Mg Salts | AT22: C3 Potash Brine, NaCl, Mg Salts | AU22: C3 Potash Brine, NaCl, Mg Salts | AV22: C3 Potash Brine, NaCl, Mg Salts | AW22: C3 Potash Brine, NaCl, Mg Salts | AX22: C3 Potash Brine, NaCl, Mg Salts | AY22: C3 Potash Brine, NaCl, Mg Salts | AZ22: C3 Potash Brine, NaCl, Mg Salts | BA22: C3 Potash Brine, NaCl, Mg Salts | BB22: C3 Potash Brine, NaCl, Mg Salts | BC22: C3 Potash Brine, NaCl, Mg Salts | BD22: C3 Potash Brine, NaCl, Mg Salts | BE22: C3 Potash Brine, NaCl, Mg Salts | BF22: C3 Potash Brine, NaCl, Mg Salts | BG22: C3 Potash Brine, NaCl, Mg Salts | BH22: H4 Soda Ash | BI22: H4 Soda Ash | BJ22: H4 Soda Ash | BK22: H4 Soda Ash | BL22: H4 Soda Ash | BM22: H4 Soda Ash | BN22: H4 Soda Ash | BO22: H4 Soda Ash | BP22: H4 Soda Ash | BQ22: H4 Soda Ash | BR22: A1 Phosphoric acid | BS22: A1 Phosphoric acid | BT22: A1 Phosphoric acid | BU22: A1 Phosphoric acid | BV22: A1 Phosphoric acid | BW22: A1 Phosphoric acid | BX22: A1 Phosphoric acid | BY22: A1 Phosphoric acid | BZ22: A1 Phosphoric acid | CA22: A1 Phosphoric acid | CB22: A1 Phosphoric acid | CC22: A1 Phosphoric acid | CD22: A1 Phosphoric acid | CE22: A1 Phosphoric acid | CF22: A1 Phosphoric acid | CG22: A1 Phosphoric acid | CH22: A1 Phosphoric acid | CI22: A1 Phosphoric acid | CJ22: A1 Phosphoric acid | CK22: A1 Phosphoric acid | CL22: A1 Phosphoric acid | CM22: A1 Phosphoric acid | CN22: A1 Phosphoric acid | CO22: A1 Phosphoric acid | CP22: A1 Phosphoric acid | CQ22: A1 Phosphoric acid | CR22: A1 Phosphoric acid | CS22: A1 Phosphoric acid | CT22: A1 Phosphoric acid | CU22: A1 Phosphoric acid | CV22: A1 Phosphoric acid | CW22: A1 Phosphoric acid | CX22: A1 Phosphoric acid | CY22: A1 Phosphoric acid | CZ22: A1 Phosphoric acid | DA22: A1 Phosphoric acid | DB22: A1 Phosphoric acid | DC22: A1 Phosphoric acid | DD22: A1 Phosphoric acid | DE22: A1 Phosphoric acid | DF22: A1 Phosphoric acid | DG22: A1 Phosphoric acid | DH22: A1 Phosphoric acid | DI22: A1 Phosphoric acid | DJ22: A1 Phosphoric acid | DK22: A3 Phosphate rock | DL22: A3 Phosphate rock | DM22: A3 Phosphate rock | DN22: A3 Phosphate rock | DO22: A3 Phosphate rock | DP22: A3 Phosphate rock | DQ22: A3 Phosphate rock | DR22: A3 Phosphate rock | DS22: A3 Phosphate rock | DT22: A3 Phosphate rock | DU22: A3 Phosphate rock | DV22: A3 Phosphate rock | DW22: A3 Phosphate rock | DX22: A3 Phosphate rock | DY22: A3 Phosphate rock | DZ22: A3 Phosphate rock | EA22: A3 Phosphate rock | EB22: A3 Phosphate rock | EC22: A3 Phosphate rock | ED22: A3 Phosphate rock | EE22: A3 Phosphate rock | EF22: A3 Phosphate rock | EG22: A3 Phosphate rock | EH22: A3 Phosphate rock | EI22: A3 Phosphate rock | EJ22: A3 Phosphate rock | EK22: A3 Phosphate rock | EL22: A3 Phosphate rock | EM22: A3 Phosphate rock | EN22: A3 Phosphate rock | EO22: A3 Phosphate rock | EP22: A3 Phosphate rock | EQ22: A3 Phosphate rock | ER22: A3 Phosphate rock | ES22: A5 FGD (Flue-gas-desulfurization) | ET22: A5 FGD (Flue-gas-desulfurization) | EU22: A5 FGD (Flue-gas-desulfurization) | EV22: A5 FGD (Flue-gas-desulfurization) | EW22: A5 FGD (Flue-gas-desulfurization) | EX22: A5 FGD (Flue-gas-desulfurization) | EY22: A5 FGD (Flue-gas-desulfurization) | EZ22: A5 FGD (Flue-gas-desulfurization) | FA22: A5 FGD (Flue-gas-desulfurization) | FB22: A5 FGD (Flue-gas-desulfurization) | FC22: A5 FGD (Flue-gas-desulfurization) | FD22: A5 FGD (Flue-gas-desulfurization) | FE22: A5 FGD (Flue-gas-desulfurization) | FF22: A5 FGD (Flue-gas-desulfurization) | FG22: A5 FGD (Flue-gas-desulfurization) | FH22: A5 FGD (Flue-gas-desulfurization) | FI22: F3 Copper (hydrometallurgy) | FJ22: F3 Copper (hydrometallurgy) | FK22: F3 Copper (hydrometallurgy) | FL22: F3 Copper (hydrometallurgy) | FM22: F3 Copper (hydrometallurgy) | FN22: F3 Copper (hydrometallurgy) | FO22: F3 Copper (hydrometallurgy) | FP22: H4 Soda Ash | FQ22: H4 Soda Ash | FR22: H4 Soda Ash | FS22: H4 Soda Ash | FT22: H4 Soda Ash | FU22: H4 Soda Ash | FV22: H4 Soda Ash | FW22: H4 Soda Ash | FX22: J3 Metals recycling | FY22: J3 Metals recycling | FZ22: J3 Metals recycling | GA22: J3 Metals recycling | GB22: J3 Metals recycling | GC22: J3 Metals recycling | GD22: J3 Metals recycling | GE22: I4 Aminated Acids / vitamins / specialty acids (lactic, citric…) | GF22: I4 Aminated Acids / vitamins / specialty acids (lactic, citric…) | GG22: I4 Aminated Acids / vitamins / specialty acids (lactic, citric…) | GH22: I4 Aminated Acids / vitamins / specialty acids (lactic, citric…) | GI22: I4 Aminated Acids / vitamins / specialty acids (lactic, citric…) | GJ22: I4 Aminated Acids / vitamins / specialty acids (lactic, citric…) | GK22: I4 Aminated Acids / vitamins / specialty acids (lactic, citric…) | GL22: I4 Aminated Acids / vitamins / specialty acids (lactic, citric…) | GM22: I4 Aminated Acids / vitamins / specialty acids (lactic, citric…) | GN22: I4 Aminated Acids / vitamins / specialty acids (lactic, citric…) | GO22: I4 Aminated Acids / vitamins / specialty acids (lactic, citric…) | GP22: I4 Aminated Acids / vitamins / specialty acids (lactic, citric…) | GQ22: I4 Aminated Acids / vitamins / specialty acids (lactic, citric…) | GR22: I4 Aminated Acids / vitamins / specialty acids (lactic, citric…) | GS22: I4 Aminated Acids / vitamins / specialty acids (lactic, citric…) | GT22: I4 Aminated Acids / vitamins / specialty acids (lactic, citric…) | GU22: I4 Aminated Acids / vitamins / specialty acids (lactic, citric…) | GV22: I4 Aminated Acids / vitamins / specialty acids (lactic, citric…) | GW22: I4 Aminated Acids / vitamins / specialty acids (lactic, citric…) | GX22: I4 Aminated Acids / vitamins / specialty acids (lactic, citric…) | GY22: I4 Aminated Acids / vitamins / specialty acids (lactic, citric…) | GZ22: I4 Aminated Acids / vitamins / specialty acids (lactic, citric…) | HA22: I4 Aminated Acids / vitamins / specialty acids (lactic, citric…) | HB22: I4 Aminated Acids / vitamins / specialty acids (lactic, citric…) | HC22: I4 Aminated Acids / vitamins / specialty acids (lactic, citric…) | HD22: L3 Zinc and cadmium | HE22: L3 Zinc and cadmium | HF22: L3 Zinc and cadmium | HG22: L3 Zinc and cadmium | HH22: L3 Zinc and cadmium | HI22: L3 Zinc and cadmium | HJ22: L3 Zinc and cadmium | HK22: L3 Zinc and cadmium | HL22: L3 Zinc and cadmium | HM22: L3 Zinc and cadmium | HN22: L3 Zinc and cadmium | HO22: L3 Zinc and cadmium | HP22: L3 Zinc and cadmium | HQ22: L3 Zinc and cadmium | HR22: L3 Zinc and cadmium | HS22: L3 Zinc and cadmium | HT22: L3 Zinc and cadmium | HU22: L3 Zinc and cadmium | HV22: L3 Zinc and cadmium | HW22: L3 Zinc and cadmium | HX22: L3 Zinc and cadmium | HY22: L3 Zinc and cadmium | HZ22: L3 Zinc and cadmium | IA22: L3 Zinc and cadmium | IB22: L3 Zinc and cadmium | IC22: L3 Zinc and cadmium | ID22: L3 Zinc and cadmium | IE22: L3 Zinc and cadmium | IF22: L3 Zinc and cadmium | IG22: L3 Zinc and cadmium | IH22: L3 Zinc and cadmium | II22: L3 Zinc and cadmium | IJ22: L3 Zinc and cadmium | IK22: L3 Zinc and cadmium | IL22: L3 Zinc and cadmium | IM22: N3 Nickel, Cobalt and Manganese | IN22: N3 Nickel, Cobalt and Manganese | IO22: N3 Nickel, Cobalt and Manganese | IP22: N3 Nickel, Cobalt and Manganese | IQ22: N3 Nickel, Cobalt and Manganese | IR22: N3 Nickel, Cobalt and Manganese | IS22: N3 Nickel, Cobalt and Manganese | IT22: N3 Nickel, Cobalt and Manganese | IU22: N3 Nickel, Cobalt and Manganese | IV22: N3 Nickel, Cobalt and Manganese | IW22: N3 Nickel, Cobalt and Manganese | IX22: N3 Nickel, Cobalt and Manganese | IY22: N3 Nickel, Cobalt and Manganese | IZ22: N3 Nickel, Cobalt and Manganese | JA22: N3 Nickel, Cobalt and Manganese | JB22: N3 Nickel, Cobalt and Manganese | AAB22: A3 Phosphate rock
E23: Application | F23: Hydrometallurgy | G23: Hydrometallurgy | H23: Hydrometallurgy | I23: Hydrometallurgy | J23: Hydrometallurgy | K23: Hydrometallurgy | L23: Hydrometallurgy | M23: Hydrometallurgy | N23: Hydrometallurgy | O23: Hydrometallurgy | P23: Hydrometallurgy | Q23: Hydrometallurgy | R23: Hydrometallurgy | S23: Hydrometallurgy | T23: Hydrometallurgy | U23: FGD | V23: FGD | W23: FGD | X23: FGD | Y23: FGD | Z23: FGD | AA23: FGD | AB23: FGD | AC23: FGD | AD23: FGD | AE23: FGD | AF23: FGD | AG23: FGD | AH23: FGD | AI23: FGD | AJ23: FGD | AK23: FGD | AL23: FGD | AM23: FGD | AN23: FGD | AO23: FGD | AP23: FGD | AQ23: POTASH | AR23: POTASH | AS23: POTASH | AT23: POTASH | AU23: POTASH | AV23: POTASH | AW23: POTASH | AX23: POTASH | AY23: POTASH | AZ23: POTASH | BA23: POTASH | BB23: POTASH | BC23: POTASH | BD23: POTASH | BE23: POTASH | BF23: POTASH | BG23: POTASH | BH23: SODA ASH | BI23: SODA ASH | BJ23: SODA ASH | BK23: SODA ASH | BL23: SODA ASH | BM23: SODA ASH | BN23: SODA ASH | BO23: SODA ASH | BP23: SODA ASH | BQ23: SODA ASH | BR23: PHOSPHORIC ACID | BS23: PHOSPHORIC ACID | BT23: PHOSPHORIC ACID | BU23: PHOSPHORIC ACID | BV23: PHOSPHORIC ACID | BW23: PHOSPHORIC ACID | BX23: PHOSPHORIC ACID | BY23: PHOSPHORIC ACID | BZ23: PHOSPHORIC ACID | CA23: PHOSPHORIC ACID | CB23: PHOSPHORIC ACID | CC23: PHOSPHORIC ACID | CD23: PHOSPHORIC ACID | CE23: PHOSPHORIC ACID | CF23: PHOSPHORIC ACID | CG23: PHOSPHORIC ACID | CH23: PHOSPHORIC ACID | CI23: PHOSPHORIC ACID | CJ23: PHOSPHORIC ACID | CK23: PHOSPHORIC ACID | CL23: PHOSPHORIC ACID | CM23: PHOSPHORIC ACID | CN23: PHOSPHORIC ACID | CO23: PHOSPHORIC ACID | CP23: PHOSPHORIC ACID | CQ23: PHOSPHORIC ACID | CR23: PHOSPHORIC ACID | CS23: PHOSPHORIC ACID | CT23: PHOSPHORIC ACID | CU23: PHOSPHORIC ACID | CV23: PHOSPHORIC ACID | CW23: PHOSPHORIC ACID | CX23: PHOSPHORIC ACID | CY23: PHOSPHORIC ACID | CZ23: PHOSPHORIC ACID | DA23: PHOSPHORIC ACID | DB23: PHOSPHORIC ACID | DC23: PHOSPHORIC ACID | DD23: PHOSPHORIC ACID | DE23: PHOSPHORIC ACID | DF23: PHOSPHORIC ACID | DG23: PHOSPHORIC ACID | DH23: PHOSPHORIC ACID | DI23: PHOSPHORIC ACID | DJ23: PHOSPHORIC ACID | DK23: PHOSPHATE ROCK | DL23: PHOSPHATE ROCK | DM23: PHOSPHATE ROCK | DN23: PHOSPHATE ROCK | DO23: PHOSPHATE ROCK | DP23: PHOSPHATE ROCK | DQ23: PHOSPHATE ROCK | DR23: PHOSPHATE ROCK | DS23: PHOSPHATE ROCK | DT23: PHOSPHATE ROCK | DU23: PHOSPHATE ROCK | DV23: PHOSPHATE ROCK | DW23: PHOSPHATE ROCK | DX23: PHOSPHATE ROCK | DY23: PHOSPHATE ROCK | DZ23: PHOSPHATE ROCK | EA23: PHOSPHATE ROCK | EB23: PHOSPHATE ROCK | EC23: PHOSPHATE ROCK | ED23: PHOSPHATE ROCK | EE23: PHOSPHATE ROCK | EF23: PHOSPHATE ROCK | EG23: PHOSPHATE ROCK | EH23: PHOSPHATE ROCK | EI23: PHOSPHATE ROCK | EJ23: PHOSPHATE ROCK | EK23: PHOSPHATE ROCK | EL23: PHOSPHATE ROCK | EM23: PHOSPHATE ROCK | EN23: PHOSPHATE ROCK | EO23: PHOSPHATE ROCK | EP23: PHOSPHATE ROCK | EQ23: PHOSPHATE ROCK | ER23: PHOSPHATE ROCK | ES23: FGD | ET23: FGD | EU23: FGD | EV23: FGD | EW23: FGD | EX23: FGD | EY23: FGD | EZ23: FGD | FA23: FGD | FB23: FGD | FC23: FGD | FD23: FGD | FE23: FGD | FF23: FGD | FG23: FGD | FH23: FGD | FI23: Hydrometallurgy | FJ23: Hydrometallurgy | FK23: Hydrometallurgy | FL23: Hydrometallurgy | FM23: Hydrometallurgy | FN23: Hydrometallurgy | FO23: Hydrometallurgy | FP23: SODA ASH | FQ23: SODA ASH | FR23: SODA ASH | FS23: SODA ASH | FT23: SODA ASH | FU23: SODA ASH | FV23: SODA ASH | FW23: SODA ASH | FX23: Hydrometallurgy | FY23: Hydrometallurgy | FZ23: Hydrometallurgy | GA23: Hydrometallurgy | GB23: Hydrometallurgy | GC23: Hydrometallurgy | GD23: Hydrometallurgy | GE23: Tartaric acid | GF23: Methionine Raw | GG23: Methionine Pure | GH23: Methionine Pure | GI23: Methionine Pure | GJ23: Methionine Raw | GK23: CaSO4 | GL23: Citric acid | GM23: Methionine | GN23: Hydrasine chlorhydrate | GO23: Amine acid | GP23: Threonine | GQ23: Glutamate | GR23: Gallic acid | GS23: Citric acid | GT23: Tartaric acid | GU23: Tartaric acid | GV23: Lactic acid | GW23: Methionine Raw | GX23: Methionine Raw | GY23: Methionine Raw | GZ23: Methionine Extr. | HA23: Methionine Pure | HB23: Methionine Raw | HC23: Methionine Extr. | HD23: Hydrometallurgy | HE23: Hydrometallurgy | HF23: Hydrometallurgy | HG23: Hydrometallurgy | HH23: Hydrometallurgy | HI23: Hydrometallurgy | HJ23: Hydrometallurgy | HK23: Hydrometallurgy | HL23: Hydrometallurgy | HM23: Hydrometallurgy | HN23: Hydrometallurgy | HO23: Hydrometallurgy | HP23: Hydrometallurgy | HQ23: Hydrometallurgy | HR23: Hydrometallurgy | HS23: Hydrometallurgy | HT23: Hydrometallurgy | HU23: Hydrometallurgy | HV23: Hydrometallurgy | HW23: Hydrometallurgy | HX23: Hydrometallurgy | HY23: Hydrometallurgy | HZ23: Hydrometallurgy | IA23: Hydrometallurgy | IB23: Hydrometallurgy | IC23: Hydrometallurgy | ID23: Hydrometallurgy | IE23: Hydrometallurgy | IF23: Hydrometallurgy | IG23: Hydrometallurgy | IH23: Hydrometallurgy | II23: Hydrometallurgy | IJ23: Hydrometallurgy | IK23: Hydrometallurgy | IL23: Hydrometallurgy | IM23: Hydrometallurgy | IN23: Hydrometallurgy | IO23: Hydrometallurgy | IP23: Hydrometallurgy | IQ23: Hydrometallurgy | IR23: Hydrometallurgy | IS23: Hydrometallurgy | IT23: Hydrometallurgy | IU23: Hydrometallurgy | IV23: Hydrometallurgy | IW23: Hydrometallurgy | IX23: Hydrometallurgy | IY23: Hydrometallurgy | IZ23: Hydrometallurgy | JA23: Hydrometallurgy | JB23: Hydrometallurgy | AAB23: PHOSPHATE ROCK
E24: Product | F24: Nickel ore | G24: Carbonate nickel | H24: NiSO4 | I24: Nickel | J24: Nickel (neutralized slurry) | K24: Zinc residue | L24: Zinc (Jarosite) | M24: Zinc (BZS) | N24: Zinc (Jarosite) | O24: Jarosite | P24: Aluminium slags | Q24: Aluminium slags | R24: Uranium peroxide | S24: Copper oxide | T24: Dichromate sodium | U24: FGD (Gypsum) | V24: FGD (Gypsum) | W24: FGD (Gypsum) | X24: FGD (Gypsum) | Y24: FGD (Gypsum) | Z24: FGD (Gypsum) | AA24: FGD (Gypsum) | AB24: FGD (Gypsum) | AC24: FGD (Gypsum) | AD24: FGD (Gypsum) | AE24: FGD (Gypsum) | AF24: FGD (Gypsum) | AG24: FGD (Gypsum) | AH24: FGD (Gypsum) | AI24: FGD (Gypsum) | AJ24: FGD (Gypsum) | AK24: FGD (Gypsum) | AL24: FGD (Gypsum) | AM24: FGD (Gypsum) | AN24: FGD (Gypsum) | AO24: FGD (Gypsum) | AP24: FGD (Gypsum) | AQ24: Halite | AR24: Halite waste | AS24: Halite | AT24: Sylvinite | AU24: NaCl Sylvinite | AV24: Sylvinite | AW24: Sylvinite | AX24: Sylvinite (KCl + NaCl) | AY24: Carnalitte KCl MgCl3 | AZ24: Carnallite | BA24: Carnallite | BB24: Carnallite | BC24: KCl | BD24: Tails | BE24: Salt | BF24: NaCl SEPARATION | BG24: KCl Sylvite | BH24: NaHCO3 | BI24: NaHCO3 | BJ24: NaHCO3 | BK24: NaHCO3 | BL24: NaHCO3 | BM24: NaHCO3 | BN24: NaHCO3 | BO24: NaHCO3 | BP24: NaHCO3 | BQ24: NaHCO3 | BR24: Fluosilicate | BS24: Chemical product | BT24: H3PO4 - Sludge | BU24: H3PO4 - 30% Dihydrate | BV24: H3PO4 - 30% Dihydrate | BW24: H3PO4 - Defluoration | BX24: H3PO4 - 30% Dihydrate | BY24: Phosphogypsum | BZ24: H3PO4 - 30% Dihydrate | CA24: H3PO4 - 30% Dihydrate | CB24: H3PO4 - 30% Dihydrate | CC24: H3PO4 - 30% Dihydrate | CD24: H3PO4 - 30% Dihydrate | CE24: Pilot unit | CF24: Phosphogypsum | CG24: H3PO4 - Sludge | CH24: H3PO4 - 30% Dihydrate | CI24: H3PO4 | CJ24: H3PO4 - 30% Dihydrate | CK24: H3PO4 + HCL | CL24: H3PO4 - 30% Dihydrate | CM24: H3PO4 + HCL | CN24: Aluminium Fluoride | CO24: H3PO4 - 30% Dihydrate | CP24: H3PO4 - Sludge | CQ24: H3PO4 - 54% Clarificat | CR24: H3PO4 - 54% Clarificat | CS24: H3PO4 - 54% Clarificat | CT24: H3PO4 - 30% Dihydrate | CU24: H3PO4 - 30% Dihydrate | CV24: H3PO4 - 50% hemihydrate | CW24: H3PO4 - 30% Dihydrate | CX24: H3PO4 - 42% Clarificat | CY24: H3PO4 - 30% Dihydrate | CZ24: H3PO4 - 54% Clarificat | DA24: Acid sludges | DB24: H3PO4 - 30% Dihydrate | DC24: H3PO4 - 30% Dihydrate | DD24: H3PO4 | DE24: H3PO4 - 54% Clarificat | DF24: Pilot Unit | DG24: H3PO4 - 30% Dihydrate | DH24: H3PO4 - 30% Dihydrate | DI24: H3PO4 - 30% Dihydrate | DJ24: Phosphoric acid | DK24: Phosphate Ore | DL24: Phosphate Ore | DM24: Phosphate Ore | DN24: Phosphate Ore | DO24: Apatite | DP24: Apatite | DQ24: Phosphate Ore | DR24: Phosphate Ore | DS24: Phosphate Ore | DT24: Phosphate Ore | DU24: Phosphate Ore | DV24: Phosphate Ore | DW24: Phosphate Ore | DX24: Phosphate Ore | DY24: Phosphate Ore | DZ24: Phosphate Ore | EA24: Phosphate Ore | EB24: Phosphate Ore | EC24: Phosphate Ore | ED24: Phosphate Ore | EE24: Phosphate Ore | EF24: Phosphate Ore | EG24: Phosphate Ore | EH24: Phosphate Ore | EI24: Phosphate Ore | EJ24: Phosphate Ore | EK24: Phosphate Ore | EL24: Phosphate Ore | EM24: Phosphate Ore | EN24: Phosphate Ore | EO24: Phosphate Ore | EP24: Phosphate Ore | EQ24: Phosphate Ore | ER24: Apatite | ES24: Tar Sand | ET24: FGD (Gypsum) | EU24: FGD (Gypsum) | EV24: FGD (Gypsum) | EW24: Gas desulfuris | EX24: FGD (Gypsum) | EY24: FGD (Gypsum) | EZ24: FGD (Gypsum) | FA24: FGD (Gypsum) | FB24: FGD (Gypsum) | FC24: FGD (Gypsum) | FD24: FGD (Gypsum) | FE24: FGD (Gypsum) | FF24: FGD (Gypsum) | FG24: FGD (Gypsum) | FH24: FGD (Gypsum) | FI24: Copper | FJ24: Copper oxychloride | FK24: Copper | FL24: Copper | FM24: Copper powder | FN24: Copper tailings | FP24: NaHCO3 | FQ24: NaHCO3 | FR24: NaHCO3 | FS24: NaHCO3 | FT24: NaHCO3 | FU24: NaHCO3 | FV24: NaHCO3 | FW24: NaHCO3 | FX24: Aluminium slags | FY24: Aluminium slags | FZ24: Aluminium slags | GA24: Aluminium slags | GB24: Aluminium slags | GC24: Aluminium slags | GD24: Aluminium slags | GE24: Tartaric acid | GF24: Methionine Raw | GG24: Methionine Pure | GH24: Methionine Pure | GI24: Methionine Pure | GJ24: Methionine Raw | GK24: CaSO4 | GL24: Citric acid | GM24: Methionine | GN24: Hydrasine chlorhydrate | GO24: Amine acid | GP24: Threonine | GQ24: Glutamate | GR24: Gallic acid | GS24: Citric acid | GT24: Tartaric acid | GU24: Tartaric acid | GV24: Lactic acid | GW24: Methionine Raw | GX24: Methionine Raw | GY24: Methionine Raw | GZ24: Methionine Extr. | HA24: Methionine Pure | HB24: Methionine Raw | HC24: Methionine Extr. | HD24: Zinc (BZS) | HE24: Zinc (Jarosite) | HF24: Zinc (Silicate) | HG24: Zinc (Gypsum) | HH24: Zinc (Jarosite) | HI24: Zinc (Jarosite) | HJ24: Zinc (Jarosite) | HK24: Zinc (Jarosite) | HL24: Zinc (Jarosite) | HM24: Magnesium removal | HN24: Residu plomb-argent | HO24: Zinc (Geolithe) | HP24: Jarosite | HQ24: Jarosite | HR24: floatation residue_pulp acid | HS24: Zinc | HT24: Zinc oxide | HU24: Zinc oxide | HV24: Leach Residue | HW24: Leach Residue | HX24: Demonstration | HY24: Zinc (BZS) | HZ24: Zinc (Jarosite) | IA24: Zinc (cement) | IB24: Zinc (cement) | IC24: Zinc (cement) | ID24: Zinc (Jarosite) | IE24: Cadmium (Cement) | IF24: Zinc | IG24: Zinc | IH24: Zinc | II24: Zinc | IJ24: Jarosite | IK24: Zinc (Jarosite) | IL24: BZS - Basic Zinc | IM24: Manganese | IN24: Manganese | IO24: Manganese | IP24: Nickel carbonate | IQ24: Nickel carbonate | IR24: Cobalt chloride | IS24: Nickel carbonate | IT24: Nickel ore | IU24: Nickel (neutralized slurry) | IV24: Nickel (neutralized slurry) | IW24: Cobalt (Sulfate) | IX24: Cobalt (Hydroxide) | IY24: Cobalt (Hydroxide) | IZ24: Cobalt (Hydroxide) | JA24: Cobalt extension | JB24: Gypsum_cobalt | AAB24: Phosphate Ore
E25: Type of process | G25: HCl | H25: H2SO4 | R25: Amine extraction | U25: Wet FGD | V25: Wet FGD | W25: Wet FGD | X25: Wet FGD | Y25: Wet FGD | Z25: Wet FGD | AA25: Wet FGD | AB25: Wet FGD | AC25: Wet FGD | AD25: Wet FGD | AE25: Wet FGD | AF25: Wet FGD | AG25: Wet FGD | AH25: Wet FGD | AI25: Wet FGD | AJ25: Wet FGD | AK25: Wet FGD | AL25: Wet FGD | AM25: Wet FGD | AN25: Wet FGD | AO25: Wet FGD | AP25: Wet FGD | AU25: Hot leach cristallisation | AW25: Flotation | AX25: Flotation | AY25: Hot leach cristallisation | AZ25: Continuous | BE25: Hot leach cristallisation | BG25: FLOTATION | BH25: Solvay | BI25: Solvay | BJ25: Solvay | BK25: Solvay | BL25: Solvay | BM25: Solvay | BN25: Solvay | BO25: Hou | BP25: Hou | BQ25: Hou
B26: Filter data | E26: TG | F26: 3768? | G26: 3975 | H26: SD0130 | I26: 3834 | J26: 3560? - 4307 | K26: 3430 (démarrage) | L26: 3743 - 4047? | M26: 3873 - 3933 (Technical visit)- 4096 | N26: 3873 - 3933 (Technical visit) - 4141 (Lab test offer) - 4175 (lab test offer) | P26: 3872 (Démarrage) - 3500 | Q26: 3844 - 4326 (Pannevis belt filter process audit) | R26: 3859 (Démarrage) - 3976 - 4059 (commissioning offer) | S26: 3741 | T26: 3905 (Démarrage) - 3933 (Technical visit) - 4066 (Audit) | U26: 4121 | V26: 4109 (Start up) | Z26: 3955 (mechanical acceptance) | AA26: 3937 (Visit + Lab test) - 4020 (Technical audit) | AB26: 3956 (mechanical acceptance) - 3961 (Visit) | AC26: 3896 (démarrage) | AD26: 3849 (démarrage) | AG26: (3893 démarrage) | AH26: 3729? (acceptance report) | AI26: 3818 - 3938 (supervision report) | AK26: 3883 (démarrage) | AT26: 3635 (démarrage)? | AU26: 3635 (démarrage)? | AW26: 3763 | AY26: 3635 (démarrage)? | BH26: 3947 (acceptance tests) | BI26: 3946 (acceptance tests) | BM26: 2526 - 4086 - 4211 (cake washing optimization) | BN26: 3536 - 4086 | BO26: 3953 - 4075 ? (démarrage) | BP26: 4014 - 4077 | BQ26: 4161 | CD26: 3936 (Technical visit) | CF26: 4251 (audit process offer) - 4278 (audit process offer) - 4322 (process audit offer) | CI26: 3954 - 4151 (audit) | CJ26: 3954 | CP26: 3306 (démarrage) | CR26: 4219 | DF26: 3645 | DG26: 4244 (process audit offer) | DH26: 4244 (process audit offer) | DJ26: 4155 - 4188 (start up) - 4390 (lab test offer) | DL26: 3625 - 4000 | DO26: TG 3494 (démarrage) - 3545? | DP26: 3991 - 4045 | DS26: 4044 (commissioning) - | DV26: 3982 - 3363 ? - 4057? - 4091? - 4123? - 4268 (audit meca + process) - 4441 (audit report) | EV26: 3699 | FC26: 4149 - 4162 (start up) - 4202 | FM26: 3838 (essais problèmes) | FN26: 4089 (installation report) - 4166 | FP26: 4077 - 4124 (Start up) | FS26: 3616 | FT26: 4112 - 4135 (start up) | FV26: 4190 (start up) | FX26: 4364 (audit report) - 4396 (cloth testing) | FY26: 4364 (audit report) - 4396 (cloth testing) | GD26: 4156 - 4178 (process audit) - 4363 | GK26: 3607? - 4097 (lab test offer) - 4170 | GL26: 3684? | GO26: 3562? | GR26: 4184 - 4246 (process audit offer) | HA26: 4300 (process audit) | HB26: 4300 (process audit) | HC26: 4300 (process audit) | HG26: TG 3353 | HH26: TG 3353 | HK26: 3878 (start-up) | HM26: 4116 | HQ26: 4177 - 4179 | HT26: 3511 | HU26: 3511 | HV26: 4150 (audit offer) | HW26: 4150 (audit offer) | HX26: 4150 (audit offer) | HY26: 4150 (audit offer) | HZ26: 3497 - 3845 - 3842 - 4002 (process audit) | IK26: 3580? (démarrage) | IP26: 3975 | IR26: 3733? | IU26: 4307 | IW26: 3863 - 4058 | IX26: 3863 - 4058 | IY26: 3863 - 4058 | JA26: 4113 (start up) | JB26: 4102 - 4148 - 4245 (process audit offer) | AAB26: SS0440
E27: Start-up date | F27: 2006 | H27: 2026 | J27: 2009 | L27: 2005 | M27: 2007 | N27: 2007 | Q27: 2007 | S27: 2005 | T27: 2007 | V27: 2014 | W27: 2014 | Z27: 2010 | AA27: 2007 | AC27: 2008 | AD27: 2006 | AE27: 2004 | AF27: 2005 | AG27: 2007 | AH27: 2003 | AI27: 2005 | AJ27: 2002 | AK27: 2006 | AL27: 2007 | AM27: 2005 | AN27: 2004 | AO27: 1999 | BH27: 2009 | BI27: 2009 | BJ27: 2010 | BK27: 1996 | BL27: 1992 | BM27: 2014 | BN27: 2014 | BO27: 2013 | BP27: 2010 | BQ27: 2014 | BT27: 1974 | BV27: 1994 | BW27: 1983 | BX27: 1979 | BY27: 1984 | BZ27: 1980 | CA27: 1973 | CB27: 1978 | CC27: 1969 | CD27: 1995 | CE27: 1982 | CF27: 1995 | CG27: 1995 | CH27: 1998 | CI27: 1991 | CJ27: 1991 | CK27: 1990 | CL27: 1988 | CM27: 1984 | CN27: 1996 | CO27: 1973 | CP27: 2001 | CQ27: 1998 | CR27: 2003 | CS27: 1982 | CU27: 1971 | CV27: 1991 | CW27: 1972 | CX27: 1999 | CY27: 1965 | CZ27: 1976 | DA27: 1985 | DB27: 1982 | DC27: 1972 | DD27: 1982 | DE27: 1985 | DF27: 2003 | DG27: 1997 | DH27: 1997 | DI27: 1995 | DJ27: 2016 | DK27: 2002 | DL27: 2010 | DO27: 2001 | DP27: 2012 | DR27: 1992 | DS27: 2011 | DT27: 1997 | DU27: 1977 | DV27: 2010 | DW27: 2001 | DX27: 2005 | DY27: 2011 | DZ27: 2014 | EB27: 1977 | EC27: 1990 | ED27: 1985 | ES27: 2005 | ET27: 2005 | EU27: 1994 | EV27: 2001 | EW27: 1991 | EX27: 2017 | EY27: 1997 | EZ27: 1997 | FA27: 1996 | FB27: 2005 | FC27: 2014 | FH27: 2020 | FI27: 2005 | FJ27: 1984 | FK27: 2006 | FL27: 2006 | FM27: 1984 | FN27: 2016 | FO27: 2020 | FP27: 2014 | FQ27: 1992 | FR27: 1992 | FS27: 1987 | FT27: 2015 | FU27: 2015 | FV27: 2016 | FW27: 2020 | FX27: 2001 | FY27: 2007 | GA27: 1995 | GB27: 1990 | GD27: 2016 | GF27: 2004 | GG27: 2004 | GH27: 1997 | GI27: 1997 | GJ27: 1992 | GK27: 1993 | GL27: 1992 | GM27: 1988 | GN27: 1984 | GP27: 1996 | GQ27: 1987 | GT27: 1984 | GW27: 1997 | HA27: 1997 | HB27: 1997 | HC27: 2010 | HD27: 1989 | HE27: 2000 | HF27: 2000 | HG27: 2000 | HH27: 1998 | HI27: 1997 | HJ27: 1996 | HK27: 2008 | HL27: 1996 | HM27: 2014 | HN27: 1986 | HO27: 2001 | HP27: 1991 | HQ27: 1990 | HR27: 1989 | HS27: 2006 | HT27: 2001 | HU27: 2001 | HV27: 2005 | HW27: 2002 | HX27: 2002 | HY27: 2002 | HZ27: 2007 | IA27: 2001 | IF27: 1988 | IG27: 1988 | IH27: 1983 | II27: 1982 | IK27: 2002 | IP27: 2006 | IR27: 1991 | IS27: 2007 | IU27: 2009 | IV27: 2010 | IW27: 2001 | IX27: 2001 | IY27: 2006 | JA27: 2014 | JB27: 2014 | AAB27: 2026
E28: Country | F28: NCL | I28: COL | J28: NCL | L28: IND | M28: IND | N28: IND | Q28: ESP | S28: BEL | T28: IND | V28: KOR | W28: KOR | X28: KOR | Z28: USA | AA28: USA | AC28: LTU | AD28: KOR | AE28: KOR | AF28: FRA | AG28: KOR | AH28: KOR | AI28: KOR | AJ28: KOR | AK28: KOR | AL28: BGR | AM28: KOR | AN28: KOR | AO28: ISR | AP28: KOR | BH28: RUS | BI28: RUS | BJ28: DEU | BK28: ESP | BL28: ITA | BM28: POL | BN28: POL | BO28: CHN | BP28: CHN | BQ28: CHN | BR28: BEL | BS28: BEL | BT28: BEL | BU28: CHN | BV28: CHN | BW28: FRA | BX28: FRA | BY28: FRA | BZ28: FRA | CA28: FRA | CB28: FRA | CC28: FRA | CD28: IND | CE28: ISR | CF28: ISR | CG28: ISR | CH28: ISR | CI28: ISR | CJ28: ISR | CK28: ISR | CL28: ISR | CM28: ISR | CN28: JOR | CO28: Kosovo Republic | CP28: LBN | CQ28: LBN | CR28: LBN | CS28: MAR | CT28: MAR | CU28: POL | CV28: RUS | CW28: RUS | CX28: SEN | CY28: SWE | CZ28: TUN | DA28: TUN | DB28: TUN | DC28: TUN | DD28: TUN | DE28: TUN | DF28: USA | DG28: USA | DH28: USA | DI28: ZWE | DJ28: LIT | DK28: DZA | DL28: DZA | DM28: DZA | DN28: DZA | DO28: CAN | DP28: FIN | DQ28: IRQ | DR28: JOR | DS28: MAR | DT28: MAR | DU28: MAR | DV28: PER | DW28: SYR | DX28: TGO | DY28: TGO | DZ28: TGO | EA28: TGO | EB28: TUN | EC28: TUN | ED28: TUN | EE28: TUN | EF28: TUN | EG28: TUN | EH28: TUN | EI28: TUN | EJ28: TUN | EK28: TUN | EL28: TUN | EM28: TUN | EN28: TUN | EO28: TUN | EP28: TUN | EQ28: TUR | ER28: VEN | ES28: CAN | ET28: FRA | EU28: FRA | EV28: DEU | EW28: ITA | EX28: KOR | EY28: KOR | EZ28: KOR | FA28: KOR | FB28: KOR | FC28: KOR | FD28: KOR | FE28: KOR | FF28: KOR | FG28: KOR | FH28: RCOL | FI28: AUS | FJ28: BEL | FK28: BRA | FL28: BRA | FM28: FRA | FN28: ESP | FO28: KOR | FP28: CHN | FQ28: FRA | FR28: FRA | FS28: FRA | FT28: CHN | FU28: CHN | FV28: CHN | FW28: POL | FX28: ITA | FY28: ITA | FZ28: ITA | GA28: ITA | GB28: ITA | GC28: POL | GD28: ESP | GE28: ARG | GF28: BEL | GG28: BEL | GH28: BEL | GI28: BEL | GJ28: BEL | GK28: BEL | GL28: BEL | GM28: CHN | GN28: FRA | GO28: FRA | GP28: FRA | GQ28: FRA | GR28: FRA | GS28: FRA | GT28: FRA | GU28: FRA | GV28: FRA | GW28: DEU | GX28: SGP | GY28: SGP | GZ28: SGP | HA28: USA | HB28: USA | HC28: USA | HD28: BEL | HE28: BRA | HF28: BRA | HG28: CAN | HH28: CAN | HI28: CAN | HJ28: CAN | HK28: FIN | HL28: FIN | HM28: FIN | HN28: FRA | HO28: FRA | HP28: FRA | HQ28: FRA | HR28: FRA | HS28: ITA | HT28: MAR | HU28: MAR | HV28: NAM | HW28: NAM | HX28: NAM | HY28: NAM | HZ28: PER | IA28: THA | IB28: THA | IC28: THA | ID28: THA | IE28: THA | IF28: THA | IG28: THA | IH28: THA | II28: THA | IJ28: DZA | IK28: ITA | IL28: CAN | IM28: BEL | IN28: BEL | IO28: BEL | IP28: FRA | IQ28: FRA | IR28: FRA | IS28: FRA | IT28: IRN | IU28: NCL | IV28: NCL | IW28: ZWB | IX28: ZWB | IY28: ZWB | IZ28: ZWB | JA28: ZWB | JB28: ZWB
E29: Location | F29: Tiébaghi | I29: Montelibano | J29: Mont Dore | L29: Kerala | M29: Chanderiya | N29: Chanderiya | Q29: Valladolid | S29: St Ghislain | T29: Anakapalle | V29: Yeong_Heung 5,6 | W29: Changwon - SI | Z29: Stratton | AA29: Casterville | AC29: Elektrenaï | AD29: Panwol | AE29: DANGJIN Thermal Power | AF29: Saint Avold | AG29: Ha Dong Thermal Power | AH29: Samchonpo | AI29: TaeAn | AJ29: Younghung | AK29: Boryeong | AL29: Sofia | AM29: Nameju | AN29: Pyongtaek | AO29: Haïfa | AP29: Ha Dong | BH29: Sterlitamak | BI29: Sterlitamak | BJ29: Stassfurt | BK29: Torrelavega | BL29: Rosignano | BM29: Inovroclaw | BN29: Janikowo | BO29: GUANGZHOU | BP29: Huan an City | BQ29: Kunshan | BR29: Rupel | BS29: Vilvorde | BT29: Rupel | BU29: Guangxi | BV29: Guangxi | BW29: Grand Couronne | BX29: Rouen | BY29: Le Havre | BZ29: Bordeaux | CA29: L'oseraie | CB29: Roches de Condrieu | CC29: Auby | CD29: Madras | CE29: Arad | CF29: Arad | CG29: Arad | CH29: Arad | CI29: Arad | CJ29: Arad | CK29: Arad | CL29: Arad | CM29: Haifa | CN29: Aqaba | CO29: Subotica | CP29: Selaata | CQ29: Selaata | CR29: Selaata | CS29: Jorf Lasfar | CT29: Laayoune | CU29: Varsovie | CV29: Voskresensk | CW29: Moscou | CX29: Darou 2 | CY29: Landskrona | CZ29: Gabes | DA29: La Skhirra | DB29: Sfax | DC29: Sfax | DE29: La Skhirra | DG29: Plant City - Florida | DH29: Plant City - Florida | DI29: Amby Harare | DJ29: Kedainiai | DK29: Djebel onk | DL29: Djebel onk | DM29: Djebel onk | DN29: Le Kouif | DO29: Kapuskasing | DP29: Siilinjärvi | DQ29: Baghdad | DR29: Amman | DS29: Safi | DT29: Khouribga | DU29: Safi | DV29: Piura | DX29: Kpeme | DY29: Kpeme | DZ29: Kpeme | EA29: Lome | EB29: Kef Eddour | EC29: Kef Eddour | ED29: Metlaoui | EE29: Metlaoui | EF29: Redeyef | EG29: M'dhilla - Village | EH29: M'dhilla - Village | EI29: MOULARES | EJ29: MOULARES | EK29: M'Dhilla - Sehib | EL29: Metlaoui / Kef SCHFAIER | EM29: Gafsa | EN29: Gafsa | EO29: Gafsa | EP29: Gafsa | EQ29: Entes | ER29: Ciudad de Moron | ES29: Fort McMurray | ET29: Meyreuil | EV29: Godorf | EX29: Shinboryeong | EY29: Seo Chun | EZ29: Young-Dong | FA29: Hadong | FB29: TaeAn | FC29: Taean | FD29: Sae-Chun | FI29: Mount Isa | FK29: Carajas | FL29: Carajas | FM29: Senecourt | FN29: Cobre las cruces | FP29: Zhumadian | FQ29: Nancy | FR29: Nancy | FS29: Dombasle s/Meurthe | FT29: Hangahou, Zhejiang Province | FU29: Jiangxi province | FV29: Huachang | FW29: Matwy Plant | FX29: Parona | FY29: Parona | FZ29: Rovello | GA29: Carisio | GC29: Varsovie | GE29: Buenos Aires | GF29: Antwerpen | GG29: Antwerpen | GH29: Antwerpen | GI29: Antwerpen | GJ29: Antwerpen | GK29: Escanafles | GL29: Tienen | GN29: Le Péage de Roussillon | GO29: Amiens | GP29: Le Mesnil Saint Nicaise | GQ29: Le Mesnil Saint Nicaise | GR29: Trosly Breuil | GS29: Quesnoy/Deule | GT29: Marseille | GU29: Marseille | GV29: Saint Fons | GW29: Wesseling | GX29: Jurong Island | GY29: Jurong Island | GZ29: Jurong Island | HA29: Theodore | HB29: Theodore | HC29: Theodore | HD29: Balen | HE29: Tres Marias | HF29: Tres Marias | HG29: Flin Flon | HH29: Flin Flon | HI29: Velleyfield | HJ29: Velleyfield | HK29: Kokkola | HL29: Kokkola | HM29: Kokkola | HN29: Auby | HO29: Auby | HP29: Auby | HQ29: Auby | HR29: Auby | HS29: Portoscuso | HT29: Guemassa | HU29: Guemassa | HV29: Rosh Pinah | HW29: Rosh Pinah | HX29: Rosh Pinah | HY29: Rosh Pinah | HZ29: Cajamarquilla | IA29: Tak | IB29: Tak | IC29: Tak | ID29: Tak | IE29: Tak | IJ29: Ghazaouet | IK29: Portoscuso | IL29: Salaberry-de-Valleyfield | IM29: St Ghislain | IN29: Tertre | IO29: Tertre | IP29: LE HAVRE Sandouville | IQ29: LE HAVRE Sandouville | IR29: LE HAVRE Sandouville | IS29: LE HAVRE Sandouville | IT29: Zanjan | IU29: Mont Dore | IV29: Mont Dore | IW29: Chambishi | IX29: Chambishi | IY29: Chambishi | IZ29: Chambishi | JA29: Chambishi | JB29: Kitwe
E30: Area (m2) | F30: 15.75 | G30: 8.13 | H30: 6 | I30: 2.5 | J30: 120 | K30: 31.5 | L30: 63 | M30: 24 | N30: 84 | O30: 45 | P30: 40 | Q30: 45 | R30: 6 | S30: 3 | T30: 49.5 | U30: 12.4 | V30: 49.5 | W30: 9.1 | X30: 49.5 | Y30: 60 | Z30: 73.5 | AA30: 93 | AB30: 13.7 | AC30: 49.5 | AD30: 8 | AE30: 40.5 | AF30: 14.25 | AG30: 40.5 | AH30: 51 | AI30: 40.5 | AJ30: 48 | AK30: 40.5 | AL30: 66 | AM30: 3.5 | AN30: 48 | AO30: 24 | AP30: 40 | AQ30: 15 | AR30: 8.13 | AS30: 12 | AT30: 51 | AU30: 15 | AV30: 76 | AW30: 55.5 | AX30: 36 | AY30: 50 | AZ30: 66 | BA30: 30 | BB30: 51 | BC30: 36 | BD30: 30 | BE30: 30 | BF30: 18 | BG30: 12.5 | BH30: 40 | BI30: 66 | BJ30: 50 | BK30: 81 | BL30: 60 | BM30: 73.5 | BN30: 54 | BO30: 108 | BP30: 54 | BQ30: 81 | BR30: 0.75 | BS30: 3 | BT30: 15 | BU30: 105 | BV30: 6 | BW30: 5 | BX30: 4 | BY30: 30 | BZ30: 10 | CA30: 7.5 | CB30: 5 | CC30: 3.7 | CD30: 25 | CE30: 0.5 | CF30: 100 | CG30: 15 | CH30: 60 | CI30: 40 | CJ30: 12.5 | CK30: 2.5 | CL30: 20 | CM30: 2.5 | CN30: 5 | CO30: 12.5 | CP30: 30 | CQ30: 12 | CR30: 24 | CS30: 49 | CT30: 30 | CU30: 1.8 | CV30: 60 | CW30: 10 | CX30: 30 | CY30: 15 | CZ30: 30 | DA30: 0.1 | DB30: 20 | DC30: 25 | DD30: 0.2 | DE30: 40 | DF30: 0.5 | DG30: 100 | DH30: 84 | DI30: 25 | DJ30: 20 | DK30: 36 | DL30: 36 | DM30: 25 | DN30: 3.7 | DO30: 100 | DP30: 57 | DQ30: 50 | DR30: 1 | DS30: 25 | DT30: 25 | DU30: 25 | DV30: 120 | DW30: 40 | DX30: 25 | DY30: 35 | DZ30: 35 | EA30: 1.8 | EB30: 30 | EC30: 30 | ED30: 10 | EE30: 10 | EF30: 30 | EG30: 10 | EH30: 30 | EI30: 30 | EJ30: 10 | EK30: 30 | EL30: 30 | EM30: 2.4 | EN30: 3 | EO30: 1.8 | EP30: 7.5 | EQ30: 20 | ER30: 40.5 | ES30: 20.25 | ET30: 14.25 | EU30: 4 | EV30: 6 | EW30: 12.5 | EX30: 49.5 | EY30: 7.2 | EZ30: 6 | FA30: 40 | FB30: 40 | FC30: 9.1 | FD30: 7.2 | FE30: 28.5 | FF30: 36 | FG30: 36 | FH30: 42 | FI30: 10 | FJ30: 4 | FK30: 18 | FL30: 2 | FM30: 1 | FN30: 0.5 | FO30: 49.5 | FP30: 81 | FQ30: 50 | FR30: 40 | FS30: 1.5 | FT30: 81 | FU30: 54 | FV30: 81 | FW30: 36 | FX30: 50 | FY30: 40 | FZ30: 10 | GA30: 30 | GB30: 30 | GC30: 2.5 | GD30: 25 | GE30: 2.4 | GF30: 45 | GG30: 51 | GH30: 20 | GI30: 25 | GJ30: 30 | GK30: 5 | GL30: 12.5 | GM30: 6 | GN30: 3 | GO30: 6 | GP30: 6 | GQ30: 4 | GR30: 5 | GS30: 2.4 | GT30: 6 | GU30: 7 | GV30: 3 | GW30: 20 | GX30: 49.5 | GY30: 51 | GZ30: 5 | HA30: 30 | HB30: 25 | HC30: 5 | HD30: 85 | HE30: 100 | HF30: 100 | HG30: 70 | HH30: 70 | HI30: 64.5 | HJ30: 27 | HK30: 51 | HL30: 51 | HM30: 51 | HN30: 85 | HO30: 85 | HP30: 85 | HQ30: 1 | HR30: 85 | HS30: 24 | HT30: 30 | HU30: 69 | HV30: 147 | HW30: 147 | HX30: 0.5 | HY30: 36 | HZ30: 30 | IA30: 70.5 | IB30: 2 | IC30: 5 | ID30: 70 | IE30: 2 | IF30: 5 | IG30: 2 | IH30: 70 | II30: 70 | IJ30: 51 | IK30: 24 | IL30: 64.5 | IM30: 5 | IN30: 3 | IO30: 5 | IP30: 8 | IQ30: 6 | IR30: 1 | IS30: 7.5 | IT30: 20 | IU30: 120 | IV30: 12.5 | IW30: 60 | IX30: 60 | IY30: 60 | IZ30: 60 | JA30: 60 | JB30: 60 | AAB30: 120
E31: Site of production | F31: LE NICKEL-SLN | G31: ERAMET | H31: BOLIDEN | I31: CERRO MATOSO | J31: VALE INCO | K31: ESPANOLA DEL ZINC | L31: BINANI ZINC LIMITED | M31: HINDUSTAN ZINC | N31: HINDUSTAN ZINC | O31: HZL | P31: VEDANI | Q31: BEFESA ALUMINIO SA | R31: COGEMA/AREVA | S31: ERACHEM COMILOG | T31: VISHNU CHEMICALS | U31: KC Cotrell | V31: KOREAN SOUTH-EAST POWER (KOSEP) | W31: GUMI THERMAL POWER PLANT FGD | X31: DOOSAN HEAVY INDUSTRY | Y31: DOOSAN HEAVY EQ | Z31: FIRST ENERGY SAMMIS | AA31: GEORGIA POWER, PLANT AMEC BOWDEN | AB31: Korea zinc eng | AC31: BABCOCK & WILCOX | AD31: STX ENGINE CO LTD | AE31: KOREA EAST-WEST POWER CO LTD (EWP) | AF31: E.ON France | AG31: KOREAN SOUTHERN POWER (KOSPO) | AH31: KOREAN SOUTH-EAST POWER (KOSEP) | AI31: KOREAN WESTERN POWER CO LTD (KOWEPO) | AJ31: KOREAN SOUTH-EAST POWER (KOSEP) | AK31: KOREA MIDLAND POWER CO (KOMIPO) | AL31: TOTEMA | AM31: KOREAN WESTERN POWER CO LTD (KOWEPO) | AN31: KOREAN WESTERN POWER CO LTD (KOWEPO) | AO31: ISRAEL ELECTRIC COMPANY (IEC) | AP31: KOPSO/BABCOCK & WILCOX | AQ31: CETCO | AR31: CETCO | AS31: URALKALY | AT31: DEAD SEA WORKS | AU31: DEAD SEA WORKS | AV31: ARAB POTASH | AW31: QINGHAI | AX31: POTASH CORP | AY31: DEAD SEA WORKS | AZ31: CHANGSHA | BA31: MP SURIA | BB31: HDP/Kouilou | BC31: MP Suria SOLVAY | BD31: LLOBREAGAT | BE31: DEAD SEA WORKS | BF31: HDP | BG31: MDPA | BH31: JSC BASHKIRSKAIA SODOVAIA | BI31: JSC BASHKIRSKAIA SODOVAIA | BJ31: SODAWERK | BK31: SOLVAY QUIMICA | BL31: SOLVAY CHIMICA ITALIA | BM31: SODA POLSKA CIECH ( Ciech Matwy) | BN31: SODA POLSKA CIECH (Ciech Janikowo) | BO31: GUANDONG NANFANG SODA ASH INDUSTRIAL CO/ LTD | BP31: Jingshen | BQ31: Kunshan | BR31: SOCIETE CHIMIQUE DU RUPEL | BS31: SOCIETE CHIMIQUE DU RUPEL | BT31: SOCIETE DES ENGRAIS CHIMIQUES | BU31: Luzhai fertilizer chemical | BV31: Luzhai fertilizer chemical | BW31: APC | BX31: Cie BORDELAISE DE P.C | BY31: COFAZ | BZ31: COFAZ | CA31: PECHINEY SAINT GOBAIN | CB31: RHONE PROGIL | CC31: STE DES PRODUITS DU MAIS | CD31: COROMANDEL INTERNATIONAL FERTILIZER | CE31: ROTEM AMFERT NEGEV | CF31: ROTEM AMFERT NEGEV | CG31: ROTEM AMFERT NEGEV | CH31: ROTEM AMFERT NEGEV | CI31: ROTEM AMFERT NEGEV | CJ31: ROTEM AMFERT NEGEV | CK31: ROTEM AMFERT NEGEV | CL31: ROTEM AMFERT NEGEV | CM31: FERTILISER Ch. | CN31: JORDAN PHOSPHATES MINES CO | CO31: PROREA | CP31: LEBANON CHEMICALS | CQ31: LEBANON CHEMICALS | CR31: LEBANON CHEMICALS | CS31: OCP | CT31: OCP PHOSBOUCRAA | CU31: POLIMEX | CV31: JSC VOSKRESENKIE | CW31: TECHMASHIMPORT | CX31: I.C.S 2 | CY31: A.B. FORENADE | CZ31: COMPAGNIE PHOSPHATES DE GAFSA | DA31: GROUPE CHIMIQUE TUNISIEN | DB31: GROUPE CHIMIQUE TUNISIEN | DC31: N.P.K | DD31: SIAPE Sté Internationale d'acide | DE31: SPIE BATIGNOLLES/SIAPE | DF31: BATEMAN / CARGILL / USA | DG31: MOSAIC FERTILIZERS INC. | DH31: MOSAIC FERTILIZERS INC. | DI31: ZIMPHOS | DJ31: LIFOSA | DK31: SOMIPHOS | DL31: SOMIPHOS | DM31: SOMIPHOS | DN31: Cie PHOSPHATE CONSTANTINE | DO31: AGRIUM PARTNERSHIP | DP31: YARA | DQ31: AL QAIM | DR31: JORDAN PHOSPHATES MINES CO | DS31: OCP (MP2) | DT31: OCP | DU31: FCB/OCP | DV31: CMM Miski Mayo / Bayovar | DW31: GECOPHAM | DX31: SOCIETE NOUVELLE PHOPHATES TOGO | DY31: SOCIETE NOUVELLE PHOPHATES TOGO | DZ31: SOCIETE NOUVELLE PHOPHATES TOGO | EA31: SOCIETE NOUVELLE PHOPHATES TOGO | EB31: COMPAGNIE PHOSPHATES DE GAFSA | EC31: COMPAGNIE PHOSPHATES DE GAFSA | ED31: COMPAGNIE PHOSPHATES DE GAFSA | EE31: COMPAGNIE PHOSPHATES DE GAFSA | EF31: COMPAGNIE PHOSPHATES DE GAFSA | EG31: COMPAGNIE PHOSPHATES DE GAFSA | EH31: COMPAGNIE PHOSPHATES DE GAFSA | EI31: COMPAGNIE PHOSPHATES DE GAFSA | EJ31: COMPAGNIE PHOSPHATES DE GAFSA | EK31: COMPAGNIE PHOSPHATES DE GAFSA | EL31: COMPAGNIE PHOSPHATES DE GAFSA | EM31: COMPAGNIE PHOSPHATES DE GAFSA | EN31: COMPAGNIE PHOSPHATES DE GAFSA | EO31: COMPAGNIE PHOSPHATES DE GAFSA | EP31: COMPAGNIE PHOSPHATES DE GAFSA | EQ31: FCB | ER31: FERTIVEN / PEQUIVEN | ES31: FORT HILLS ENERGY CORPO. | ET31: E.ON France | EU31: SULZER | EV31: SHELL DEUTSCHLAND OIL GmbH | EW31: SALA ITALIANA / CIFA ENEL | EX31: DOOSAN | EY31: KOREA MIDLAND POWER CO (KOMIPO) | EZ31: KOREAN SOUTH-EAST POWER (KOSEP) | FA31: KOREAN WESTERN POWER CO LTD (KOWEPO) | FB31: KOREAN WESTERN POWER CO LTD (KOWEPO) | FC31: IGCC-TAEAN | FD31: KOMIPO | FE31: DOOSAN HEAVY INDUSTRY | FF31: DOOSAN HEAVY INDUSTRY | FG31: KC COTTRELL CO.LTD. | FH31: BDI ENGINEERING | FI31: MOUNT ISA MINES | FJ31: SOGEFILTERS / SEDEMA TERTRE | FK31: CIA VALE DO RIO DOCE - UHC | FL31: CIA VALE DO RIO DOCE - UHC | FM31: POUDMET | FN31: COBRE LAS CRUCES SA | FO31: DOOSAN HEAVY INDUSTRY | FP31: HENAN JUNHA | FQ31: NOVACARB - LA MADELEINE | FR31: NOVACARB - LA MADELEINE | FS31: SOLVAY | FT31: HANGZHOU LONGSHAN CHEMICAL CO | FU31: Jiangxi Jinghao Salt Chemical Co | FV31: HUACHANG | FW31: CIECH SODA POLSKA SA | FX31: INTALS | FY31: INTALS | FZ31: PREMOLI | GA31: SOCIETA' ALLUMINIO - S.P.A | GB31: SALA ITALIANA / SACAL | GC31: POLIMEX | GD31: RESAL | GE31: Cie ARGENTINE IND. & C | GF31: EVONIK DEGUSSA ANTWERPEN NV | GG31: EVONIK DEGUSSA ANTWERPEN NV | GH31: EVONIK DEGUSSA ANTWERPEN NV | GI31: EVONIK DEGUSSA ANTWERPEN NV | GJ31: EVONIK DEGUSSA ANTWERPEN NV | GK31: GALACTIC | GL31: CITRIQUE BELGE | GM31: SPEICHIM | GN31: ADISSEO | GO31: AJINOMOTO EUROLYSINE | GP31: AJINOMOTO FOODS EUROPE | GQ31: AJINOMOTO FOODS EUROPE | GR31: WeylChem | GS31: LE SAFRE | GT31: LEGRE-MANTE | GU31: LEGRE-MANTE | GV31: RHONE POULENC | GW31: EVONIK DEGUSSA GMBH | GX31: Evonik Methionine SEA Pte, Ltd | GY31: Evonik Methionine SEA Pte, Ltd | GZ31: Evonik Methionine SEA Pte, Ltd | HA31: EVONIK INDUSTRIES | HB31: EVONIK INDUSTRIES | HC31: EVONIK INDUSTRIES | HD31: NYRSTAR | HE31: VOTORANTIM METAIS ZINCO | HF31: VOTORANTIM METAIS ZINCO | HG31: HUDSON BAY MINING & SMELTING CO | HH31: HUDSON BAY MINING & SMELTING CO | HI31: SOCIETE EN COMMANDITE | HJ31: SOCIETE EN COMMANDITE | HK31: BOLIDEN | HL31: BOLIDEN | HM31: BOLIDEN | HN31: NYRSTAR | HO31: NYRSTAR | HP31: NYRSTAR | HQ31: NYRSTAR | HR31: NYRSTAR | HS31: PORTOVESME | HT31: CIE MINIERE DE GUEMASSA | HU31: CIE MINIERE DE GUEMASSA | HV31: NAMZINC | HW31: NAMZINC | HX31: NAMZINC | HY31: NAMZINC | HZ31: VOTORANTIM METAIS ZINCO | IA31: PA DAENG INDUSTRIE | IB31: PA DAENG INDUSTRIE | IC31: PA DAENG INDUSTRIE | ID31: PA DAENG INDUSTRIE | IE31: PA DAENG INDUSTRIE | IF31: MECHIM | IG31: MECHIM | IH31: MECHIM | II31: MECHIM | IJ31: ALZINC PROJECT | IK31: PORTOVESME | IL31: REVENU NORANDA | IM31: PRINCE ERACHEM SPRL | IN31: SEDEMA | IO31: SEDEMA | IP31: ERAMET | IQ31: ERAMET | IR31: ERAMET | IS31: ERAMET | IT31: CALCIMINE MINE CO | IU31: VALE INCO | IV31: VALE INCO | IW31: CHAMBISHI METALS | IX31: CHAMBISHI METALS | IY31: CHAMBISHI METALS | IZ31: CHAMBISHI METALS | JA31: CHAMBISHI METALS | JB31: CHAMBISHI METALS | AAB31: CMM Miski Mayo / Bayovar
E32: Reference number (filter) | F32: 507546 | I32: J1271-100 | J32: 18083 - 01 | L32: 504717 | M32: 508713 - 3 | N32: 508713 - 1 | Q32: 510338 | S32: 504385 | T32: 513472 ou 508711 | V32: 863 / 1 | W32: 401 A | X32: PHILHYPS 49.5B30 | Z32: 509218 | AA32: 509561 - 1 | AB32: 513674 | AC32: 508873 | AD32: 507981 | AF32: 505242 | AG32: 509814 | AI32: 505467 - 01 | AJ32: 17566 | AK32: 507590 - 01 | AL32: 509126 - 1 | AM32: 505708 | AN32: 20568 | AO32: 7667 | BH32: 512293-01 | BI32: 512293-02 | BJ32: 514170 | BO32: 515281 | BP32: 515177 / 1 | BU32: 7656 | BV32: 6418 | BY32: 101/42655 | CD32: 9164 | CE32: 101/42655 | CF32: 7624 | CG32: 7625 | CH32: 7630 | CJ32: 9344.02 | CK32: 6485 | CL32: 101/3056 | CN32: 1080 | CP32: 13638 | CQ32: 6305 | CR32: 216 | CS32: 101/41725 | CT32: 4212 | CV32: 9993/1 | CX32: 8613 | CZ32: 70083 | DA32: 47729 | DB32: 41480 | DD32: 47470 | DF32: 18769 | DG32: 3613 | DH32: 3614 | DI32: 9020 | DJ32: CC3615 | DK32: 16914/1 | DL32: 512220 | DM32: 3957 | DO32: 14027 | DP32: 698 ou 513 411 | DQ32: 513345 | DS32: AR195/01 ou 513594 | DU32: 140/01800 | DV32: 514156 - 1 | DW32: 8184 | DX32: 9877 | DY32: 513960 / 1 | DZ32: EQ_909 | EB32: 5940 | EC32: 5939 | EF32: 1039 | EQ32: GC/1094 | ER32: 510268 | ET32: 505705 | EU32: 611 / 5489 | EV32: 15958 | EX32: 2222 / 01 | EY32: 4000 / 1 | EZ32: 2675 / 1 | FA32: 1224 | FB32: 1225 | FC32: 1469 | FE32: PHILGYPS 28.5B30 | FF32: PHILGYPS 36B30 | FG32: PHILGYPS 36B30 | FH32: Philgyps 42B30 | FI32: 505093 | FJ32: 1047 | FK32: 508284-200 | FL32: 508284-100 | FM32: 45760 | FN32: CC3678 | FO32: PHILGYPS | FQ32: 611/1971/00 | FS32: 101/62835 | FW32: VBF | FY32: 509540 | GB32: 101 / 6169 | GF32: 2360 | GG32: 2440 | GH32: 3220 | GI32: 3012 | GJ32: 2887 | GK32: 5245 | GL32: 9342 | GM32: 1578 | GN32: 45150 | GO32: 8910 | GP32: 6851 | GQ32: 55496 | GR32: 63455 | GT32: 1514 | GU32: 1445 | GW32: 3650 / 1 | GX32: 2360 | GY32: 2440 | GZ32: 2658 | HA32: 4334 | HB32: 8866 / 3421 | HC32: 514223 | HD32: 3170 / 01 | HE32: 9195 / 1 | HF32: 9758 | HG32: 11672 | HH32: 11673 | HI32: 2993 | HJ32: 2991 | HK32: 510359 | HL32: 2511 / 1 | HM32: 1756 | HN32: 49400 | HO32: 13695 | HP32: 101 / 8810 | HQ32: 101 / 6323 | HR32: 101 / 3170 | HS32: 508337 | HT32: 14691 | HU32: 14691 | HV32: 504234 | HW32: 14596 - FB 001 | HY32: 14599 | HZ32: 510267 | IA32: 14358 | ID32: 14313 | IF32: 101 / 3839 | IG32: 101 / 43115 | IH32: 101 / 43115 | II32: 101 / 42125 | IJ32: EQ002299-CC2839 | IK32: 15308 / 01 | IM32: 556615 | IO32: 210 / 41264 | IP32: 508428 | IQ32: 63310 | IR32: 1619 | IS32: 6533 | IT32: 54871 | IU32: 18083 - 01 | IV32: 18085 | IW32: 11779 | IX32: 12210 / 01 | IY32: 12210 / 02 | IZ32: 31 | JA32: 1687 | JB32: 2209
E33: Project number | AE33: 20693 | AH33: 19021 | BK33: 1837 - 01 | BL33: 9111 | BM33: 1686 - 01 | BN33: 1686 - 02 | BQ33: 1440 / 01 | DF33: 12140 | FP33: 1816 / 01 | FR33: 60150 | FT33: 2238 | FU33: CC 2740 | FX33: 13946 | FZ33: 7143 | GA33: 7396 | GD33: CC3682
B34: Slurry parameters | E34: Slurry flowrate (T/h) | F34: 42 | G34: 0.7 | H34: 8.3 | I34: 6 | J34: 195 | L34: 38.4 | M34: 28.6 | N34: 30 | O34: 24 | P34: 35.3 | Q34: 22 | R34: 1.02 | S34: 5.04 | T34: 58 | U34: 20 | V34: 80 | W34: 14.6 | X34: 72.73 | Y34: 114.4 | Z34: 161 | AB34: 25.1 | AC34: 89.6 | AE34: 48.4 | AF34: 28.3 | AG34: 72 | AK34: 68.04 | AL34: 103.5 | AM34: 6.1 | AQ34: 600 | AR34: 77.3 | AS34: 200 | AT34: 800 | AU34: 428.6 | AV34: 869 | AW34: 180 | AX34: 137 | AY34: 575 | AZ34: 975 | BA34: 360 | BB34: 700.3 | BD34: 57.1 | BE34: 449 | BF34: 353.8 | BG34: 140 | BH34: 167 | BI34: 253 | BJ34: 238 | BK34: 240 | BO34: 409 | BP34: 145.1 | BQ34: 468 | CF34: 676,6 (from TG 4278) | CI34: 106.25 | FT34: 411.4 | GD34: 3.9 | HK34: 24,45 (data from 1996, 2008 or 2014) | HL34: 24,45 (data from 1996, 2008 or 2014) | HM34: 24,45 (data from 1996, 2008 or 2014) | HS34: 18,9 (data from 2002 or 2006) | HV34: 50 (value from 2005 or 2002) | HW34: 50 (value from 2005 or 2002) | IK34: 18,9 (data from 2002 or 2006) | AAB34: 500
E35: Solid flowrate (T/h) | F35: 23 | G35: 0.315 | H35: 1.35 | I35: 1.7 | J35: 59 | K35: 1.46 | L35: 9.6 | M35: 6 | N35: 9.6 | O35: 6 | P35: 6.3 | Q35: 12 | R35: 0.41 | S35: 0.51 | T35: 25 | U35: 10 | V35: 40 | W35: 7.3 | X35: 40 | Y35: 51.5 | Z35: 64 | AB35: 9.1 | AC35: 22.4 | AE35: 23.51 | AF35: 14.16 | AG35: 35 | AH35: 29.5 | AJ35: 42.5 | AK35: 40 | AL35: 51.76 | AM35: 2.75 | AN35: 48.4 | AQ35: 335 | AR35: 29.9 | AS35: 100 | AT35: 280 | AU35: 150 | AV35: 287 | AW35: 54 | AX35: 60 | AY35: 230 | AZ35: 390 | BA35: 100 | BB35: 210 | BC35: 50 | BD35: 20 | BE35: 220.01 | BF35: 106 | BG35: 70 | BH35: 50 | BI35: 77 | BJ35: 53.5 | BK35: 119.3 | BL35: 60 | BO35: 106.4 | BP35: 62.4 | CR35: 124.1 | HK35: 4,89 (data from 1996, 2008 or 2014) | HL35: 4,89 (data from 1996, 2008 or 2014) | HM35: 4,89 (data from 1996, 2008 or 2014) | HS35: 2,3 (data from 2002 or 2006) | HV35: 42 (value from 2005 or 2002) | HW35: 42 (value from 2005 or 2002) | IK35: 2,3 (data from 2002 or 2006) | AAB35: 300
E36: Temperature (°C) | G36: 10 à 30 | H36: 50 | J36: 68.2 | K36: 41.8 | L36: 80 | N36: 70-90 | T36: 80 | AC36: 40 | AD36: 30 | AF36: 40 | AK36: 50 | AQ36: 65 to 75 | AR36: 65 | AS36: 60 to 100 | AT36: 25 to 30 | AU36: 100 | AW36: 5 to 25 | AY36: 25 to 30 | AZ36: 61 to 68 | BC36: 15 to 30 | BD36: 25 to 30 | BE36: 105 | BG36: 25 | BH36: 30.4 | BI36: 32.4 | BJ36: 31 | BM36: 30 | BN36: 30 | BP36: 31 | BQ36: 40 | CI36: 58 | CR36: 40 | HV36: 40 (value from 2005 or 2002) | HW36: 40 (value from 2005 or 2002) | AAB36: 25
E37: Csolid (w/w%) | F37: 54.8 | G37: 45 | H37: 16 | I37: 28.3 | J37: 30.3 | L37: 25 | M37: 21 | N37: 32 | O37: 25 | P37: 17.8 | Q37: 54.5 | R37: 40.2 | S37: 10.1 | T37: 43.1 | U37: 50 | V37: 50 | W37: 50 | X37: 55 | Y37: 45 | Z37: 39.75 | AB37: 36 | AC37: 25 | AD37: 52 | AE37: 48.56 | AF37: 49.98 | AG37: 48.61 | AK37: 70 | AL37: 50 | AM37: 44.93 | AP37: 30 | AQ37: 55.8 | AR37: 38.7 | AS37: 50 | AT37: 35 | AU37: 35 | AV37: 33 | AW37: 30 | AX37: 43.8 | AY37: 40 | AZ37: 40 | BA37: 27.8 | BB37: 30 | BD37: 35 | BE37: 49 | BF37: 30 | BG37: 50 | BH37: 29.7 | BI37: =30.4 -> 30.4 | BJ37: =22.5 -> 22.5 | BK37: =49.7 -> 49.7 | BM37: 21 | BN37: 21 | BO37: 26 | BP37: =BP35*100/BP34 -> 43.00482426 | BQ37: 0 | CF37: 32 (from TG 4278) | CI37: 26 | CR37: 60 | FT37: 22.3 | FX37: 14 | FY37: 14 | GD37: 15 | HK37: 20 (data from 1996, 2008 or 2014) | HL37: 20 (data from 1996, 2008 or 2014) | HM37: 20 (data from 1996, 2008 or 2014) | HS37: 12,2 (data from 2002 or 2006) | HV37: 84 (value from 2005 or 2002) | HW37: 84 (value from 2005 or 2002) | IK37: 12,2 (data from 2002 or 2006) | AAB37: 60
E38: Particle size (μm) | AI38: 0,5 to 100 (most important interval between 8 and 20) | AN38: Interval 1 to 500 (500 the most likely)
E39: pH | T39: 8.5 | AQ39: 6,5 to 7 | AR39: 5.5 | AS39: 6,5 to 7,5 | AW39: 7 to 8 | AZ39: 5 | BC39: 6 to 7 | BD39: 7 | BE39: 6 to 7
B40: Filtration parameters | C40: Formation | E40: Cake thickness (mm) | K40: 2.94 | AA40: 25 | AC40: 21.3 | AD40: 30 to 50 | AE40: 16.8 | AH40: 15.3 | AI40: 30 | AJ40: 22 to 25 | AN40: 21 | AR40: 50 to 90 | AU40: 50 to 100 | AZ40: 35 | BA40: 35 | BC40: 35 | BD40: 10 | BG40: 50 to 60 | BH40: 28 to 31 | BI40: 30 to 35 | BJ40: 25 to 30 | BK40: 35 | BM40: 25 | BN40: 25 to 30 | BO40: 39 | BP40: 38 | CI40: 17 | CR40: 50 | FT40: 40 | FX40: 5 | FY40: 5 | HV40: 7 to 10 (value from 2005 or 2002) | HW40: 7 to 10 (value from 2005 or 2002) | AAB40: 30
E41: Formation time (s) | F41: 12 | I41: 20 | J41: 15 | K41: 44.32 | L41: 30 | M41: 35 | N41: 45 | O41: 46 | P41: 90 | T41: 35 | U41: 20 | V41: 20 | W41: 20 | X41: 20 | Y41: 20 | Z41: 20 | AA41: 15 (Lab test values) | AB41: 20 | AC41: 20 (Lab test values) | AD41: 20 (Lab test values) | AE41: 20 (Lab test values) | AG41: 20 | AH41: 20 (Lab test values) | AI41: 20 (Lab test values) | AJ41: 30.43 | AK41: 20 (Lab test values) | AL41: 20 | AM41: 15 | AN41: 20 (Lab test values) | AQ41: 4 | AR41: 3 | AT41: 20 | AV41: 20 | AW41: 10 | AX41: 20 | BB41: 15 | BF41: 15 | BH41: 10 | BI41: 10 | BJ41: 14.3 | BK41: 9 | BM41: 20 (data from masterprice) | BN41: 14 | BO41: 12 | BP41: 13 (Lab test values) | BQ41: 21 (Lab test values) | CH41: 30 (masterprice ROTEM Oron 60B30 data) | CI41: 8 | FT41: 12 | FU41: 27 (masterprice value) | FV41: 12 (masterprice value) | FX41: 33 | FY41: 33 | GD41: 30 | HK41: 35 (data from 1996, 2008 or 2014) | HL41: 35 (data from 1996, 2008 or 2014) | HM41: 35 (data from 1996, 2008 or 2014) | HS41: 20 (data from 2002 or 2006) | IK41: 20 (data from 2002 or 2006) | AAB41: 10
C42: Washing | D42: (CAKE) Washing | E42: Washing method | F42: No washing | G42: 2 Direct | H42: 1D | I42: No washing | J42: 1D + 1CC | L42: 2D | M42: 1D | N42: 2D | O42: 2D | Q42: 2D | R42: 1D + 1CC | S42: 2D | T42: 2D | U42: 1D | V42: 1D | W42: 1D | X42: 1D | Y42: 1D | Z42: No washing | AA42: 1D | AB42: 1D | AC42: 1D | AD42: 1D | AE42: 1D | AF42: 1D | AG42: 1D | AH42: 1D | AI42: 1D | AJ42: 1D | AK42: 1D | AL42: 1D | AM42: 1D | AN42: 1D | AQ42: 1D | AR42: No washing | AT42: 2D | AW42: No washing | AX42: 1D | AY42: No washing | BB42: No washing | BC42: No washing | BE42: No washing | BH42: 2D+1CC | BI42: 2D+1CC | BJ42: 2D+1CC | BK42: 1D+1CC | BL42: 1D+1CC | BM42: 2D+1CC | BN42: 2D+1CC | BO42: 2D+1CC | BP42: 2D+1CC | BQ42: 2D+1CC | CI42: ""Dirty water" + tapwater" | DJ42: "No washing required" | FT42: "counter current" | FX42: 2D | FY42: 2D | HK42: 2D (data from 1996, 2008 or 2014) | HL42: 2D (data from 1996, 2008 or 2014) | HM42: 2D (data from 1996, 2008 or 2014) | HS42: 1D (data from 2002 or 2006) | IK42: 1D (data from 2002 or 2006) | AAB42: 1D+2C
E43: Interzone (s) | F43: 0 | I43: 0 | J43: 0 | K43: 2.3 | L43: 5 | M43: 5 | N43: 5 | O43: 0 | P43: 0 | T43: 5 | U43: 10 | V43: 12 | W43: 10 | X43: 10 | Y43: 10 | Z43: 0 | AA43: 10 (Lab test values) | AB43: 10 | AC43: 5 (Lab test values) | AD43: 2 (Lab test values) | AE43: 2 (Lab test values) | AG43: 2 | AH43: 2- (Lab test values) | AI43: 2 (Lab test values) | AJ43: 43.47 | AK43: 2 (Lab test values) | AL43: 2 | AM43: 2 | AN43: 2 (Lab test values) | AQ43: 0 | AR43: 0 | AT43: 0 | AV43: 15 | AW43: 5 | AX43: 2 | AY43: 0 | BB43: 0 | BC43: 0 | BE43: 0 | BF43: 0 | BH43: 10 | BI43: 10 | BJ43: 5.4 | BM43: 5 (data from masterprice) | BN43: 15 | BO43: 21 | BP43: 7 (Lab test values | BQ43: 6 (Lab test values) | DJ43: "No washing required" | FT43: 10 (Lab test values) | FU43: 0 (masterprice value) | FV43: 10 (masterprice value) | FX43: 10 | FY43: 10 | GD43: 15 | HK43: 0 (data from 1996, 2008 or 2014) | HL43: 0 (data from 1996, 2008 or 2014) | HM43: 0 (data from 1996, 2008 or 2014) | HS43: 8 (data from 2002 or 2006) | IK43: 8 (data from 2002 or 2006) | AAB43: 5
E44: Wash 1 time (s) | F44: 0 | I44: 0 | J44: 40 | K44: 90.63 | L44: 40 | M44: 15 | N44: 35 | O44: 54 | P44: 15 | T44: 20 | U44: 20 | V44: 18 | W44: 20 | X44: 20 | Y44: 20 | Z44: 0 | AA44: 15 (Lab test values) | AB44: 20 | AC44: 10 (Lab test values) | AD44: 10 (Lab test values) | AE44: 10 (Lab test values) | AG44: 10 | AH44: 10 (Lab test values) | AI44: 10 (Lab test values) | AJ44: 30.43 | AK44: 10 (Lab test values) | AL44: 10 | AM44: 10 | AN44: 20 (Lab test values) | AQ44: 2 | AR44: 0 | AT44: 5 | AV44: 10 | AW44: 0 | AX44: 12 | AY44: 0 | BB44: 0 | BC44: 0 | BE44: 0 | BF44: 5 | BH44: 5 | BI44: 5 | BJ44: 4.6 | BK44: 8 | BM44: 20 (data from masterprice) | BN44: 4 | BO44: 3 | BP44: 10 (Lab test values) | BQ44: 4 (Lab test values) | CH44: 15 (masterprice ROTEM Oron 60B30 data) | DJ44: "No washing required" | FT44: 1 (Lab test values) | FU44: 14 (masterprice value) | FV44: 5 (masterprice value) | FX44: 11.3 | FY44: 11.3 | GD44: 8 | HK44: 23 (data from 1996, 2008 or 2014) | HL44: 23 (data from 1996, 2008 or 2014) | HM44: 23 (data from 1996, 2008 or 2014) | HS44: 30 (data from 2002 or 2006) | IK44: 30 (data from 2002 or 2006) | AAB44: 15
E45: Wash 2 time (s) | F45: 0 | I45: 0 | J45: 0 | K45: 34.06 | L45: 40 | M45: 0 | N45: 25 | O45: 36 | P45: 15 | T45: 20 | AQ45: 0 | AR45: 0 | AT45: 5 | AV45: 10 | AW45: 0 | AX45: 0 | AY45: 0 | BB45: 0 | BC45: 0 | BE45: 0 | BF45: 0 | BH45: 5 | BI45: 5 | BJ45: 3.7 | BK45: 4 | BN45: 4 | BO45: 3 | BP45: 3 (Lab test values) | CH45: 15 (masterprice ROTEM Oron 60B30 data) | DJ45: "No washing required" | FT45: 1 (Lab test values) | FX45: 11.3 | FY45: 11.3 | GD45: 8 | HK45: 23 (data from 1996, 2008 or 2014) | HL45: 23 (data from 1996, 2008 or 2014) | HM45: 23 (data from 1996, 2008 or 2014) | HS45: 0 (data from 2002 or 2006) | IK45: 0 (data from 2002 or 2006) | AAB45: 15
E46: Wash 3 time (s) | F46: 0 | I46: 0 | J46: 0 | K46: 0 | L46: 0 | M46: 0 | N46: 0 | O46: 0 | P46: 15 | T46: 0 | AQ46: 0 | AR46: 0 | AT46: 0 | AV46: 10 | AW46: 0 | AX46: 0 | AY46: 0 | BB46: 0 | BC46: 0 | BE46: 0 | BF46: 0 | BH46: 5 | BI46: 5 | BJ46: 2.8 | BN46: 3 | BO46: 3 | DJ46: "No washing required" | GD46: 5 | HK46: 0 (data from 1996, 2008 or 2014) | HL46: 0 (data from 1996, 2008 or 2014) | HM46: 0 (data from 1996, 2008 or 2014) | HS46: 0 (data from 2002 or 2006) | IK46: 0 (data from 2002 or 2006) | AAB46: 10
E47: Wash water 1 (m3/h) | F47: No washing | G47: 1.5 | I47: No washing | J47: 55 | K47: 1,61? | L47: 12 | M47: 10 | N47: 9.6 | O47: 9 | P47: 3 | Q47: 6.34 | S47: 2.5 | T47: 11 | AR47: No washing | AT47: 30 | AV47: 47.5 | AW47: No washing | AX47: 12 | AY47: No washing | BA47: 15 | BB47: No washing | BC47: No washing | BE47: No washing | BF47: 16 | BH47: 4.925 | BI47: 7.2 | BJ47: 4.585 | BK47: 28 | BO47: 12.9 | BP47: 6.3 | HK47: 5 (data from 1996, 2008 or 2014) | HL47: 5 (data from 1996, 2008 or 2014) | HM47: 5 (data from 1996, 2008 or 2014) | HS47: 2,5 (data from 2002 or 2006) | IK47: 2,5 (data from 2002 or 2006) | AAB47: 120
E48: Wash ratio 1 (m3/t) per dry solid | F48: No washing | G48: 4.76 | I48: No washing | J48: 0.93 | L48: 1.25 | M48: 1.67 | N48: 1 | O48: 1.5 | P48: 0.48 | Q48: 0.53 | S48: 4.9 | T48: 0.44 | AR48: No washing | AT48: 0.11 | AV48: 0.17 | AW48: No washing | AX48: 0.2 | AY48: No washing | BA48: 0.15 | BB48: No washing | BC48: No washing | BE48: No washing | BF48: 0.15 | BH48: =BH49/BH68 -> 0.09949494949 | BI48: =0.095 -> 0.095 | BJ48: =0.085 -> 0.085 | BO48: 0.1212406015 | BP48: 0.1009615385 | HK48: 1,02 (data from 1996, 2008 or 2014) | HL48: 1,02 (data from 1996, 2008 or 2014) | HM48: 1,02 (data from 1996, 2008 or 2014) | HS48: 1,09 (data from 2002 or 2006) | IK48: 1,09 (data from 2002 or 2006) | AAB48: =AAB47/AAB35 -> 0.4
E49: Wash water 2 (m3/h) | F49: No washing | G49: 10.8 | I49: No washing | J49: 0 | K49: 1,91? | L49: 12 | M49: 0 | N49: 9.6 | O49: 6 | P49: 3 | Q49: 2.38 | S49: 1.7 | T49: 10 | AR49: No washing | AT49: 30 | AV49: 47.5 | AW49: No washing | AX49: 0 | AY49: No washing | BA49: 15 | BB49: No washing | BC49: No washing | BE49: No washing | BF49: 0 | BH49: 4.925 | BI49: 7.2 | BJ49: 4.585 | BO49: 12.9 | BP49: 6.3 | HK49: 5,39 (data from 1996, 2008 or 2014) | HL49: 5,39 (data from 1996, 2008 or 2014) | HM49: 5,39 (data from 1996, 2008 or 2014) | HS49: 0 (data from 2002 or 2006) | IK49: 0 (data from 2002 or 2006)
E50: Wash ratio 2 (m3/t) per dry solid | F50: No washing | G50: 34.29 | I50: No washing | J50: 0 | L50: 1.25 | M50: 0 | N50: 1 | O50: 1 | P50: 0.48 | Q50: 0.2 | S50: 3.33 | T50: 0.4 | AR50: No washing | AT50: 0.11 | AV50: 0.17 | AW50: No washing | AX50: 0 | AY50: No washing | BA50: 0.15 | BB50: No washing | BC50: No washing | BE50: No washing | BF50: 0 | BH50: =BH49/BH68 -> 0.09949494949 | BI50: =0.095 -> 0.095 | BJ50: =0.085 -> 0.085 | BO50: 0.1212406015 | BP50: 0.1009615385 | HK50: 1,1 (data from 1996, 2008 or 2014) | HL50: 1,1 (data from 1996, 2008 or 2014) | HM50: 1,1 (data from 1996, 2008 or 2014) | HS50: 0 (data from 2002 or 2006) | IK50: 0 (data from 2002 or 2006)
E51: Wash water 3 (m3/h) | F51: No washing | G51: 0 | I51: No washing | J51: 0 | K51: 0 | L51: 0 | M51: 0 | N51: 0 | O51: 0 | P51: 2 | Q51: 0 | S51: 0 | T51: 0 | AR51: No washing | AT51: 0 | AV51: 10 | AW51: No washing | AX51: 0 | AY51: No washing | BA51: 15 | BB51: No washing | BC51: No washing | BE51: No washing | BF51: 0 | HK51: 0 (data from 1996, 2008 or 2014) | HL51: 0 (data from 1996, 2008 or 2014) | HM51: 0 (data from 1996, 2008 or 2014) | HS51: 0 (data from 2002 or 2006) | IK51: 0 (data from 2002 or 2006)
E52: Wash ratio 3 (m3/t) per dry solid | F52: No washing | G52: 0 | I52: No washing | J52: 0 | L52: 0 | M52: 0 | N52: 0 | O52: 0 | P52: 0.32 | Q52: 0 | S52: 0 | T52: 0 | AR52: No washing | AT52: 0 | AV52: 0.03 | AW52: No washing | AX52: 0 | AY52: No washing | BA52: 0.15 | BB52: No washing | BC52: No washing | BE52: No washing | BF52: 0 | CI52: 0.29 | HK52: 0 (data from 1996, 2008 or 2014) | HL52: 0 (data from 1996, 2008 or 2014) | HM52: 0 (data from 1996, 2008 or 2014) | HS52: 0 (data from 2002 or 2006) | IK52: 0 (data from 2002 or 2006)
D53: (CLOTH & BELT) Washing | E53: Wash water cloth and belt (m3/h) | BH53: 8.73 | BI53: 13 | BJ53: 10.4 | BK53: 13 | BO53: 16.7 | BP53: 13.5
E54: Wash ratio cloth and belt (m3/t) per dry solid | BH54: =0.17 -> 0.17 | BI54: =BI53/BI68 -> 0.1688311688 | BJ54: 0.1943925234 | BO54: 0.1569548872 | BP54: 0.2163461538
D55: (Total) Washing | E55: Wash water total (m3/h) | F55: No washing | G55: 12.3 | I55: No washing | J55: 55 | L55: 24 | M55: 10 | N55: 19.2 | O55: 15 | P55: 8 | Q55: 8.72 | S55: 4.2 | T55: 21 | U55: 6 | V55: 24 | W55: 5 | X55: 24 | Y55: 31 | Z55: No washing | AA55: 38.6 | AB55: 6.06 | AC55: 22 | AD55: 3.7 | AE55: 22.78 | AF55: 8.5 | AG55: 21 | AH55: 24.75 | AI55: 13 | AK55: 21 | AL55: 34.5 | AM55: 1.8 | AN55: 27 | AP55: 35 | AQ55: 5.2 | AR55: No washing | AS55: 5 | AT55: 60 | AV55: 105 | AW55: No washing | AX55: 12 | AY55: No washing | AZ55: 13.18 | BA55: 45 | BB55: No washing | BC55: No washing | BE55: No washing | BF55: 16 | BH55: =BH47+BH49+BH53 -> 18.58 | BI55: =27.44 -> 27.44 | BJ55: 19.57 | BK55: 41 | BL55: 22.5 | BO55: 42.5 | BP55: 25.74 | HK55: 10,39 (data from 1996, 2008 or 2014) | HL55: 10,39 (data from 1996, 2008 or 2014) | HM55: 10,39 (data from 1996, 2008 or 2014) | HS55: 2,5 (data from 2002 or 2006) | IK55: 2,5 (data from 2002 or 2006) | AAB55: 120
E56: Wash ratio total (m3/t) per dry solid | F56: No washing | G56: 39 | I56: No washing | J56: 0.93 | K56: 1 | L56: 2.5 | M56: 1.67 | N56: 2 | O56: 2.5 | P56: 1.27 | Q56: 0.73 | S56: 8.24 | T56: 0.84 | U56: 0.6 | V56: 0.6 | W56: 0.68 | X56: 0.6 | Y56: 0.6 | Z56: No washing | AB56: 0.7 | AC56: 0.98 | AE56: 0.97 | AF56: 0.6 | AG56: 0.6 | AH56: 0.84 | AK56: 0.53 | AL56: 0.67 | AM56: 0.65 | AN56: 0.56 | AQ56: 0.02 | AR56: No washing | AS56: 0.05 | AT56: 0.21 | AV56: 0.37 | AW56: No washing | AX56: 0.2 | AY56: No washing | AZ56: 0.03 | BA56: 0.45 | BB56: No washing | BC56: No washing | BE56: No washing | BF56: 0.15 | BH56: =0.38 -> 0.38 | BI56: =BI48+BI50+BI54 -> 0.3588311688 | BJ56: =0.37 -> 0.37 | BL56: 0.38 | BM56: <0,7 | BN56: <0,7 | BO56: 0.3994360902 | BP56: 0.41 | FX56: 2.4 | FY56: 2.4 | HK56: 2,12 (data from 1996, 2008 or 2014) | HL56: 2,12 (data from 1996, 2008 or 2014) | HM56: 2,12 (data from 1996, 2008 or 2014) | HS56: 1,09 (data from 2002 or 2006) | HV56: 0,3 (value from 2005 or 2002) | HW56: 0,3 (value from 2005 or 2002) | IK56: 1,09 (data from 2002 or 2006) | AAB56: =AAB55/AAB35 -> 0.4
D57: Na2CO3 washing data | E57: Wash ratio 1 (m3/t) per dry Na2CO3 | BH57: =BH47/BH75 -> 0.1590248628 | BI57: 0.1495637723 | BJ57: =0.135 -> 0.135 | BO57: 0.195 | BP57: 0.1615384615
E58: Wash ratio 2 (m3/t) per dry Na2CO3 | BH58: =BH49/BH75 -> 0.1590248628 | BI58: 0.1495637723 | BJ58: =0.135 -> 0.135 | BO58: 0.195 | BP58: 0.1615384615
E59: Wash ratio cloth and belt (m3/t) per dry Na2CO3 | BH59: =BH53/BH75 -> 0.2818856958 | BI59: 0.2700457 | BJ59: 0.3113772455 | BO59: 0.2511278195 | BP59: 0.3461538462
E60: Wash ratio total (m3/t) per dry Na2CO3 | BH60: =BH57+BH58+BH59 -> 0.5999354214 | BI60: 0.5691732447 | BJ60: =0.59 -> 0.59 | BK60: =0.55 -> 0.55 | BL60: 0.6 | BO60: 0.71 | BP60: 0.66
C61: Drying | E61: Dry time (s) | F61: 60 | J61: 25 | K61: 33.76 | L61: 30 | M61: 40 | N61: 35 | O61: 12 | P61: 15 | T61: 50 | U61: 40 | V61: 40 | W61: 40 | X61: 40 | Y61: 40 | Z61: 40 | AA61: 70 (Lab test values) | AB61: 40 | AC61: 40 (Lab test values) | AD61: 30 (Lab test values) | AE61: 58 (Lab test values) | AG61: 58 | AH61: 60 (Lab test values) | AI61: 58 (Lab test values) | AJ61: 69.53 | AK61: 58 (Lab test values) | AL61: 40 | AM61: 35 | AN61: 50 (Lab test values) | AQ61: 20 | AR61: 57 | AT61: 30 | AV61: 25 | AW61: 30 | AX61: 16 | BB61: 35 | BC61: 0 | BF61: 35 | BJ61: 50.6 | BK61: 45 | BM61: 45 (data from masterprice) | BN61: 48 | BO61: 50 | BP61: 60 (Lab test values) | BQ61: 63 (Lab test values) | CH61: 30 (masterprice ROTEM Oron 60B30 data) | CR61: 40 | FU61: 48 (masterprice value) | FV61: 80 (masterprice value) | FX61: 20 | FY61: 20 | GD61: voir offre | HK61: 17 (data from 1996, 2008 or 2014) | HL61: 17 (data from 1996, 2008 or 2014) | HM61: 17 (data from 1996, 2008 or 2014) | HS61: 30 (data from 2002 or 2006) | IK61: 30 (data from 2002 or 2006) | AAB61: 45
C62: Results | E62: Cycle time (s) | F62: 72 | J62: 90 | K62: 205.75 | L62: 145 | M62: 95 | N62: 145 | O62: 148 | P62: 150 | T62: 130 | U62: 90 | V62: 90 | W62: 90 | X62: 90 | Y62: 90 | Z62: 60 | AA62: 110 (Lab test values) | AB62: 90 | AC62: 75 (Lab test values) | AD62: 62 (Lab test values) | AE62: 90 (Lab test values) | AG62: 90 | AH62: 90 (Lab test values) | AI62: 90 (Lab test values) | AJ62: 173.86 | AK62: 90 (Lab test values) | AL62: 72 | AM62: 62 | AN62: 92 (Lab test values) | AQ62: 27 | AR62: 60 | AT62: 60 | AV62: 90 | AW62: 45 | AX62: 50 | BB62: 50 | BD62: 80 | BF62: 55 | BH62: 67.4 | BI62: 85.1 | BJ62: 92 | BK62: 96 | BM62: 90 (data from masterprice) | BN62: 88 | BO62: 92 | BP62: 95 | BQ62: 90 (Lab test values) | CH62: 90 (masterprice ROTEM Oron 60B30 data) | FU62: 89 (masterprice value) | FV62: 107 (masterprice value) | FX62: 86 | FY62: 86 | GD62: voir offre | HK62: 98 (data from 1996, 2008 or 2014) | HL62: 98 (data from 1996, 2008 or 2014) | HM62: 98 (data from 1996, 2008 or 2014) | HS62: 88 (data from 2002 or 2006) | IK62: 88 (data from 2002 or 2006) | AAB62: =SUM(AAB41+(SUM(AAB43:AAB46))+AAB61) -> 100
E63: Filtrability (T/h/m2) | F63: 1.46 | G63: 0.04 | I63: 0.68 | J63: 0.49 | L63: 0.15 | M63: 0.25 | N63: 0.11 | O63: 0.13 | P63: 0.16 | Q63: 0.27 | R63: 0.07 | S63: 0.17 | T63: 0.51 | U63: 0.81 | V63: 0.81 | W63: 0.8 | X63: 0.81 | Y63: 0.86 | Z63: 0.87 | AB63: 0.66 | AC63: 0.45 | AE63: 0.58 | AF63: 0.99 | AG63: 0.86 | AH63: 0.58 | AJ63: 0.89 | AK63: 0.99 | AL63: 0.78 | AM63: 0.79 | AN63: 1.01 | AQ63: 22 | AR63: 3.7 | AS63: 8.3 | AT63: 5.5 | AU63: 10 | AV63: 3.8 | AW63: 0.97 | AX63: 1.7 | AY63: 4.6 | AZ63: 5.9 | BA63: 3 | BB63: 4.1 | BC63: 1.4 | BE63: 8 | BF63: 5.9 | BG63: 5.6 | BH63: =1.2 -> 1.2 | BI63: =1.2 -> 1.2 | BJ63: =1.2 -> 1.2 | BK63: =BK68/BK30 -> 1.472839506 | BL63: 1 | BO63: 0.9851851852 | BP63: 1.2 | CR63: 5.17 | FX63: 0.174 | FY63: 0.174 | HK63: 0,1 (data from 1996, 2008 or 2014) | HL63: 0,1 (data from 1996, 2008 or 2014) | HM63: 0,1 (data from 1996, 2008 or 2014) | HS63: 0,1 (data from 2002 or 2006) | HV63: 0,29 (value from 2005 or 2002) | HW63: 0,29 (value from 2005 or 2002) | IK63: 0,1 (data from 2002 or 2006) | AAB63: 2.5
B64: Equipement parameters | E64: Lowest belt speed (m/min) | F64: 2 | G64: 0.5 | H64: 0.75 | I64: 1.25 | J64: 5 | K64: 3.12 | L64: 2.67 | M64: 2 | N64: 3.67 | O64: 2 | P64: 2.67 | Q64: 2.5 | S64: 0.83 | T64: 2.67 | U64: 2 | V64: 3.17 | W64: 1.42 | X64: 3.37 | Y64: 4 | Z64: 4.67 | AB64: 2.17 | AC64: Around 9 | AD64: 1.39 | AE64: 6.56 | AF64: 5.83 | AG64: 2.67 | AH64: 4.7 | AI64: 9 | AJ64: 6.9 | AL64: 4.33 | AM64: 0.83 | AN64: 11.4 | AQ64: 6.67 | AR64: 2.17 | AT64: 5.83 | AV64: 5 | AW64: 5.5 | AX64: 4 | BA64: 2.3 | BB64: 4.17 | BC64: 6.5 | BD64: 2.5 | BF64: 2.33 | BG64: 15 | FX64: 17.3 | FY64: 12.2 | HK64: 1 (data from 1996, 2008 or 2014) | HL64: 1 (data from 1996, 2008 or 2014) | HM64: 1 (data from 1996, 2008 or 2014) | HS64: 1,67 (data from 2002 or 2006) | HV64: 15,05 (value from 2005 or 2002) | HW64: 15,05 (value from 2005 or 2002) | IK64: 1,67 (data from 2002 or 2006) | AAB64: 5.83
E65: Maximum belt speed (m/min) | F65: 12 | G65: 3 | H65: 4.5 | I65: 7.5 | J65: 30 | K65: 3.12 | L65: 16 | M65: 12 | N65: 22 | O65: 12 | P65: 16 | Q65: 15 | S65: 5 | T65: 16 | U65: 12 | V65: 22 | W65: 8.5 | X65: 22 | Y65: 24 | Z65: 28 | AB65: 13 | AC65: Around 9 | AD65: 1.39 | AE65: 6.56 | AF65: 5.83 | AG65: 16 | AH65: 4.7 | AI65: 9 | AJ65: 6.9 | AL65: 26 | AM65: 5 | AN65: 11.4 | AQ65: 35 | AR65: 13 | AT65: 35 | AV65: 30 | AW65: 33 | AX65: 24 | AZ65: 30 | BA65: 14 | BB65: 25 | BC65: 6.5 | BD65: 15 | BF65: 14 | BG65: 15 | HK65: 6 (data from 1996, 2008 or 2014) | HL65: 6 (data from 1996, 2008 or 2014) | HM65: 6 (data from 1996, 2008 or 2014) | HS65: 10 (data from 2002 or 2006) | HV65: 15,05 (value from 2005 or 2002) | HW65: 15,05 (value from 2005 or 2002) | IK65: 10 (data from 2002 or 2006) | AAB65: 35
E66: Vacuum pump air flow (m3/h) | F66: 2800 | H66: 1200 | I66: 900 | J66: 12000 | L66: 5100 | M66: 2000 | N66: 6000 | O66: 3600 | P66: 3000 | Q66: 3600 | R66: 750 | S66: 550 | T66: 5000 | U66: 3700 | V66: 15000 | W66: 2800 | X66: 15000 | Y66: 18000 | Z66: 27000 | AB66: 4200 | AF66: 4000 | AG66: 12400 | AL66: 20000 | AM66: 1050 | AO66: 7000 | AQ66: 6000 | AR66: 3300 | AT66: 13000 | AV66: 30400 | AW66: 12700 | AX66: 7200 | AZ66: 28000 | BA66: 4200 | BB66: 20000 | BC66: 6500 | BD66: 4200 | BE66: 7000 | BF66: 7200 | BG66: 6000 | BK66: 26000 | BL66: 24375 | BP66: 24300 | HK66: 5000 (data from 1996, 2008 or 2014) | HL66: 5000 (data from 1996, 2008 or 2014) | HM66: 5000 (data from 1996, 2008 or 2014) | HS66: 1700 (data from 2002 or 2006) | IK66: 1700 (data from 2002 or 2006) | AAB66: 36000
E67: Vacuum pump(m3/h/m2) | F67: 178 | H67: =1200/6 -> 200 | I67: 360 | J67: 100 | L67: 81 | M67: 83 | N67: 71 | O67: 80 | P67: 75 | Q67: 80 | R67: 125 | S67: 183 | T67: 101 | U67: 298 | V67: 303 | W67: 308 | X67: 303 | Y67: 300 | Z67: 367 | AB67: 307 | AF67: 281 | AG67: 306 | AL67: 303 | AM67: 300 | AO67: 292 | AQ67: 400 | AR67: 406 | AT67: 255 | AV67: 400 | AW67: 229 | AX67: 200 | AZ67: 424 | BA67: 140 | BB67: 392 | BC67: 181 | BD67: 140 | BE67: 233 | BF67: 400 | BG67: 480 | BH67: =BH66/BH30 -> 0 | BI67: 0 | BJ67: 0 | BK67: 321 | BL67: 406 | BP67: 450 | HK67: 98 (data from 1996, 2008 or 2014) | HL67: 98 (data from 1996, 2008 or 2014) | HM67: 98 (data from 1996, 2008 or 2014) | HS67: 71 (data from 2002 or 2006) | IK67: 71 (data from 2002 or 2006) | AAB67: 300
B68: Performances | E68: Dry cake (T/h) | F68: 23 | G68: 0.315 | H68: 1.35 | I68: 1.7 | J68: 59 | K68: 1.46 | L68: 9.6 | M68: 6 | N68: 9.6 | O68: 6 | P68: 6.3 | Q68: 12 | R68: 0.41 | S68: 0.51 | T68: 25 | U68: 10 | V68: 40 | W68: 7.3 | X68: 40 | Y68: 51.5 | Z68: 64 | AB68: 9.1 | AC68: 22.4 | AE68: 23.51 | AF68: 14.16 | AG68: 35 | AH68: 29.5 | AJ68: 42.5 | AK68: 40 | AL68: 51.76 | AM68: 2.75 | AN68: 48.4 | AQ68: 335 | AR68: 29.9 | AS68: 100 | AT68: 280 | AU68: 150 | AV68: 287 | AW68: 54 | AX68: 60 | AY68: 230 | AZ68: 390 | BA68: 100 | BB68: 210 | BC68: 50 | BE68: 220 | BF68: 106 | BG68: 70 | BH68: 49.5 | BI68: 77 | BJ68: 53.5 | BK68: 119.3 | BL68: 60 | BO68: 106.4 | BP68: 62.4 | CF68: 216,5 (from TG 4278) | FX68: 8.5 | FY68: 7 | HK68: 4,89 (data from 1996, 2008 or 2014) | HL68: 4,89 (data from 1996, 2008 or 2014) | HM68: 4,89 (data from 1996, 2008 or 2014) | HS68: 2,3 (data from 2002 or 2006) | HV68: 42 (value from 2005 or 2002) | HW68: 42 (value from 2005 or 2002) | IK68: 2,3 (data from 2002 or 2006) | AAB68: 300
E69: Wet cake (T/h) | F69: 29.5 | G69: 0.7 | I69: 4.1 | J69: 92.2 | L69: 15.4 | M69: 7.2 | N69: 17.5 | O69: 9.6 | P69: 7.5 | Q69: 15.4 | T69: 33.8 | U69: 11.1 | V69: 44.4 | W69: 8.1 | X69: 44.4 | Y69: 57.2 | Z69: 73.6 | AC69: 25.3 | AE69: 27.4 | AF69: 15.7 | AG69: 38.9 | AJ69: 47.2 | AK69: 44.4 | AL69: 57.5 | AM69: 3.1 | AN69: 53.8 | AQ69: 362 | AR69: 32.2 | AS69: 106 | AT69: 350 | AU69: 179 | AW69: 64 | AX69: 65 | AY69: 288 | AZ69: 439 | BC69: 54 | BE69: 249 | BG69: 74 | BH69: =59.6 -> 59.6 | BI69: =92.1 -> 92.1 | BJ69: =63.7 -> 63.7 | BK69: =143.4 -> 143.4 | BL69: =BL68*100/(100-BL72) -> 70.75471698 | BO69: 130.9 | BP69: 79 | HK69: 10,9 (data from 1996, 2008 or 2014) | HL69: 10,9 (data from 1996, 2008 or 2014) | HM69: 10,9 (data from 1996, 2008 or 2014) | HS69: 4,1 (data from 2002 or 2006) | IK69: 4,1 (data from 2002 or 2006)
E70: Daily dry cake (T/day) | F70: 552 | G70: 7.56 | I70: 40.8 | J70: 1416 | L70: 230.4 | M70: 144 | N70: 230.4 | O70: 144 | P70: 151.2 | Q70: 288 | R70: 9.84 | S70: 12.24 | T70: 600 | U70: 240 | V70: 960 | W70: 175 | X70: 960 | Y70: 1236 | Z70: 1536 | AB70: 218.4 | AC70: 537.6 | AE70: 564.24 | AF70: 339.84 | AG70: 840 | AJ70: 1020 | AK70: 960 | AL70: 1242 | AM70: 66 | AN70: 1162 | AQ70: 8040 | AR70: 718 | AS70: 2400 | AT70: 6720 | AU70: 3600 | AV70: 6888 | AW70: 1296 | AX70: 1440 | AY70: 5520 | AZ70: 9360 | BA70: 2400 | BB70: 5040 | BC70: 1200 | BE70: 5280 | BF70: 2544 | BG70: 1680 | BH70: =1189 -> 1189 | BI70: =1849 -> 1849 | BJ70: =BJ68*24 -> 1284 | BK70: =2863 -> 2863 | BL70: 1440 | BM70: 2*1200 (2 filters) | BN70: 2*1200 (2 filters) | BO70: 2554 | BP70: 1497.6 | HK70: 117,36 (data from 1996, 2008 or 2014) | HL70: 117,36 (data from 1996, 2008 or 2014) | HM70: 117,36 (data from 1996, 2008 or 2014) | HS70: 55,2 (data from 2002 or 2006) | HV70: 1008 (value from 2005 or 2002) | HW70: 1008 (value from 2005 or 2002) | IK70: 55,2 (data from 2002 or 2006)
E71: Daily wet cake (T/day) | F71: 707.7 | G71: 16.8 | I71: 99.1 | J71: 2212.5 | L71: 368.6 | M71: 172.8 | N71: 418.9 | O71: 230.4 | P71: 179.7 | Q71: 369.2 | T71: 810.8 | U71: 267 | V71: 1067 | W71: 195 | X71: 1067 | Y71: 1373 | Z71: 1766 | AC71: 606 | AE71: 657 | AF71: 378 | AG71: 933 | AJ71: 1132 | AK71: 1066 | AL71: 1380 | AM71: 73 | AN71: 1291 | AQ71: 8688 | AR71: 772 | AS71: 2553 | AT71: 8400 | AU71: 4286 | AW71: 1525 | AX71: 1548 | AY71: 6900 | AZ71: 10541 | BC71: 1290 | BE71: 5966 | BG71: 1787 | BH71: =1429 -> 1429 | BI71: =2211 -> 2211 | BJ71: =1529 -> 1529 | BK71: =3441 -> 3441 | BL71: =1698 -> 1698 | BO71: 3142 | BP71: 1895 | HK71: 260,8 (data from 1996, 2008 or 2014) | HL71: 260,8 (data from 1996, 2008 or 2014) | HM71: 260,8 (data from 1996, 2008 or 2014) | HS71: 97,7 (data from 2002 or 2006) | IK71: 97,7 (data from 2002 or 2006)
E72: Cake moisture (%) | F72: 22 | G72: 55 | H72: 19 | I72: 58.8 | J72: 36 | L72: 37.5 | M72: 16.7 | N72: 45 | O72: 37.5 | P72: 15.9 | Q72: 22 | T72: 26 | U72: 10 | V72: 10 | W72: 10 | X72: 10 | Y72: 10 | Z72: 13 | AC72: 11.3 | AD72: 14 | AE72: 14.1 | AF72: 10 | AG72: 10 | AJ72: 9.9 | AK72: 9.97 | AL72: 10 | AM72: 10 | AN72: 10 | AP72: 10.01 | AQ72: 7.46 | AR72: 7 | AS72: 6 | AT72: 20 | AU72: 16 | AW72: 15 | AX72: 5 to 8 | AY72: 20 | AZ72: 11.2 | BC72: 7 | BD72: 11 | BE72: 11.5 | BG72: 6 | BH72: 16.8 | BI72: 16.4 | BJ72: 16 | BK72: 16.8 | BL72: 15.2 | BM72: 16.5 | BN72: 16 | BO72: 18.7 | BP72: 20.97 | CR72: <0,15 | FT72: 15 | FX72: 39 | FY72: 39 | HK72: 55 (data from 1996, 2008 or 2014) | HL72: 55 (data from 1996, 2008 or 2014) | HM72: 55 (data from 1996, 2008 or 2014) | HS72: 43,5 (data from 2002 or 2006) | IK72: 43,5 (data from 2002 or 2006) | AAB72: 16
E73: Salt content in cake (%) | H73: H2SO4<10% | U73: 100 | V73: 100 | W73: 100 | X73: 100 | Y73: 100 | AD73: 100 | AF73: 100 | AG73: 100 | AJ73: 300 | AL73: 100 | AM73: 100 | AN73: 133 | AP73: 140 | BH73: 0,16 in soda ash | BI73: 0,18 in soda ash | BJ73: 0,11 in soda ash | BL73: 0,13 in soda ash | BM73: 0.07 | BN73: 0.06 | CI73: 3,13 (P2O5) | 0,66 (K2O) | FX73: 0.2 | FY73: 0.2 | AAB73: < 700 ppm
E74: LOSS (%) | BH74: 2.71 | BI74: 2.46 | BP74: 1.22
D75: Na2CO3 data | E75: Na2CO3 (T/h) | BH75: 30.97 | BI75: 48.14 | BJ75: 33.4 | BK75: 74.5 | BL75: 37.5 | BO75: 66.5 | BP75: 39
E76: Na2CO3 (T/h/m2) | BH76: =BH75/BH30 -> 0.77425 | BI76: 0.7293939394 | BJ76: 0.668 | BK76: =BK75/BK30 -> 0.9197530864 | BL76: 0.63 | BO76: 0.6157407407 | BP76: 0.7222222222
E77: Na2CO3 daily production (T/Day) | BH77: =744.8 -> 744.8 | BI77: =1166.4 -> 1166.4 | BJ77: =832.7 -> 832.7 | BK77: =1789 -> 1789 | BL77: =BL75*24 -> 900 | BO77: 1596 | BP77: 936
E78: Na2CO3 Annual Production for belt filter running 365 days (T/Year) | BH78: =BH77*365 -> 271852 | BI78: 425736 | BJ78: =303936 -> 303936 | BK78: =653018 -> 653018 | BL78: 328500 | BO78: 582540 | BP78: 341640
E79: Conversion rate NaHCO3 to Na2CO3 | BH79: 1.6 | BI79: 1.6 | BJ79: 1.6 | BK79: 1.6 | BL79: 1.6 | BM79: 1.6 | BN79: 1.6 | BO79: 1.6 | BP79: 1.6 | BQ79: 1.6 | FT79: 1.6
B80: Materials | D80: S/E 01: Main frame | E80: Frame | F80: Carbon steel | G80: AISI 316L | I80: Carbon steel | J80: AISI 316L | K80: AISI 316L | L80: AISI 316L | M80: AISI 304L | N80: AISI 304L | O80: Carbon steel | P80: AISI 316L | Q80: Carbon steel | R80: AISI 316L | S80: AISI 904L | T80: Carbon steel | U80: Carbon steel | V80: Carbon steel | W80: Carbon steel | X80: Carbon steel | Y80: Carbon steel | Z80: Carbon steel | AA80: Carbon steel | AB80: Carbon steel | AC80: Carbon steel | AD80: Carbon steel | AE80: Carbon steel | AF80: Carbon steel epoxy painted | AG80: Carbon steel | AH80: Carbon steel | AI80: Carbon steel | AK80: Carbon steel | AL80: Carbon steel | AM80: Carbon steel | AN80: Carbon steel | AQ80: AISI 316L | AR80: AISI 316L | AT80: AISI 316L | AU80: AISI 316L | AV80: Carbon steel | AW80: Carbon steel | AX80: AISI 316L | AY80: AISI 316L | AZ80: Carbon steel | BA80: AISI 316L | BB80: AISI 316L | BC80: AISI 316L | BD80: AISI 316L | BE80: AISI 316L | BF80: AISI 316L | BH80: AISI 316L | BI80: AISI 316L | BJ80: AISI 316L | BK80: AISI 316L | BL80: AISI 316L | BM80: AISI 316L | BN80: AISI 316L | BO80: AISI 316L | BP80: AISI 316L | BQ80: AISI 316L | DL80: S 235 JR | FV80: AISI 316L | HK80: AISI 316L (data from 1996, 2008 or 2014) | HL80: AISI 316L (data from 1996, 2008 or 2014) | HM80: AISI 316L (data from 1996, 2008 or 2014) | HS80: AISI 316L (data from 2002 or 2006) | HV80: AISI 316L (data from 2005 or 2002) | HW80: AISI 316L (data from 2005 or 2002) | IK80: AISI 316L (data from 2002 or 2006)
D81: S/E 02: Cloth & belt run | E81: Cloth tracking
E82: Cloth support roller | FV82: AISI 316L
E83: Cloth return roller | F83: AISI 304L | G83: CSRL | I83: AISI 304L | J83: AISI 316L | K83: AISI 316L | L83: AISI 316L | M83: AISI 316L | N83: AISI 316L | O83: AISI 316L | P83: AISI 316L | Q83: AISI 316L | R83: AISI 316L | S83: CSRL | T83: AISI 304L | U83: CSRL | V83: CSRL | W83: CSRL | X83: CSRL | Y83: CSRL | Z83: CSRL | AA83: CSRL | AB83: CSRL | AC83: CSRL | AD83: CSRL | AE83: CSRL | AF83: CSRL | AG83: CSRL | AH83: CSRL | AI83: CSRL | AK83: CSRL | AL83: CSRL | AM83: CSRL | AN83: CSRL | AQ83: AISI 316L | AR83: AISI 316L | AT83: AISI 316L | AU83: AISI 316L | AV83: AISI 316L | AW83: CSRL | AX83: AISI 316L | AY83: AISI 316L | AZ83: Carbon steel | BA83: AISI 316L | BB83: AISI 316L | BC83: AISI 316L | BD83: AISI 316L | BE83: AISI 316L | BF83: AISI 316L | BH83: AISI 316L | BI83: AISI 316L | BJ83: AISI 316L | BK83: AISI 316L | BL83: AISI 316L | BM83: AISI 316L | BN83: AISI 316L | BO83: AISI 316L | BP83: AISI 316L | BQ83: AISI 316L | FV83: AISI 316L | HK83: AISI 316L (data from 1996, 2008 or 2014) | HL83: AISI 316L (data from 1996, 2008 or 2014) | HM83: AISI 316L (data from 1996, 2008 or 2014) | HS83: AISI 316L (data from 2002 or 2006) | HV83: AISI 316L (data from 2005 or 2002) | HW83: AISI 316L (data from 2005 or 2002) | IK83: AISI 316L (data from 2002 or 2006)
E84: Cloth tension & take up device
E85: Head pulley & drive unit | FV85: XC18S/S235JR/SVR
E86: Belt tracking roller 1 rollers type
E87: Belt tracking roller 2 rollers type
E88: Tail pulley | FV88: XC18S/S235JR/SVR
E89: Belt support roller | F89: AISI 304L | G89: CSRL | I89: AISI 304L | J89: AISI 316L | K89: AISI 316L | L89: AISI 316L | M89: AISI 316L | N89: AISI 316L | O89: AISI 316L | P89: AISI 316L | Q89: AISI 316L | R89: AISI 316L | S89: AISI 316L | T89: AISI 304L | U89: CSRL | V89: CSRL | W89: CSRL | X89: CSRL | Y89: CSRL | Z89: CSRL | AA89: CSRL | AB89: CSRL | AC89: CSRL | AD89: CSRL | AE89: CSRL | AF89: CSRL | AG89: CSRL | AH89: CSRL | AI89: CSRL | AK89: CSRL | AL89: CSRL | AM89: CSRL | AN89: CSRL | AQ89: AISI 316L | AR89: AISI 316L | AT89: AISI 316L | AU89: AISI 316L | AV89: AISI 316L | AW89: CSRL | AX89: AISI 316L | AY89: AISI 316L | AZ89: AISI 316L | BA89: AISI 316L | BB89: AISI 316L | BC89: AISI 316L | BD89: AISI 316L | BE89: AISI 316L | BF89: AISI 316L | BH89: AISI 316L | BI89: AISI 316L | BJ89: AISI 316L | BK89: AISI 316L | BL89: AISI 316L | BM89: AISI 316L | BN89: AISI 316L | BO89: AISI 316L | BP89: AISI 316L | BQ89: AISI 316L | FV89: AISI 316L | HK89: AISI 316L (data from 1996, 2008 or 2014) | HL89: AISI 316L (data from 1996, 2008 or 2014) | HM89: AISI 316L (data from 1996, 2008 or 2014) | HS89: AISI 316L (data from 2002 or 2006) | HV89: MSRL (data from 2005 or 2002) | HW89: MSRL (data from 2005 or 2002) | IK89: AISI 316L (data from 2002 or 2006)
E90: Rubber belt | F90: SBR | G90: SBR | I90: SBR | J90: SBR | K90: SBR | L90: SBR | M90: SBR | N90: SBR | O90: SBR | P90: SBR | Q90: EPDM | R90: SBR | S90: SBR | T90: EPDM | U90: SBR | V90: SBR | W90: SBR | X90: SBR | Y90: SBR | Z90: SBR | AA90: SBR | AB90: SBR | AC90: SBR | AD90: SBR | AE90: SBR | AF90: SBR | AG90: SBR | AH90: SBR | AI90: SBR | AK90: SBR | AL90: SBR | AM90: SBR | AN90: SBR | AO90: SBR | AQ90: SBR | AR90: SBR | AT90: EPDM | AU90: SBR/EPDM | AV90: SBR | AW90: SBR | AX90: SBR | AY90: SBR/EPDM | AZ90: SBR | BA90: RUBBER | BB90: SBR | BC90: SBR | BD90: SBR | BE90: SBR/EPDM | BF90: EPDM | BH90: SBR | BI90: SBR | BJ90: SBR | BK90: SBR | BL90: SBR | BM90: SBR | BN90: SBR | BO90: SBR | BP90: SBR | BQ90: SBR | FV90: SBR | HK90: SBR (data from 1996, 2008 or 2014) | HL90: SBR (data from 1996, 2008 or 2014) | HM90: SBR (data from 1996, 2008 or 2014) | HS90: SBR (data from 2002 or 2006) | HV90: SBR (data from 2005 or 2002) | HW90: SBR (data from 2005 or 2002) | IK90: SBR (data from 2002 or 2006)
E91: Inlet roller | FV91: U45N
E92: Pneumatic feeler
E93: Filter cloth (Warp/Weft - Reference - opening - Fiber) | F93: Mo - SEFAR - 85 - PP | G93: Mo/Mu - 07 8435 SK 10 - 10 - PES | P93: Mo/Mo - SEFAR - 30 - PP | Q93: Mo - PP | R93: Mo/Mu - SEFAR - 20 - PP | S93: Mo/Mo - PP | U93: Mo - SEFAR - 85 - PP | V93: Mo - SEFAR - 85 - PP | W93: Mo - SEFAR - 85 - PP | X93: Mo - SEFAR - 85 - PP | Y93: Mo - SEFAR - 85 - PP | Z93: Mo - SEFAR - 85 - PP | AA93: Mo - SEFAR - 85 - PP | AB93: Mo - SEFAR - 85 - PP | AC93: Mo - SEFAR - 85 - PP | AD93: Mo - SEFAR - 85 - PP | AE93: Mo - SEFAR - 85 - PP | AF93: Mo - SEFAR - 85 - PP | AG93: Mo - SEFAR - 85 - PP | AH93: Mo - SEFAR - 85 - PP | AI93: Mo - SEFAR - 85 - PP | AJ93: Mo - SEFAR - 85 - PP | AK93: Mo - SEFAR - 85 - PP | AL93: Mo - SEFAR - 85 - PP | AM93: Mo - SEFAR - 85 - PP | AN93: Mo - SEFAR - 85 - PP | AO93: Mo - SEFAR - 85 - PP | AQ93: Mo/Dlw - PP | AR93: Mo/Dlw - PP | AS93: Mo/Dlw - PP | AT93: Mo/Dlw - PP | AU93: Mo/Dlw - PP | AV93: Mo/Dlw - PP | AW93: Mo/Dlw - PP | AX93: Mo/Mo Dlw - SEFAR - 85 - PP | AY93: VENDOIR | AZ93: Mo - SEFAR or SCANDIAFELT - ?? - PES | BA93: VERSEIDAG - 6623 PES | BC93: VERSEIDAG - 6623 PES | BD93: VERSEIDAG - 6623 PES | BH93: Mo/Mo Dlw - SEFAR - 50 - PP | BI93: Mo/Mo Dlw - SEFAR - 50 - PP | BJ93: Mo/Mo Dlw - 214-3 CRAMER - 50 - PP | BK93: Mo - SEFAR - 120 - PP | BL93: Mo - VERSEIDAG - 6982 PES | BM93: Mo/Dlw - PP | BO93: Mo/Mo Dlw- 214-3 CRAMER - 50 - PP | BP93: Mo/Mo Dlw- SEFAR - 50 - PP | BQ93: Dlw - SEFAR - 50 - PP | CR93: Monofilament | FX93: Double layer - C50 HC | HK93: Mo - PP (data from 1996, 2008 or 2014) | HL93: Mo - PP (data from 1996, 2008 or 2014) | HM93: Mo - PP (data from 1996, 2008 or 2014) | HV93: Mo - PP/PES (data from 2005 or 2002) | HW93: Mo - PP/PES (data from 2005 or 2002)
D94: S/E 03: Drive unit
D95: S/E 04: Vacuum box | E95: Section | F95: AISI 304L | G95: FRP | I95: AISI 304L | J95: AISI 316L | K95: U45N | L95: AISI 904L | M95: AISI 904L | N95: AISI 904L | O95: DIN 4435 | P95: AISI 316L | Q95: AISI 316L | R95: AISI 316L | S95: FRP | T95: AISI 304L | U95: FRP | V95: FRP | W95: FRP | X95: FRP | Y95: FRP | Z95: FRP | AA95: FRP | AB95: FRP | AC95: FRP | AD95: FRP | AE95: FRP | AF95: FRP | AG95: FRP | AH95: FRP | AI95: FRP | AK95: FRP | AL95: FRP | AM95: FRP | AN95: FRP | AO95: FRP | AQ95: AISI 904L | AR95: AISI 316L | AT95: AISI 316L | AU95: AISI 316L | AV95: AISI 316L | AW95: AISI 316L | AX95: AISI 316L | AY95: AISI 316L | AZ95: AISI 316L | BA95: AISI 316L | BB95: AISI 316L | BC95: AISI 316L | BD95: AISI 316L | BE95: AISI 316L | BF95: AISI 316L | BH95: U45N | BI95: U45N | BJ95: U45N | BK95: U45N | BL95: AISI 316L | BM95: U45N | BN95: U45N | BO95: U45N | BP95: U45N | BQ95: U45N | FV95: U45N | HK95: AISI 904L (data from 1996, 2008 or 2014) | HL95: AISI 904L (data from 1996, 2008 or 2014) | HM95: AISI 904L (data from 1996, 2008 or 2014) | HS95: AISI 316L (data from 2002 or 2006) | HV95: U45N (data from 2005 or 2002) | HW95: U45N (data from 2005 or 2002) | IK95: AISI 316L (data from 2002 or 2006)
E96: Vacuum box support frame | F96: AISI 304L | G96: AISI 316L | I96: AISI 304L | J96: AISI 316L | K96: AISI 316L | L96: AISI 316L | M96: AISI 316L | N96: AISI 304L | O96: AISI 316L | P96: AISI 316L | Q96: AISI 316L | R96: AISI 316L | S96: AISI 904L | T96: AISI 304L | U96: AISI 316L | V96: AISI 316L | W96: AISI 316L | X96: AISI 316L | Y96: AISI 316L | Z96: AISI 316L | AA96: AISI 316L | AB96: AISI 316L | AC96: AISI 316L | AD96: AISI 316L | AE96: AISI 316L | AG96: AISI 316L | AH96: AISI 316L | AI96: AISI 316L | AK96: AISI 316L | AL96: AISI 316L | AM96: AISI 316L | AN96: AISI 316L | AQ96: AISI 316L | AR96: AISI 316L | AT96: AISI 316L | AU96: AISI 316L | AV96: AISI 316L | AW96: AISI 316L | AX96: AISI 316L | AY96: AISI 316L | AZ96: AISI 316L | BA96: AISI 316L | BB96: AISI 316L | BC96: AISI 316L | BD96: AISI 316L | BE96: AISI 316L | BF96: AISI 316L | BH96: AISI 316L | BI96: AISI 316L | BJ96: AISI 316L | BK96: AISI 316L | BL96: AISI 316L | BM96: AISI 316L | BN96: AISI 316L | BO96: AISI 316L | BP96: AISI 316L | BQ96: AISI 316L | FV96: U45N | HK96: AISI 316L (data from 1996, 2008 or 2014) | HL96: AISI 316L (data from 1996, 2008 or 2014) | HM96: AISI 316L (data from 1996, 2008 or 2014) | HS96: AISI 316L (data from 2002 or 2006) | HV96: AISI 316L (data from 2005 or 2002) | HW96: AISI 316L (data from 2005 or 2002) | IK96: AISI 316L (data from 2002 or 2006)
E97: Filtrate connection | F97: AISI 304L | G97: FRP | I97: AISI 304L | J97: AISI 316L | K97: U45N | L97: AISI 904L | M97: AISI 904L | N97: AISI 904L | O97: DIN 4435 | P97: AISI 316L | Q97: AISI 316L | S97: Polypropylen | T97: AISI 304L | U97: FRP | V97: FRP | W97: POLYPROPYLEN | X97: FRP | Y97: FRP | Z97: POLYPROPYLEN | AA97: POLYPROPYLEN | AB97: FRP | AC97: POLYPROPYLEN | AD97: POLYPROPYLEN | AE97: CSRL | AF97: POLYPROPYLEN | AG97: CSRL | AH97: CSRL | AI97: CSRL | AK97: CSRL | AL97: POLYPROPYLEN | AM97: POLYPROPYLEN | AN97: POLYPROPYLEN | AO97: POLYPROPYLEN | AQ97: AISI 904L | AR97: AISI 316L | AT97: AISI 316L | AU97: AISI 316L | AV97: AISI 316L | AW97: AISI 316L | AX97: AISI 316L | AZ97: Carbon steel | BA97: AISI 316L | BB97: AISI 316L | BC97: AISI 904L | BD97: AISI 904L | BE97: AISI 316L | BF97: AISI 316L | BH97: U45N | BI97: U45N | BJ97: U45N | BK97: U45N | BL97: AISI 316L | BM97: U45N | BN97: SVR | BO97: U45N | BP97: U45N | BQ97: U45N | FV97: U45N | HK97: AISI 904L (data from 1996, 2008 or 2014) | HL97: AISI 904L (data from 1996, 2008 or 2014) | HM97: AISI 904L (data from 1996, 2008 or 2014) | HS97: AISI 316L (data from 2002 or 2006) | HV97: U45N (data from 2005 or 2002) | HW97: U45N (data from 2005 or 2002) | IK97: AISI 316L (data from 2002 or 2006)
D98: S/E 05: Cloth and belt washing and cake discharge | E98: Cake discharge
E99: Cloth and belt washing | F99: AISI 304L | G99: AISI 316L | I99: AISI 304L | J99: AISI 316L | K99: AISI 316L | L99: AISI 316L | M99: AISI 316L | N99: AISI 316L | O99: AISI 316L | P99: AISI 316L | Q99: AISI 316L | R99: AISI 316L | S99: AISI 316L | T99: AISI 304L | U99: AISI 316L | V99: AISI 316L | W99: AISI 316L | X99: AISI 316L | Y99: AISI 316L | Z99: AISI 316L | AA99: AISI 316L | AB99: AISI 316L | AC99: AISI 316L | AD99: AISI 316L | AE99: AISI 316L | AF99: SS 316L | AG99: AISI 316L | AH99: AISI 316L | AI99: AISI 316L | AK99: AISI 316L | AL99: AISI 316L | AM99: AISI 316L | AN99: AISI 316L | AO99: POLYPROPYLEN | AQ99: AISI 316L | AR99: AISI 316L | AT99: AISI 316L | AU99: AISI 316L | AV99: AISI 316L | AW99: AISI 304L | AX99: AISI 316L | AY99: AISI 316L | AZ99: Carbon steel | BA99: AISI 316L | BB99: AISI 316L | BC99: AISI 316L | BD99: AISI 316L | BE99: AISI 316L | BF99: AISI 316L | BH99: AISI 316L | BI99: AISI 316L | BJ99: AISI 316L | BK99: AISI 316L | BL99: AISI 316L | BM99: AISI 316L | BN99: AISI 316L | BO99: AISI 316L | BP99: AISI 316L | BQ99: AISI 316L | FV99: AISI 316L | HK99: AISI 316L (data from 1996, 2008 or 2014) | HL99: AISI 316L (data from 1996, 2008 or 2014) | HM99: AISI 316L (data from 1996, 2008 or 2014) | HS99: AISI 316L (data from 2002 or 2006) | HV99: U45N (data from 2005 or 2002) | HW99: U45N (data from 2005 or 2002) | IK99: AISI 316L (data from 2002 or 2006)
E100: Cloth and belt wash water collecting tank | F100: AISI 304L | G100: AISI 316L | I100: AISI 304L | J100: AISI 316L | K100: AISI 316L | L100: AISI 316L | M100: AISI 316L | N100: AISI 316L | O100: DIN 4435 | P100: AISI 316L | Q100: AISI 316L | R100: AISI 316L | S100: POLYPROPYLEN | T100: AISI 304L | U100: POLYPROPYLEN | V100: POLYPROPYLEN | W100: POLYPROPYLEN | X100: POLYPROPYLEN | Y100: POLYPROPYLEN | Z100: POLYPROPYLEN | AA100: POLYPROPYLEN | AB100: POLYPROPYLEN | AC100: POLYPROPYLEN | AD100: POLYPROPYLEN | AE100: POLYPROPYLEN | AG100: POLYPROPYLEN | AH100: POLYPROPYLEN | AI100: POLYPROPYLEN | AK100: POLYPROPYLEN | AL100: POLYPROPYLEN | AM100: POLYPROPYLEN | AN100: POLYPROPYLEN | AO100: POLYPROPYLEN | AQ100: AISI 316L | AR100: AISI 316L | AT100: AISI 316L | AU100: AISI 316L | AV100: AISI 316L | AW100: Carbon steel | AX100: AISI 316L | AY100: AISI 316L | AZ100: AISI 316L | BA100: AISI 316L | BB100: AISI 316L | BC100: AISI 316L | BD100: AISI 316L | BE100: AISI 316L | BF100: AISI 316L | BH100: U45N | BI100: U45N | BJ100: U45N | BK100: U45N | BL100: AISI 316L | BM100: AISI 316L | BN100: U45N | BO100: U45N | BP100: U45N | BQ100: U45N | FV100: AISI 316L | HK100: AISI 316L (data from 1996, 2008 or 2014) | HL100: AISI 316L (data from 1996, 2008 or 2014) | HM100: AISI 316L (data from 1996, 2008 or 2014) | HS100: AISI 316L (data from 2002 or 2006) | HV100: U45N (data from 2005 or 2002) | HW100: U45N (data from 2005 or 2002) | IK100: AISI 316L (data from 2002 or 2006)
E101: Liquid Ring collecting tank
E102: Cake discharge hopper | F102: AISI 304L | G102: Polypropylen | I102: AISI 304L | J102: AISI 316L | K102: AISI 316L | L102: AISI 316L | M102: AISI 316L | N102: AISI 316L | O102: AISI 316L | P102: AISI 316L | Q102: AISI 316L | R102: AISI 316L | S102: POLYETHYLENE | T102: AISI 304L | U102: POLYPROPYLEN | V102: POLYPROPYLEN | W102: POLYPROPYLEN | X102: POLYPROPYLEN | Y102: POLYPROPYLEN | Z102: POLYPROPYLEN | AA102: POLYPROPYLEN | AB102: POLYPROPYLEN | AC102: POLYPROPYLEN | AD102: POLYPROPYLEN | AE102: POLYPROPYLEN | AG102: POLYPROPYLEN | AH102: POLYPROPYLEN | AI102: POLYPROPYLEN | AK102: POLYPROPYLEN | AL102: POLYPROPYLEN | AM102: POLYPROPYLEN | AN102: POLYPROPYLEN | AQ102: AISI 316L | AR102: POLYPROPYLEN | AT102: AISI 316L | AU102: AISI 316L | AV102: AISI 316L | AW102: Carbon steel | AX102: AISI 316L | AY102: AISI 316L | AZ102: POLYURETHANE | BA102: AISI 316L | BB102: AISI 316L | BC102: AISI 316L | BD102: AISI 316L | BE102: AISI 316L | BF102: AISI 316L | BH102: AISI 316L | BI102: AISI 316L | BJ102: AISI 316L | BK102: AISI 316L | BL102: AISI 316L | BM102: AISI 316L | BN102: AISI 316L | BO102: AISI 316L | BP102: AISI 316L | BQ102: AISI 316L | HK102: AISI 316L (data from 1996, 2008 or 2014) | HL102: AISI 316L (data from 1996, 2008 or 2014) | HM102: AISI 316L (data from 1996, 2008 or 2014) | HS102: AISI 316L (data from 2002 or 2006) | HV102: AISI 316L (data from 2005 or 2002) | HW102: AISI 316L (data from 2005 or 2002) | IK102: AISI 316L (data from 2002 or 2006)
E103: Discharge roller | F103: AISI 304L | G103: CSRL | I103: AISI 304L | J103: AISI 316L | K103: AISI 316L | S103: CSRL | T103: AISI 304L | U103: CSRL | V103: CSRL | W103: CSRL | X103: CSRL | Y103: CSRL | Z103: CSRL | AA103: CSRL | AB103: CSRL | AC103: CSRL | AD103: CSRL | AE103: CSRL | AG103: CSRL | AH103: CSRL | AI103: CSRL | AK103: CSRL | AL103: CSRL | AM103: CSRL | AN103: CSRL | AQ103: AISI 316L | AR103: AISI 316L | AT103: AISI 316L | AU103: AISI 316L | AV103: AISI 316L | AW103: CSRL | AX103: AISI 316L | AY103: AISI 316L | AZ103: AISI 316L | BA103: AISI 316L | BB103: AISI 316L | BC103: AISI 316L | BD103: AISI 316L | BE103: AISI 316L | BF103: AISI 316L | BH103: AISI 316L | BI103: AISI 316L | BJ103: AISI 316L | BK103: AISI 316L | BL103: AISI 316L | BM103: AISI 316L | BN103: AISI 316L | BO103: AISI 316L | BP103: AISI 316L | BQ103: AISI 316L | FV103: AISI 316L
E104: Cloth wash water pan | F104: AISI 304L | G104: Polypropylen | I104: AISI 304L | J104: AISI 316L | K104: AISI 316L | L104: AISI 316L | M104: AISI 304L | N104: AISI 316L | O104: AISI 316L | P104: AISI 316L | Q104: AISI 316L | R104: AISI 316L | S104: POLYPROPYLEN | T104: AISI 304L | U104: POLYPROPYLEN | V104: POLYPROPYLEN | W104: POLYPROPYLEN | X104: POLYPROPYLEN | Y104: POLYPROPYLEN | Z104: POLYPROPYLEN | AA104: POLYPROPYLEN | AB104: POLYPROPYLEN | AC104: POLYPROPYLEN | AD104: POLYPROPYLEN | AE104: POLYPROPYLEN | AG104: POLYPROPYLEN | AH104: POLYPROPYLEN | AI104: POLYPROPYLEN | AK104: POLYPROPYLEN | AL104: POLYPROPYLEN | AM104: POLYPROPYLEN | AN104: POLYPROPYLEN | AO104: POLYPROPYLEN | AQ104: AISI 316L | AR104: POLYPROPYLEN | AT104: AISI 316L | AU104: AISI 316L | AV104: AISI 316L | AW104: Carbon steel | AX104: AISI 316L | AY104: AISI 316L | AZ104: AISI 316L | BA104: AISI 316L | BB104: AISI 316L | BC104: AISI 316L | BD104: AISI 316L | BE104: AISI 316L | BF104: AISI 316L | BH104: AISI 316L | BI104: AISI 316L | BJ104: AISI 316L | BK104: AISI 316L | BL104: AISI 316L | BM104: AISI 316L | BN104: AISI 316L | BO104: AISI 316L | BP104: AISI 316L | BQ104: AISI 316L | HK104: AISI 316L (data from 1996, 2008 or 2014) | HL104: AISI 316L (data from 1996, 2008 or 2014) | HM104: AISI 316L (data from 1996, 2008 or 2014) | HS104: AISI 316L (data from 2002 or 2006) | HV104: U45N (data from 2005 or 2002) | HW104: U45N (data from 2005 or 2002) | IK104: AISI 316L (data from 2002 or 2006)
D105: S/E 06: Upper accessories | E105: Slurry entrance dam (former feed dam roller) | F105: AISI 304L | G105: Polypropylen | I105: AISI 304L | J105: AISI 316L | K105: U45N | L105: AISI 904L | M105: AISI 904L | N105: AISI 904L | O105: DIN 4435 | P105: AISI 316L | Q105: AISI 316L | R105: AISI 316L | S105: POLYPROPYLEN | T105: AISI 304L | U105: CSRL | V105: CSRL | W105: CSRL | X105: CSRL | Y105: CSRL | Z105: CSRL | AA105: CSRL | AB105: CSRL | AC105: CSRL | AD105: CSRL | AE105: CSRL | AG105: CSRL | AH105: CSRL | AI105: CSRL | AK105: CSRL | AL105: CSRL | AM105: CSRL | AN105: CSRL | AQ105: AISI 316L | AR105: AISI 316L | AT105: AISI 316L | AU105: AISI 316L | AV105: CSRL | AW105: CSRL | AX105: AISI 316L | AY105: AISI 316L | AZ105: AISI 316L | BA105: AISI 316L | BB105: AISI 316L | BC105: AISI 316L | BD105: AISI 316L | BE105: AISI 316L | BF105: AISI 316L | BH105: U45N | BI105: U45N | BJ105: U45N | BK105: U45N | BL105: AISI 316L | BM105: U45N | BN105: U45N | BO105: U45N | BP105: U45N | BQ105: U45N | HK105: AISI 904L (data from 1996, 2008 or 2014) | HL105: AISI 904L (data from 1996, 2008 or 2014) | HM105: AISI 904L (data from 1996, 2008 or 2014) | HS105: AISI 316L (data from 2002 or 2006) | HV105: U45N (data from 2005 or 2002) | HW105: U45N (data from 2005 or 2002) | IK105: AISI 316L (data from 2002 or 2006)
E106: Pendular Dam
E107: Slurry Distributor | F107: AISI 304L | G107: Polypropylen | I107: AISI 304L | J107: AISI 316L | K107: U45N | L107: AISI 904L | M107: AISI 904L | N107: AISI 904L | O107: DIN 4435 | P107: AISI 316L | Q107: AISI 316L | R107: AISI 316L | S107: POLYPROPYLEN | T107: AISI 304L | U107: POLYPROPYLEN | V107: POLYPROPYLEN | W107: POLYPROPYLEN | X107: POLYPROPYLEN | Y107: POLYPROPYLEN | Z107: POLYPROPYLEN | AA107: POLYPROPYLEN | AB107: POLYPROPYLEN | AC107: POLYPROPYLEN | AD107: POLYPROPYLEN | AE107: POLYPROPYLEN | AF107: POLYPROPYLEN | AG107: POLYPROPYLEN | AH107: POLYPROPYLEN | AI107: POLYPROPYLEN | AK107: POLYPROPYLEN | AL107: POLYPROPYLEN | AM107: POLYPROPYLEN | AN107: POLYPROPYLEN | AQ107: AISI 316L | AR107: AISI 316L | AT107: AISI 316L | AU107: AISI 316L | AV107: AISI 316L | AW107: Carbon steel | AX107: AISI 316L | AY107: AISI 316L | AZ107: AISI 316L | BA107: AISI 316L | BB107: AISI 316L | BC107: AISI 316L | BD107: AISI 316L | BE107: AISI 316L | BF107: AISI 316L | BH107: U45N | BI107: U45N | BJ107: U45N | BK107: U45N | BL107: AISI 316L | BM107: U45N | BN107: U45N | BO107: U45N | BP107: U45N | BQ107: U45N | HK107: AISI 904L (data from 1996, 2008 or 2014) | HL107: AISI 904L (data from 1996, 2008 or 2014) | HM107: AISI 904L (data from 1996, 2008 or 2014) | HS107: AISI 316L (data from 2002 or 2006) | HV107: U45N (data from 2005 or 2002) | HW107: U45N (data from 2005 or 2002) | IK107: AISI 316L (data from 2002 or 2006)
E108: Cake washing distributor / Process equipment trolley | F108: AISI 304L | G108: AISI 316L
D109: S/E 07: Belt support table | F109: AISI 304L | G109: AISI 316L | I109: AISI 304L | J109: AISI 316L | K109: AISI 316L | L109: AISI 304L | M109: AISI 304L | N109: AISI 304L | O109: AISI 304L | P109: AISI 316L | Q109: AISI 316L | R109: AISI 316L | S109: AISI 904L | T109: Carbon steel | U109: AISI 304L | V109: AISI 304L | W109: AISI 304L | X109: Carbon steel | Y109: Carbon steel | Z109: Carbon steel | AA109: Carbon steel | AB109: Carbon steel | AC109: Carbon steel | AD109: Carbon steel | AE109: AISI 304L | AF109: AISI 304L | AG109: AISI 304L | AH109: AISI 304L | AI109: AISI 304L | AK109: AISI 304L | AL109: AISI 304L | AM109: AISI 304L | AN109: AISI 304L | AQ109: AISI 316L | AR109: AISI 316L | AT109: AISI 316L | AU109: AISI 316L | AV109: AISI 316L | AW109: AISI 304L | AX109: AISI 316L | AY109: AISI 316L | AZ109: Carbon steel | BA109: AISI 316L | BB109: AISI 316L | BC109: AISI 316L | BD109: AISI 316L | BE109: AISI 316L | BF109: AISI 316L | BH109: AISI 316L | BI109: AISI 316L | BJ109: AISI 316L | BK109: AISI 316L | BL109: AISI 316L | BM109: AISI 316L | BN109: AISI 316L | BO109: AISI 316L | BP109: AISI 316L | BQ109: AISI 316L | HK109: AISI 316L (data from 1996, 2008 or 2014) | HL109: AISI 316L (data from 1996, 2008 or 2014) | HM109: AISI 316L (data from 1996, 2008 or 2014) | HS109: AISI 316L (data from 2002 or 2006) | HV109: AISI 316L (data from 2005 or 2002) | HW109: AISI 316L (data from 2005 or 2002) | IK109: AISI 316L (data from 2002 or 2006)
D110: S/E 18: Filtrate manifold | F110: Carbon steel | G110: FRP | I110: AISI 304L | J110: AISI 316L | K110: U45N | L110: AISI 904L | M110: AISI 904L | N110: AISI 904L | O110: DIN 4435 | P110: AISI 316L | Q110: AISI 316L | S110: POLYPROPYLEN | T110: AISI 304L | U110: FRP | V110: FRP | W110: CSRL | X110: FRP | Y110: FRP | Z110: CSRL | AA110: FRP | AB110: FRP | AC110: Carbon steel | AD110: POLYPROPYLEN | AE110: CSRL | AF110: POLYPROPYLEN | AG110: CSRL | AH110: CSRL | AI110: CSRL | AK110: CSRL | AL110: CSRL | AM110: CSRL | AN110: CSRL | AO110: POLYPROPYLEN | AQ110: AISI 316L | AR110: AISI 316L | AT110: AISI 316L | AU110: AISI 316L | AV110: AISI 316L | AW110: Carbon steel | AX110: AISI 316L | AZ110: CSRL | BA110: AISI 316L | BB110: AISI 316L | BC110: AISI 316L | BD110: AISI 316L | BE110: AISI 316L | BF110: AISI 316L | BH110: U45N | BI110: U45N | BJ110: U45N | BK110: U45N | BL110: AISI 316L | BM110: U45N | BN110: SVR | BO110: FRP | BP110: FRP | BQ110: U45N | FV110: DERAKANE 411 350 | HK110: AISI 904L (data from 1996, 2008 or 2014) | HL110: AISI 904L (data from 1996, 2008 or 2014) | HM110: AISI 904L (data from 1996, 2008 or 2014) | HS110: AISI 316L (data from 2002 or 2006) | HV110: U45N (data from 2005 or 2002) | HW110: U45N (data from 2005 or 2002) | IK110: AISI 316L (data from 2002 or 2006)
D111: S/E 21: Safety guards
D112: S/E 33: Vacuum pump
D113: S/E 34: Filtrate pump
D114: S/E 40: Pneumatic equipment
D115: S/E 43: Barometric filtrate seal tank
D116: S/E 51: VBF Electrical equipment
D117: S/E 70: Filtrate receiver | F117: Carbon steel | G117: Polypropylen | I117: AISI 304L | J117: AISI 316L | K117: U45N | L117: AISI 904L | M117: AISI 316L | N117: AISI 316L | O117: AISI 316L | P117: AISI 316L | Q117: AISI 316L | S117: FRP | T117: AISI 304L | U117: FRP | V117: FRP | W117: CSRL | X117: CSRL | Y117: FRP | Z117: CSRL | AA117: CSRL | AB117: FRP | AC117: Carbon steel | AD117: CSRL | AE117: CSRL | AF117: CSRL | AG117: CSRL | AH117: CSRL | AI117: CSRL | AK117: CSRL | AL117: CSRL | AM117: CSRL | AN117: CSRL | AO117: FRP | AQ117: AISI 316L | AR117: AISI 316L | AT117: AISI 316L | AU117: AISI 316L | AV117: AISI 316L | AW117: Carbon steel | AX117: AISI 316L | AZ117: Carbon steel | BA117: AISI 316L | BB117: AISI 316L | BC117: AISI 316L | BD117: AISI 316L | BE117: AISI 316L | BF117: AISI 316L | BH117: U45N | BI117: U45N | BJ117: U45N | BK117: U45N | BL117: AISI 316L | BM117: U45N | BN117: Acier caoutchouc | BO117: FRP | BP117: FRP | BQ117: U45N | HK117: EXCLU ?? (data from 1996, 2008 or 2014) | HL117: EXCLU ?? (data from 1996, 2008 or 2014) | HM117: EXCLU ?? (data from 1996, 2008 or 2014) | HS117: ??? (data from 2002 or 2006) | HV117: MSRL (data from 2005 or 2002) | HW117: MSRL (data from 2005 or 2002) | IK117: ??? (data from 2002 or 2006)
D118: S/E 75: Moisture trap
B127: Vaccum box | C127: Section
B128: Feed dam roller | C128: Slurry entrance dam
B129: Pulp distributor | C129: Slurry Distributor
B130: Wash trough | C130: Cloth and belt wash water collecting tank
B131: Discharge tollers | C131: discharge roller
B132: Cake hopper | C132: Cake discharge hopper
B133: Cloth wash water pan | C133: Cloth wash water pan
B134: Wcloth wash header | C134: Cloth and belt washing
B135: Belt support rollers | C135: Belt support roller
B136: Cloth return roller | C136: Cloth return roller
B137: Vacuum box support frame | C137: Vacuum box support frame
B138: Frame/Bolt | C138: Frame
B139: Rubber belt | C139: Rubber belt
B140: Belt support frame | C140: belt support table
B141: Filtrate connection | C141: ?
B142: Receiver | C142: ?
J161: =J161 -> 0
I173: Filter | J173: Collection through
I178: Accessoires | J178: Seal tank for filtrate
I179: Accessoires | J179: cake washing water tank
I180: Accessoires | J180: Filtrate pump
I181: Accessoires | J181: Vacuum pump
J183: Rouleau d'entrée
J184: Goulotte
J185: Rouleaux de sortie
J186: Goulotte lavage toile
J187: Rampes lavage toile
J188: Rouleaux soutien bande
J189: Rouleaux retour toile
J190: Support BàV
J191: Table
J192: Bande
J193: Tuyau interne
J194: Collecteur
J195: Nourrice
J197: Feed dam roller
J198: Wash trough
J199: cloth wash water pan
J200: cloth wash header
J201: cloth return roller
J202: vacuum box support frame
J203: belt support frame
J204: Vaccum box

Sheet Pivot table
A1: Étiquettes de lignes
A2: Alginate acids
A3: Alginate extract - concentrated slurry
A4: Alginate extract - light slurry
A5: Alliara 10 - Seaweed + Sulfuric acid
A6: Alliaria 10 - Hydrated Seaweed
A7: Alliaria 10 - Seaweed + citric acid
A8: Aluminium slags
A9: Betainex (K2SO4)
A10: Boues CIBA / chargées en soude
A11: ByPass Dust
A12: CaCO3
A13: Enzymatic Hydrolysis of Pretreated Wood
A14: Gypsum balls
A15: Gypsum LUGP (Uranium)
A16: Hydrated seaweed
A17: Leach residue + Gypsum + precipitates HPG (Uranium)
A18: Leach Residue + Tailings HP
A19: Neutralized Leach Residue HGNLR
A20: Phosphate
A21: Plaster / Sulfate Hemihydrate
A22: Potash
A23: Soda Ash
A24: UNLR - Leach Residue (Uranium)
A25: Vinasse Safralic (K2SO4)
A26: Yellow cake YC
A27: Total général

Sheet Market list
A1: Market
A2: CCH - A2 Cement
A3: CCH - E4 Technical Silica (and Bulk)
A4: CCH - F5 Cement and kiln dust dosing
A5: CCH - H4 Soda Ash
A6: CCH - other
A7: MMF - A1 Phosphoric Acid
A8: MMF - A3 Phosphate Rock
A9: MMF - B1 Phosphated Fertilizers (MAP,DAP,TSP,DCP …)
A10: MMF - I3 Lithium
A11: MMF - L3 Zinc and cadmium
A12: MMF - N3 Nickel, Cobalt and Manganese
A13: MMF - Other
A14: ENV - A5 FGD (Flue-gas & kiln dust/alternative fuels desulfurization)
A15: ENV - B5 Water Treatment
A16: ENV - E5 Industrial Waste Water Treatment
A17: ENV - Other
A18: DEV - A4 Feed (additives)
A19: DEV - B4 CERAMIC & MATERIALS (Catalyst,proppants)
A20: DEV - D4 Sealant - Bonding - Adhesives
A21: DEV - F4 Battery Pastes
A22: DEV - G4 Specialty Polymers and resins and compounds
A23: DEV - I4 Aminated Acids / vitamins / specialty acids (lactic, citric…)
A24: DEV - J3 Metals recycling
A25: DEV - Other

Sheet Drop-down list
A1: Market | B1: Submarket | C1: Application | D1: Product
A2: CCH | B2: N3 Nickel, Cobalt and Manganese | C2: Hydrometallurgy | D2: Nickel Ore
A3: MMF | B3: L3 Zinc and cadmium | C3: FGD | D3: NiSO4
A4: ENV | B4: J3 Metals recycling | C4: POTASH | D4: Carbonate nickel
A5: DEV | B5: D3 Uranium | C5: SODA ASH | D5: Ferro nickel concentrate
B6: F3 Copper | C6: PHOSPHORIC ACID | D6: Goro Nickel
B7: T3 Other metals | C7: PHOSPHATE ROCK | D7: Zinc residue
B8: A5 FGD (Flue-gas-desulfurization) | C8: Aluminium slags | D8: Leach residue
B9: C3 Potash Brine, NaCl, Mg Salts | C9: Tartaric acid | D9: Jarosite
B10: H4 Soda Ash | C10: Methionine Raw | D10: BZS
B11: A1 Phosphoric acid | C11: Methionine Pure | D11: Al slags
B12: A3 Phosphate rock | C12: CaSO4 | D12: Uranium peroxide
B13: F3 Copper (hydrometallurgy) | C13: Citric acid | D13: Copper oxide
B14: I4 Aminated Acids / vitamins / specialty acids (lactic, citric…) | C14: Methionine | D14: Dichromate sodium
C15: Hydrasine chlorhydrate | D15: FGD (Gypsum)
C16: Amine acid | D16: Halite
C17: Threonine | D17: Halite waste
C18: Glutamate | D18: Sylvinite
C19: Gallic acid | D19: NaCl Sylvinite
C20: Lactic acid | D20: Sylvinite (KCl + NaCl)
C21: Methionine Extr. | D21: Carnalitte KCl MgCl2
D22: Carnalitte KCl MgCl3
D23: Carnallite
D24: KCl
D25: Tails
D26: Salt
D27: NaCl SEPARATION
D28: KCl Sylvite
D29: NaHCO3
D30: Fluosilicate
D31: Chemical product
D32: H3PO4 - Sludge
D33: H3PO4 - 30% Dihydrate
D34: H3PO4 - Defluoration
D35: Phosphogypsum
D36: Pilot unit
D37: H3PO4
D38: H3PO4 + HCL
D39: Aluminium Fluoride
D40: H3PO4 - 54% Clarificat
D41: H3PO4 - 50% hemihydrate
D42: H3PO4 - 42% Clarificat
D43: Acid sludges
D44: Phosphoric acid
D45: Phosphate Ore
D46: Apatite
D47: Tar Sand
D48: Gas desulfuris
D49: Copper
D50: Copper oxychloride
D51: Copper powder
D52: Copper tailings
